﻿OrganisationName,OrganisationalUnit,BeneficiaryName,PaymentDate,Amount,Purpose,CategoryInternal,OrganisationURI,
Staffordshire County Council,Stafford Invoice Led Older Peo,Angel Homecaring,02/01/2018,819.20,Practical Care,Practical Care,http://opendatacommunities.org/id/county-council/staffordshire  ,
Staffordshire County Council,Stafford Invoice Led Older Peo,Angel Homecaring,02/01/2018,671.20,Practical Care,Practical Care,http://opendatacommunities.org/id/county-council/staffordshire  ,
Staffordshire County Council,Stafford Invoice Led Older Peo,Angel Homecaring,02/01/2018,720.20,Practical Care,Practical Care,http://opendatacommunities.org/id/county-council/staffordshire  ,
Staffordshire County Council,Stafford Invoice Led Older Peo,Angel Homecaring,02/01/2018,951.20,Practical Care,Practical Care,http://opendatacommunities.org/id/county-council/staffordshire  ,
Staffordshire County Council,Carematch External,Approach Sprtng Your Life Your Way,02/01/2018,900.00,OTHER HIRED SERVICES,OTHER HIRED SERVICES,http://opendatacommunities.org/id/county-council/staffordshire  ,
Staffordshire County Council,Newcastle Invoice Led Older Pe,AUSTIN BEN LTD,02/01/2018,567.00,Practical Care,Practical Care,http://opendatacommunities.org/id/county-council/staffordshire  ,
Staffordshire County Council,East Staffs Invoice Led Phys D,CSPC Healthcare Ltd,02/01/2018,526.05,Practical Care,Practical Care,http://opendatacommunities.org/id/county-council/staffordshire  ,
Staffordshire County Council,Cannock Chase LD Team,Delam Care Ltd,02/01/2018,4420.32,Supported Group Care,Supported Group Care,http://opendatacommunities.org/id/county-council/staffordshire  ,
Staffordshire County Council,Cannock Chase LD Team,Delam Care Ltd,02/01/2018,4795.68,Supported Group Care,Supported Group Care,http://opendatacommunities.org/id/county-council/staffordshire  ,
Staffordshire County Council,Cannock Chase LD Team,Delam Care Ltd,02/01/2018,4795.68,Supported Group Care,Supported Group Care,http://opendatacommunities.org/id/county-council/staffordshire  ,
Staffordshire County Council,S Staffs LD Team,Extra Care Charitable Trust,02/01/2018,983.56,Supported Group Care,Supported Group Care,http://opendatacommunities.org/id/county-council/staffordshire  ,
Staffordshire County Council,S Staffs LD Team,Extra Care Charitable Trust,02/01/2018,986.56,Supported Group Care,Supported Group Care,http://opendatacommunities.org/id/county-council/staffordshire  ,
Staffordshire County Council,S Staffs LD Team,Extra Care Charitable Trust,02/01/2018,3206.32,Supported Group Care,Supported Group Care,http://opendatacommunities.org/id/county-council/staffordshire  ,
Staffordshire County Council,Carematch External,Hanford Manor,02/01/2018,885.00,OTHER HIRED SERVICES,OTHER HIRED SERVICES,http://opendatacommunities.org/id/county-council/staffordshire  ,
Staffordshire County Council,East Staffs Invoice Led Phys D,MEDILINE NURSES,02/01/2018,5080.32,Practical Care,Practical Care,http://opendatacommunities.org/id/county-council/staffordshire  ,
Staffordshire County Council,East Staffs Invoice Led Phys D,MEDILINE NURSES,02/01/2018,5335.68,Practical Care,Practical Care,http://opendatacommunities.org/id/county-council/staffordshire  ,
Staffordshire County Council,Carematch External,RADIS COMMUNITY CARE,02/01/2018,855.00,OTHER HIRED SERVICES,OTHER HIRED SERVICES,http://opendatacommunities.org/id/county-council/staffordshire  ,
Staffordshire County Council,Cannock Invoice Led Older Peop,Rainbow Care Solutions,02/01/2018,563.50,Practical Care,Practical Care,http://opendatacommunities.org/id/county-council/staffordshire  ,
Staffordshire County Council,Cannock Invoice Led Older Peop,Rainbow Care Solutions,02/01/2018,563.50,Practical Care,Practical Care,http://opendatacommunities.org/id/county-council/staffordshire  ,
Staffordshire County Council,Cannock Invoice Led Older Peop,Rainbow Care Solutions,02/01/2018,563.50,Practical Care,Practical Care,http://opendatacommunities.org/id/county-council/staffordshire  ,
Staffordshire County Council,Cannock Invoice Led Older Peop,Rainbow Care Solutions,02/01/2018,563.50,Practical Care,Practical Care,http://opendatacommunities.org/id/county-council/staffordshire  ,
Staffordshire County Council,Cannock Invoice Led Older Peop,Rainbow Care Solutions,02/01/2018,563.50,Practical Care,Practical Care,http://opendatacommunities.org/id/county-council/staffordshire  ,
Staffordshire County Council,Cannock Invoice Led Older Peop,Rainbow Care Solutions,02/01/2018,2530.54,Practical Care,Practical Care,http://opendatacommunities.org/id/county-council/staffordshire  ,
Staffordshire County Council,Cannock Invoice Led Older Peop,Rainbow Care Solutions,02/01/2018,507.08,Practical Care,Practical Care,http://opendatacommunities.org/id/county-council/staffordshire  ,
Staffordshire County Council,Cannock Invoice Led Older Peop,Rainbow Care Solutions,02/01/2018,507.08,Practical Care,Practical Care,http://opendatacommunities.org/id/county-council/staffordshire  ,
Staffordshire County Council,Cannock Invoice Led Older Peop,Rainbow Care Solutions,02/01/2018,507.08,Practical Care,Practical Care,http://opendatacommunities.org/id/county-council/staffordshire  ,
Staffordshire County Council,Stafford Invoice Led Older Peo,Rainbow Care Solutions,02/01/2018,507.08,Practical Care,Practical Care,http://opendatacommunities.org/id/county-council/staffordshire  ,
Staffordshire County Council,Stafford Invoice Led Older Peo,Rainbow Care Solutions,02/01/2018,507.08,Practical Care,Practical Care,http://opendatacommunities.org/id/county-council/staffordshire  ,
Staffordshire County Council,Stafford Invoice Led Older Peo,Rainbow Care Solutions,02/01/2018,507.08,Practical Care,Practical Care,http://opendatacommunities.org/id/county-council/staffordshire  ,
Staffordshire County Council,Stafford Invoice Led Older Peo,Rainbow Care Solutions,02/01/2018,507.08,Practical Care,Practical Care,http://opendatacommunities.org/id/county-council/staffordshire  ,
Staffordshire County Council,Stafford Invoice Led Older Peo,Rainbow Care Solutions,02/01/2018,507.15,Practical Care,Practical Care,http://opendatacommunities.org/id/county-council/staffordshire  ,
Staffordshire County Council,Stafford Invoice Led Older Peo,Rainbow Care Solutions,02/01/2018,563.50,Practical Care,Practical Care,http://opendatacommunities.org/id/county-council/staffordshire  ,
Staffordshire County Council,Stafford Invoice Led Older Peo,Rainbow Care Solutions,02/01/2018,563.50,Practical Care,Practical Care,http://opendatacommunities.org/id/county-council/staffordshire  ,
Staffordshire County Council,Stafford Invoice Led Older Peo,Rainbow Care Solutions,02/01/2018,563.50,Practical Care,Practical Care,http://opendatacommunities.org/id/county-council/staffordshire  ,
Staffordshire County Council,Stafford Invoice Led Older Peo,Rainbow Care Solutions,02/01/2018,563.50,Practical Care,Practical Care,http://opendatacommunities.org/id/county-council/staffordshire  ,
Staffordshire County Council,Stafford Invoice Led Older Peo,Rainbow Care Solutions,02/01/2018,563.50,Practical Care,Practical Care,http://opendatacommunities.org/id/county-council/staffordshire  ,
Staffordshire County Council,Enablement - Tamworth,SOUTH STAFFS & SHROPS H'CARE NHS FT,02/01/2018,11160.00,OTHER HIRED SERVICES,OTHER HIRED SERVICES,http://opendatacommunities.org/id/county-council/staffordshire  ,
Staffordshire County Council,East Staffs Invoice Led Older ,TLC Homecare Services,02/01/2018,605.00,Practical Care,Practical Care,http://opendatacommunities.org/id/county-council/staffordshire  ,
Staffordshire County Council,East Staffs Invoice Led Older ,TLC Homecare Services,02/01/2018,645.50,Practical Care,Practical Care,http://opendatacommunities.org/id/county-council/staffordshire  ,
Staffordshire County Council,East Staffs Invoice Led Older ,TLC Homecare Services,02/01/2018,605.00,Practical Care,Practical Care,http://opendatacommunities.org/id/county-council/staffordshire  ,
Staffordshire County Council,East Staffs Invoice Led Phys D,TLC Homecare Services,02/01/2018,953.00,Practical Care,Practical Care,http://opendatacommunities.org/id/county-council/staffordshire  ,
Staffordshire County Council,Through Care Team - Burton/Tam,255 TAXIS LTD,02/01/2018,745.00,Home School Contract Vehicles,Home School Contract Vehicles,http://opendatacommunities.org/id/county-council/staffordshire  ,
Staffordshire County Council,Workforce Wellbeing Strategy,365 Health and Wellbeing Ltd,02/01/2018,3960.00,CONSULTANT FEES,CONSULTANT FEES,http://opendatacommunities.org/id/county-council/staffordshire  ,
Staffordshire County Council,Cannock Chase,A I D FUEL OILS LTD,02/01/2018,1094.54,Heating Oil,Heating Oil,http://opendatacommunities.org/id/county-council/staffordshire  ,
Staffordshire County Council,Workforce Wellbeing Strategy,A Rose,02/01/2018,1502.00,CONSULTANT FEES,CONSULTANT FEES,http://opendatacommunities.org/id/county-council/staffordshire  ,
Staffordshire County Council,Concessionary Fare Schemes,ARRIVA MIDLANDS LTD,02/01/2018,277982.00,Payments to Bus Operators,Payments to Bus Operators,http://opendatacommunities.org/id/county-council/staffordshire  ,
Staffordshire County Council,7278 Marsh Court Day Serv ST16,BIFFA WASTE SERVICES LTD,02/01/2018,588.34,WASTE COLLECTION,WASTE COLLECTION,http://opendatacommunities.org/id/county-council/staffordshire  ,
Staffordshire County Council,Bikeability,Bike Right! Ltd,02/01/2018,1608.00,CONSULTANT FEES,CONSULTANT FEES,http://opendatacommunities.org/id/county-council/staffordshire  ,
Staffordshire County Council,Pupil Premium Grant,Birmingham City Council,02/01/2018,500.00,Grants to third parties,Grants to third parties,http://opendatacommunities.org/id/county-council/staffordshire  ,
Staffordshire County Council,Pupil Premium Grant,BLACK FIRS PRIMARY,02/01/2018,500.00,Grants to third parties,Grants to third parties,http://opendatacommunities.org/id/county-council/staffordshire  ,
Staffordshire County Council,Hednesford Valley High,Bloxwich Radio Taxis,02/01/2018,15017.92,Home School Contract Vehicles,Home School Contract Vehicles,http://opendatacommunities.org/id/county-council/staffordshire  ,
Staffordshire County Council,Pupil Premium Grant,BROADWAY ACADEMY TRUST,02/01/2018,500.00,Grants to third parties,Grants to third parties,http://opendatacommunities.org/id/county-council/staffordshire  ,
Staffordshire County Council,HWS Unallocated,C R WOODWISS,02/01/2018,5750.00,Rent / Lease Of Premises,Rent / Lease Of Premises,http://opendatacommunities.org/id/county-council/staffordshire  ,
Staffordshire County Council,Scientific Services,Cass Industries Limited,02/01/2018,510.72,OTHER HIRED SERVICES,OTHER HIRED SERVICES,http://opendatacommunities.org/id/county-council/staffordshire  ,
Staffordshire County Council,Aiming High Grant,Caudwell Children,02/01/2018,6841.75,OTHER HIRED SERVICES,OTHER HIRED SERVICES,http://opendatacommunities.org/id/county-council/staffordshire  ,
Staffordshire County Council,Aiming High Grant,Caudwell Children,02/01/2018,16256.75,OTHER HIRED SERVICES,OTHER HIRED SERVICES,http://opendatacommunities.org/id/county-council/staffordshire  ,
Staffordshire County Council,Concessionary Fare Schemes,CEN GROUP LTD,02/01/2018,17325.00,Payments to Bus Operators,Payments to Bus Operators,http://opendatacommunities.org/id/county-council/staffordshire  ,
Staffordshire County Council,Pupil Premium Grant,CHESHIRE EAST COUNCIL,02/01/2018,500.00,Grants to third parties,Grants to third parties,http://opendatacommunities.org/id/county-council/staffordshire  ,
Staffordshire County Council,Adoption Support Fund,Child Psychology Service,02/01/2018,674.25,PROFESSIONAL FEES,PROFESSIONAL FEES,http://opendatacommunities.org/id/county-council/staffordshire  ,
Staffordshire County Council,Home to school transport-main,CITY CENTRE CENTRAL,02/01/2018,127161.76,Manned Transpt - Hire Medical,Manned Transpt - Hire Medical,http://opendatacommunities.org/id/county-council/staffordshire  ,
Staffordshire County Council,Meadows School,CLOWES COACHES,02/01/2018,4078.80,Home School Contract Vehicles,Home School Contract Vehicles,http://opendatacommunities.org/id/county-council/staffordshire  ,
Staffordshire County Council,SCC Balance Sheet,Comensura Ltd,02/01/2018,167498.62,AGENCY STAFF,AGENCY STAFF,http://opendatacommunities.org/id/county-council/staffordshire  ,
Staffordshire County Council,Pupil Premium Grant,Community Academies Trust,02/01/2018,500.00,Grants to third parties,Grants to third parties,http://opendatacommunities.org/id/county-council/staffordshire  ,
Staffordshire County Council,Pupil Premium Grant,Congleton High School,02/01/2018,1000.00,Grants to third parties,Grants to third parties,http://opendatacommunities.org/id/county-council/staffordshire  ,
Staffordshire County Council,Cannock Enterprise Centre,Coopers Recycling Ltd,02/01/2018,715.89,General Equipment Purchase,General Equipment Purchase,http://opendatacommunities.org/id/county-council/staffordshire  ,
Staffordshire County Council,Cannock Enterprise Centre,Coopers Recycling Ltd,02/01/2018,509.56,General Equipment Purchase,General Equipment Purchase,http://opendatacommunities.org/id/county-council/staffordshire  ,
Staffordshire County Council,Home to school transport-main,COPELAND'S TOURS (S-O-T) LTD,02/01/2018,3054.44,Home School Contract Vehicles,Home School Contract Vehicles,http://opendatacommunities.org/id/county-council/staffordshire  ,
Staffordshire County Council,Adoption Team,Coram Capital Adoption,02/01/2018,9900.00,Fostering BAFF Adoption Fees,Fostering BAFF Adoption Fees,http://opendatacommunities.org/id/county-council/staffordshire  ,
Staffordshire County Council,S Staffs LD Team,Craegmoor Bentons Lane 297,02/01/2018,4330.40,Supported Group Care,Supported Group Care,http://opendatacommunities.org/id/county-council/staffordshire  ,
Staffordshire County Council,S Staffs LD Team,Craegmoor Bentons Lane 297,02/01/2018,4330.40,Comm Care Benton's Lane,Comm Care Benton's Lane,http://opendatacommunities.org/id/county-council/staffordshire  ,
Staffordshire County Council,S Staffs LD Team,Craegmoor Bentons Lane 297,02/01/2018,4330.40,Comm Care Benton's Lane,Comm Care Benton's Lane,http://opendatacommunities.org/id/county-council/staffordshire  ,
Staffordshire County Council,S Staffs LD Team,Craegmoor Bentons Lane 297,02/01/2018,4330.40,Comm Care Benton's Lane,Comm Care Benton's Lane,http://opendatacommunities.org/id/county-council/staffordshire  ,
Staffordshire County Council,S Staffs LD Team,Craegmoor Bentons Lane 297,02/01/2018,4330.40,Supported Group Care,Supported Group Care,http://opendatacommunities.org/id/county-council/staffordshire  ,
Staffordshire County Council,S Staffs LD Team,CREATIVE SUPPORT,02/01/2018,523.92,Extra Care,Extra Care,http://opendatacommunities.org/id/county-council/staffordshire  ,
Staffordshire County Council,Cannock Chase LD Team,CREATIVE SUPPORT,02/01/2018,4888.24,Supported Group Care,Supported Group Care,http://opendatacommunities.org/id/county-council/staffordshire  ,
Staffordshire County Council,2 Contraception,Crown Surgery Ltd,02/01/2018,770.00,OTHER HIRED SERVICES,OTHER HIRED SERVICES,http://opendatacommunities.org/id/county-council/staffordshire  ,
Staffordshire County Council,HRSSC,CYCLESCHEME,02/01/2018,1000.00,Contingency,Contingency,http://opendatacommunities.org/id/county-council/staffordshire  ,
Staffordshire County Council,Saxon Hill School,,02/01/2018,619.35,Personal Travel Budgets,Personal Travel Budgets,http://opendatacommunities.org/id/county-council/staffordshire  ,
Staffordshire County Council,Pupil Premium Grant,DERBY CITY COUNCIL,02/01/2018,500.00,Grants to third parties,Grants to third parties,http://opendatacommunities.org/id/county-council/staffordshire  ,
Staffordshire County Council,Pupil Premium Grant,Derbyshire County Council,02/01/2018,1500.00,Grants to third parties,Grants to third parties,http://opendatacommunities.org/id/county-council/staffordshire  ,
Staffordshire County Council,Pupil Premium Grant,DISCOVERY ACADEMY,02/01/2018,500.00,Grants to third parties,Grants to third parties,http://opendatacommunities.org/id/county-council/staffordshire  ,
Staffordshire County Council,Horton Lodge School,DOVELIN CARS,02/01/2018,8322.02,Home School Contract Vehicles,Home School Contract Vehicles,http://opendatacommunities.org/id/county-council/staffordshire  ,
Staffordshire County Council,Horton Lodge School,DOVELIN CARS,02/01/2018,3602.81,Home School Contract Vehicles,Home School Contract Vehicles,http://opendatacommunities.org/id/county-council/staffordshire  ,
Staffordshire County Council,Headquarters - I.S.P,DUDLEY LODGE AND ST FAITHS,02/01/2018,15987.14,Specialist Childs Res Services,Specialist Childs Res Services,http://opendatacommunities.org/id/county-council/staffordshire  ,
Staffordshire County Council,Pupil Premium Grant,Ely College,02/01/2018,500.00,Grants to third parties,Grants to third parties,http://opendatacommunities.org/id/county-council/staffordshire  ,
Staffordshire County Council,Pupil Premium Grant,Fairfax Academy,02/01/2018,500.00,Grants to third parties,Grants to third parties,http://opendatacommunities.org/id/county-council/staffordshire  ,
Staffordshire County Council,Thomas Russell Junior  - Teach,FORDS OF BLYTHE BRIDGE LTD,02/01/2018,203700.00,Construction Works,Construction Works,http://opendatacommunities.org/id/county-council/staffordshire  ,
Staffordshire County Council,Stock Suspense Account,Fuchs Lubricants (UK) PLC,02/01/2018,1818.83,CFC Purchase of Stock,CFC Purchase of Stock,http://opendatacommunities.org/id/county-council/staffordshire  ,
Staffordshire County Council,Staffordshire Wood Fuel,GF & VJ WHIRLEDGE,02/01/2018,1875.00,Rent / Lease Of Premises,Rent / Lease Of Premises,http://opendatacommunities.org/id/county-council/staffordshire  ,
Staffordshire County Council,Castle House (The Hub),GLASDON U K LTD,02/01/2018,595.80,General Equipment Purchase,General Equipment Purchase,http://opendatacommunities.org/id/county-council/staffordshire  ,
Staffordshire County Council,Public Transp Support & Co-ord,Going My Way Ltd T/A Stantons of Stoke,02/01/2018,2911.40,Payments to Bus Operators,Payments to Bus Operators,http://opendatacommunities.org/id/county-council/staffordshire  ,
Staffordshire County Council,Burton Children's Centres,Harvey Girls,02/01/2018,58846.00,Grants to third parties,Grants to third parties,http://opendatacommunities.org/id/county-council/staffordshire  ,
Staffordshire County Council,Newc/Moor Disability Team,Helping Angels Ltd,02/01/2018,511.50,S17 FAMILY SUPPORT,S17 FAMILY SUPPORT,http://opendatacommunities.org/id/county-council/staffordshire  ,
Staffordshire County Council,Pupil Premium Grant,Hillside Primary School,02/01/2018,500.00,Grants to third parties,Grants to third parties,http://opendatacommunities.org/id/county-council/staffordshire  ,
Staffordshire County Council,Stafford Western Access Rd 13/,HMRC 586/DV536794,02/01/2018,49500.00,Int Fees Construction,Int Fees Construction,http://opendatacommunities.org/id/county-council/staffordshire  ,
Staffordshire County Council,Pupil Premium Grant,Hodge Hill College,02/01/2018,500.00,Grants to third parties,Grants to third parties,http://opendatacommunities.org/id/county-council/staffordshire  ,
Staffordshire County Council,KCOM - MAN & Tipping St,KCom Group PLC,02/01/2018,160956.10,OTHER HIRED SERVICES,OTHER HIRED SERVICES,http://opendatacommunities.org/id/county-council/staffordshire  ,
Staffordshire County Council,KCOM - Contact Centre,KCom Group PLC,02/01/2018,42609.43,SOFTWARE LICENCES,SOFTWARE LICENCES,http://opendatacommunities.org/id/county-council/staffordshire  ,
Staffordshire County Council,KCOM - Core Network,KCom Group PLC,02/01/2018,54861.49,OTHER HIRED SERVICES,OTHER HIRED SERVICES,http://opendatacommunities.org/id/county-council/staffordshire  ,
Staffordshire County Council,KCOM - PSN - SSHIS,KCom Group PLC,02/01/2018,94680.93,INSTALLATION CHARGES,INSTALLATION CHARGES,http://opendatacommunities.org/id/county-council/staffordshire  ,
Staffordshire County Council,KCOM - PSN Staffs Fire Rescue,KCom Group PLC,02/01/2018,20910.16,MEGASTREAMS,MEGASTREAMS,http://opendatacommunities.org/id/county-council/staffordshire  ,
Staffordshire County Council,KCOM - Wholesale Line Rental,KCom Group PLC,02/01/2018,35152.88,RENTAL CHARGES,RENTAL CHARGES,http://opendatacommunities.org/id/county-council/staffordshire  ,
Staffordshire County Council,KCOM - PSN - SSHIS,KCom Group PLC,02/01/2018,8517.07,MEGASTREAMS,MEGASTREAMS,http://opendatacommunities.org/id/county-council/staffordshire  ,
Staffordshire County Council,Schools Migration from PSN,KCom Group PLC,02/01/2018,38498.86,Purchase of Hardware,Purchase of Hardware,http://opendatacommunities.org/id/county-council/staffordshire  ,
Staffordshire County Council,KCOM - PSN - SSHIS,KCom Group PLC,02/01/2018,6890.00,INSTALLATION CHARGES,INSTALLATION CHARGES,http://opendatacommunities.org/id/county-council/staffordshire  ,
Staffordshire County Council,KCOM - Core Network,KCom Group PLC,02/01/2018,4052.74,HARDWARE MAINTENANCE,HARDWARE MAINTENANCE,http://opendatacommunities.org/id/county-council/staffordshire  ,
Staffordshire County Council,KCOM - Telephone Network,KCom Group PLC,02/01/2018,4699.21,PROFESSIONAL FEES,PROFESSIONAL FEES,http://opendatacommunities.org/id/county-council/staffordshire  ,
Staffordshire County Council,KCOM - PSN - SSHIS,KCom Group PLC,02/01/2018,3577.26,INSTALLATION CHARGES,INSTALLATION CHARGES,http://opendatacommunities.org/id/county-council/staffordshire  ,
Staffordshire County Council,Pupil Premium Grant,Matrix Academy Trust T/a Barr Beacon,02/01/2018,500.00,Grants to third parties,Grants to third parties,http://opendatacommunities.org/id/county-council/staffordshire  ,
Staffordshire County Council,Pupil Premium Grant,Moseley Park,02/01/2018,500.00,Grants to third parties,Grants to third parties,http://opendatacommunities.org/id/county-council/staffordshire  ,
Staffordshire County Council,Virtual School - Pupil Premium,NATIONAL TEACHING ADVISORY SERVI,02/01/2018,751.44,OTHER ALLOWANCES,OTHER ALLOWANCES,http://opendatacommunities.org/id/county-council/staffordshire  ,
Staffordshire County Council,Virtual School - Pupil Premium,NATIONAL TEACHING ADVISORY SERVI,02/01/2018,675.00,OTHER ALLOWANCES,OTHER ALLOWANCES,http://opendatacommunities.org/id/county-council/staffordshire  ,
Staffordshire County Council,Virtual School - Pupil Premium,NATIONAL TEACHING ADVISORY SERVI,02/01/2018,900.00,OTHER ALLOWANCES,OTHER ALLOWANCES,http://opendatacommunities.org/id/county-council/staffordshire  ,
Staffordshire County Council,Virtual School - Pupil Premium,NATIONAL TEACHING ADVISORY SERVI,02/01/2018,684.60,OTHER ALLOWANCES,OTHER ALLOWANCES,http://opendatacommunities.org/id/county-council/staffordshire  ,
Staffordshire County Council,Virtual School - Pupil Premium,NATIONAL TEACHING ADVISORY SERVI,02/01/2018,675.00,OTHER ALLOWANCES,OTHER ALLOWANCES,http://opendatacommunities.org/id/county-council/staffordshire  ,
Staffordshire County Council,Virtual School - Pupil Premium,NATIONAL TEACHING ADVISORY SERVI,02/01/2018,862.50,OTHER ALLOWANCES,OTHER ALLOWANCES,http://opendatacommunities.org/id/county-council/staffordshire  ,
Staffordshire County Council,Virtual School - Pupil Premium,NATIONAL TEACHING ADVISORY SERVI,02/01/2018,1516.80,OTHER ALLOWANCES,OTHER ALLOWANCES,http://opendatacommunities.org/id/county-council/staffordshire  ,
Staffordshire County Council,Virtual School - Pupil Premium,NATIONAL TEACHING ADVISORY SERVI,02/01/2018,600.00,OTHER ALLOWANCES,OTHER ALLOWANCES,http://opendatacommunities.org/id/county-council/staffordshire  ,
Staffordshire County Council,Virtual School - Pupil Premium,NATIONAL TEACHING ADVISORY SERVI,02/01/2018,1369.20,OTHER ALLOWANCES,OTHER ALLOWANCES,http://opendatacommunities.org/id/county-council/staffordshire  ,
Staffordshire County Council,Virtual School - Pupil Premium,NATIONAL TEACHING ADVISORY SERVI,02/01/2018,1134.60,OTHER ALLOWANCES,OTHER ALLOWANCES,http://opendatacommunities.org/id/county-council/staffordshire  ,
Staffordshire County Council,Virtual School - Pupil Premium,NATIONAL TEACHING ADVISORY SERVI,02/01/2018,2278.80,OTHER ALLOWANCES,OTHER ALLOWANCES,http://opendatacommunities.org/id/county-council/staffordshire  ,
Staffordshire County Council,Virtual School - Pupil Premium,NATIONAL TEACHING ADVISORY SERVI,02/01/2018,1425.00,OTHER ALLOWANCES,OTHER ALLOWANCES,http://opendatacommunities.org/id/county-council/staffordshire  ,
Staffordshire County Council,Virtual School - Pupil Premium,NATIONAL TEACHING ADVISORY SERVI,02/01/2018,2278.80,OTHER ALLOWANCES,OTHER ALLOWANCES,http://opendatacommunities.org/id/county-council/staffordshire  ,
Staffordshire County Council,Improvements Contracts,NCC SERVICES LTD,02/01/2018,942.00,SOFTWARE LICENCES,SOFTWARE LICENCES,http://opendatacommunities.org/id/county-council/staffordshire  ,
Staffordshire County Council,Pupil Premium Grant,Newton Regis C E Primary School,02/01/2018,500.00,Grants to third parties,Grants to third parties,http://opendatacommunities.org/id/county-council/staffordshire  ,
Staffordshire County Council,Leaving Care Team - Central,Next Steps,02/01/2018,630.00,Conference Fees,Conference Fees,http://opendatacommunities.org/id/county-council/staffordshire  ,
Staffordshire County Council,Pupil Premium Grant,Northampton Academy,02/01/2018,1000.00,Grants to third parties,Grants to third parties,http://opendatacommunities.org/id/county-council/staffordshire  ,
Staffordshire County Council,Lighting & Signals Works,O2 (UK) LTD.,02/01/2018,1341.86,Traffic Signals Communication,Traffic Signals Communication,http://opendatacommunities.org/id/county-council/staffordshire  ,
Staffordshire County Council,Pupil Premium Grant,ORMISTON SIR STANLEY MATTHEWS ACDMY,02/01/2018,500.00,Grants to third parties,Grants to third parties,http://opendatacommunities.org/id/county-council/staffordshire  ,
Staffordshire County Council,Pupil Premium Grant,OUR LADY & ST CHAD CATHOLIC SCHOOL,02/01/2018,500.00,Grants to third parties,Grants to third parties,http://opendatacommunities.org/id/county-council/staffordshire  ,
Staffordshire County Council,Pupil Premium Grant,Pingle School,02/01/2018,500.00,Grants to third parties,Grants to third parties,http://opendatacommunities.org/id/county-council/staffordshire  ,
Staffordshire County Council,Project A - A50 Growth Corrido,PORTAKABIN LTD,02/01/2018,1200.00,Construction Works,Construction Works,http://opendatacommunities.org/id/county-council/staffordshire  ,
Staffordshire County Council,Stafford Records Office,Pringle Richards Sharratt Ltd,02/01/2018,14119.99,Ext Fees Construction,Ext Fees Construction,http://opendatacommunities.org/id/county-council/staffordshire  ,
Staffordshire County Council,Stafford Records Office,Pringle Richards Sharratt Ltd,02/01/2018,1290.00,Ext Fees Construction,Ext Fees Construction,http://opendatacommunities.org/id/county-council/staffordshire  ,
Staffordshire County Council,Stafford Records Office,Pringle Richards Sharratt Ltd,02/01/2018,3000.00,Ext Fees Construction,Ext Fees Construction,http://opendatacommunities.org/id/county-council/staffordshire  ,
Staffordshire County Council,S Staffs Adaptations,PRISM UK MEDICAL - WESTHOLME DIV,02/01/2018,1315.01,Adaptations Purchase,Adaptations Purchase,http://opendatacommunities.org/id/county-council/staffordshire  ,
Staffordshire County Council,Tamworth Adaptations,PRISM UK MEDICAL - WESTHOLME DIV,02/01/2018,1273.01,Adaptations Purchase,Adaptations Purchase,http://opendatacommunities.org/id/county-council/staffordshire  ,
Staffordshire County Council,Pupil Premium Grant,Racemeadow Primary Academy,02/01/2018,1000.00,Grants to third parties,Grants to third parties,http://opendatacommunities.org/id/county-council/staffordshire  ,
Staffordshire County Council,Asset Renewal  - Maint Work 04,ROY DYKE ELECTRICAL LTD,02/01/2018,3727.26,Construction Works,Construction Works,http://opendatacommunities.org/id/county-council/staffordshire  ,
Staffordshire County Council,Four Ashes - ERF,SANDWELL METRO B C,02/01/2018,233132.43,Waste Treatment,Waste Treatment,http://opendatacommunities.org/id/county-council/staffordshire  ,
Staffordshire County Council,Pupil Premium Grant,SHROPSHIRE COUNTY COUNCIL,02/01/2018,500.00,Grants to third parties,Grants to third parties,http://opendatacommunities.org/id/county-council/staffordshire  ,
Staffordshire County Council,Claims Manage Reg & Comp Unit,SITEON LTD,02/01/2018,2916.00,Computer Development,Computer Development,http://opendatacommunities.org/id/county-council/staffordshire  ,
Staffordshire County Council,Staffs Safer Roads Partnership,SOT & STAFFS FIRE AUTHORITY,02/01/2018,9455.78,Speed Camera Reimbursements,Speed Camera Reimbursements,http://opendatacommunities.org/id/county-council/staffordshire  ,
Staffordshire County Council,South Staffs,South Staffordshire CVA,02/01/2018,1512.00,Conference Fees,Conference Fees,http://opendatacommunities.org/id/county-council/staffordshire  ,
Staffordshire County Council,Leaving Care Team - Central,SOVA,02/01/2018,998.30,UASC's - No public funding,UASC's - No public funding,http://opendatacommunities.org/id/county-council/staffordshire  ,
Staffordshire County Council,Moving On,Steve Slack,02/01/2018,1333.00,Project Activities,Project Activities,http://opendatacommunities.org/id/county-council/staffordshire  ,
Staffordshire County Council,Pupil Premium Grant,STOKE CITY COUNCIL (ALL ACCS),02/01/2018,1500.00,Grants to third parties,Grants to third parties,http://opendatacommunities.org/id/county-council/staffordshire  ,
Staffordshire County Council,SWS MH Team U65,Supported Homes Ltd,02/01/2018,1629.47,Supported Group Care,Supported Group Care,http://opendatacommunities.org/id/county-council/staffordshire  ,
Staffordshire County Council,Family Group Conferencing,T Ryan,02/01/2018,575.00,AGENCY STAFF,AGENCY STAFF,http://opendatacommunities.org/id/county-council/staffordshire  ,
Staffordshire County Council,Pupil Premium Grant,TELFORD & WREKIN COUNCIL,02/01/2018,1500.00,Grants to third parties,Grants to third parties,http://opendatacommunities.org/id/county-council/staffordshire  ,
Staffordshire County Council,Pupil Premium Grant,Templars Primary School,02/01/2018,500.00,Grants to third parties,Grants to third parties,http://opendatacommunities.org/id/county-council/staffordshire  ,
Staffordshire County Council,Pupil Premium Grant,The Haven Wolverhampton,02/01/2018,500.00,Grants to third parties,Grants to third parties,http://opendatacommunities.org/id/county-council/staffordshire  ,
Staffordshire County Council,Pupil Premium Grant,THISTLEY HOUGH ACADEMY,02/01/2018,500.00,Grants to third parties,Grants to third parties,http://opendatacommunities.org/id/county-council/staffordshire  ,
Staffordshire County Council,Newc/Moor CIC Through Care Tm,TRENTHAM PROF'NAL RECRUITMENT LTD,02/01/2018,1466.89,S17 CONTACT,S17 CONTACT,http://opendatacommunities.org/id/county-council/staffordshire  ,
Staffordshire County Council,Other NDORS Courses,UKROED LTD,02/01/2018,764.40,PROFESSIONAL FEES,PROFESSIONAL FEES,http://opendatacommunities.org/id/county-council/staffordshire  ,
Staffordshire County Council,Other NDORS Courses,UKROED LTD,02/01/2018,940.80,PROFESSIONAL FEES,PROFESSIONAL FEES,http://opendatacommunities.org/id/county-council/staffordshire  ,
Staffordshire County Council,Foster Care Recruitment Team,UTTOXETER RACECOURSE,02/01/2018,6750.00,Advertising,Advertising,http://opendatacommunities.org/id/county-council/staffordshire  ,
Staffordshire County Council,TSU- Traded work,VANTAGE CONSULTING (MIDLANDS) LTD,02/01/2018,2310.00,AGENCY STAFF,AGENCY STAFF,http://opendatacommunities.org/id/county-council/staffordshire  ,
Staffordshire County Council,TSU- Traded work,VANTAGE CONSULTING (MIDLANDS) LTD,02/01/2018,2760.00,AGENCY STAFF,AGENCY STAFF,http://opendatacommunities.org/id/county-council/staffordshire  ,
Staffordshire County Council,TSU- Traded work,VANTAGE CONSULTING (MIDLANDS) LTD,02/01/2018,2280.00,AGENCY STAFF,AGENCY STAFF,http://opendatacommunities.org/id/county-council/staffordshire  ,
Staffordshire County Council,TSU- Traded work,VANTAGE CONSULTING (MIDLANDS) LTD,02/01/2018,2280.00,AGENCY STAFF,AGENCY STAFF,http://opendatacommunities.org/id/county-council/staffordshire  ,
Staffordshire County Council,TSU- Traded work,VANTAGE CONSULTING (MIDLANDS) LTD,02/01/2018,2760.00,AGENCY STAFF,AGENCY STAFF,http://opendatacommunities.org/id/county-council/staffordshire  ,
Staffordshire County Council,TSU- Traded work,VANTAGE CONSULTING (MIDLANDS) LTD,02/01/2018,2760.00,AGENCY STAFF,AGENCY STAFF,http://opendatacommunities.org/id/county-council/staffordshire  ,
Staffordshire County Council,5438 Staffs Place 1&2Tipping S,VEOLIA ENVIRONMENTAL SERV (UK) LTD,02/01/2018,699.00,WASTE COLLECTION,WASTE COLLECTION,http://opendatacommunities.org/id/county-council/staffordshire  ,
Staffordshire County Council,Pupil Premium Grant,Walsall Wood School,02/01/2018,500.00,Grants to third parties,Grants to third parties,http://opendatacommunities.org/id/county-council/staffordshire  ,
Staffordshire County Council,Pupil Premium Grant,Waseley Hills High School,02/01/2018,500.00,Grants to third parties,Grants to third parties,http://opendatacommunities.org/id/county-council/staffordshire  ,
Staffordshire County Council,SFA Community Learning,WEA LEARNING FOR LIFE,02/01/2018,10800.00,Courses,Courses,http://opendatacommunities.org/id/county-council/staffordshire  ,
Staffordshire County Council,Pupil Premium Grant,West Coventry Academy,02/01/2018,1000.00,Grants to third parties,Grants to third parties,http://opendatacommunities.org/id/county-council/staffordshire  ,
Staffordshire County Council,Pupil Premium Grant,Wolverhampton City Council,02/01/2018,500.00,Grants to third parties,Grants to third parties,http://opendatacommunities.org/id/county-council/staffordshire  ,
Staffordshire County Council,Pupil Premium Grant,Woodside CofE Primary School,02/01/2018,500.00,Grants to third parties,Grants to third parties,http://opendatacommunities.org/id/county-council/staffordshire  ,
Staffordshire County Council,Pupil Premium Grant,WORCESTERSHIRE COUNTY COUNCIL,02/01/2018,500.00,Grants to third parties,Grants to third parties,http://opendatacommunities.org/id/county-council/staffordshire  ,
Staffordshire County Council,Pupil Premium Grant,Ysgol Awel y Mynydd,02/01/2018,500.00,Grants to third parties,Grants to third parties,http://opendatacommunities.org/id/county-council/staffordshire  ,
Staffordshire County Council,Cannock Invoice Led Phys Disab,Active Assistance,03/01/2018,1176.56,Practical Care,Practical Care,http://opendatacommunities.org/id/county-council/staffordshire  ,
Staffordshire County Council,Lichfield Invoice Led Older Pe,ANGEL CARE TAMWORTH LTD,03/01/2018,1743.20,Practical Care,Practical Care,http://opendatacommunities.org/id/county-council/staffordshire  ,
Staffordshire County Council,Newcastle Invoice Led Older Pe,AUSTIN BEN LTD,03/01/2018,504.00,Practical Care,Practical Care,http://opendatacommunities.org/id/county-council/staffordshire  ,
Staffordshire County Council,Newcastle Invoice Led Older Pe,AUSTIN BEN LTD,03/01/2018,567.00,Practical Care,Practical Care,http://opendatacommunities.org/id/county-council/staffordshire  ,
Staffordshire County Council,Carematch External,Catherine Care,03/01/2018,900.00,OTHER HIRED SERVICES,OTHER HIRED SERVICES,http://opendatacommunities.org/id/county-council/staffordshire  ,
Staffordshire County Council,Stafford Invoice Led Phys Disa,CSPC Healthcare Ltd,03/01/2018,818.30,Practical Care,Practical Care,http://opendatacommunities.org/id/county-council/staffordshire  ,
Staffordshire County Council,Stafford Invoice Led Older Peo,CSPC Healthcare Ltd,03/01/2018,582.75,Practical Care,Practical Care,http://opendatacommunities.org/id/county-council/staffordshire  ,
Staffordshire County Council,Cannock Invoice Led Phys Disab,CSPC Healthcare Ltd,03/01/2018,563.50,Practical Care,Practical Care,http://opendatacommunities.org/id/county-council/staffordshire  ,
Staffordshire County Council,Cannock Invoice Led Older Peop,CSPC Healthcare Ltd,03/01/2018,507.15,Practical Care,Practical Care,http://opendatacommunities.org/id/county-council/staffordshire  ,
Staffordshire County Council,Cannock Invoice Led Older Peop,CSPC Healthcare Ltd,03/01/2018,507.15,Practical Care,Practical Care,http://opendatacommunities.org/id/county-council/staffordshire  ,
Staffordshire County Council,Cannock Invoice Led Older Peop,CSPC Healthcare Ltd,03/01/2018,507.15,Practical Care,Practical Care,http://opendatacommunities.org/id/county-council/staffordshire  ,
Staffordshire County Council,Moorlands Invoice Led Older Pe,H I C A,03/01/2018,1008.00,Practical Care,Practical Care,http://opendatacommunities.org/id/county-council/staffordshire  ,
Staffordshire County Council,Moorlands Invoice Led Older Pe,H I C A,03/01/2018,1008.00,Practical Care,Practical Care,http://opendatacommunities.org/id/county-council/staffordshire  ,
Staffordshire County Council,Moorlands Invoice Led Older Pe,H I C A,03/01/2018,744.60,Practical Care,Practical Care,http://opendatacommunities.org/id/county-council/staffordshire  ,
Staffordshire County Council,Newcastle Invoice Led Physical,Jump 2 Independence Ltd,03/01/2018,690.20,Supported Group Care,Supported Group Care,http://opendatacommunities.org/id/county-council/staffordshire  ,
Staffordshire County Council,Newcastle Invoice Led Physical,Jump 2 Independence Ltd,03/01/2018,564.36,Supported Group Care,Supported Group Care,http://opendatacommunities.org/id/county-council/staffordshire  ,
Staffordshire County Council,Stafford LD Team,Linfield Care Ltd,03/01/2018,2360.50,Supported Group Care,Supported Group Care,http://opendatacommunities.org/id/county-council/staffordshire  ,
Staffordshire County Council,Stafford LD Team,Linfield Care Ltd,03/01/2018,2360.50,Supported Group Care,Supported Group Care,http://opendatacommunities.org/id/county-council/staffordshire  ,
Staffordshire County Council,Highways Development Control,AECOM Infrastructure & Env UK Ltd,03/01/2018,8612.12,CONSULTANT FEES,CONSULTANT FEES,http://opendatacommunities.org/id/county-council/staffordshire  ,
Staffordshire County Council,Scientific Services,Air Monitors Ltd,03/01/2018,528.00,Consumables,Consumables,http://opendatacommunities.org/id/county-council/staffordshire  ,
Staffordshire County Council,Public Transp Support & Co-ord,ARRIVA MIDLANDS LTD,03/01/2018,21569.74,Payments to Bus Operators,Payments to Bus Operators,http://opendatacommunities.org/id/county-council/staffordshire  ,
Staffordshire County Council,Case Manage Team -Central West,Atkinson Lewis,03/01/2018,926.40,Prev Supp Legal Costs,Prev Supp Legal Costs,http://opendatacommunities.org/id/county-council/staffordshire  ,
Staffordshire County Council,Independent School Fee Special,Aurora ASD Ltd T/A Aurora Hanley Sch,03/01/2018,17258.67,Fees to Independent Schools,Fees to Independent Schools,http://opendatacommunities.org/id/county-council/staffordshire  ,
Staffordshire County Council,Court & Care Plan - Lich/Can,Back Care Solution Ltd,03/01/2018,727.20,Purchase of Hardware,Purchase of Hardware,http://opendatacommunities.org/id/county-council/staffordshire  ,
Staffordshire County Council,Local Members Initiatives,Beaudesert Trust,03/01/2018,784.00,Local Member Initiative Scheme,Local Member Initiative Scheme,http://opendatacommunities.org/id/county-council/staffordshire  ,
Staffordshire County Council,Local Members Initiatives,Bignall End Cricket Club ,03/01/2018,500.00,Local Member Initiative Scheme,Local Member Initiative Scheme,http://opendatacommunities.org/id/county-council/staffordshire  ,
Staffordshire County Council,2 Contraception,BILBROOK MEDICAL CENTRE,03/01/2018,1330.60,OTHER HIRED SERVICES,OTHER HIRED SERVICES,http://opendatacommunities.org/id/county-council/staffordshire  ,
Staffordshire County Council,Growth Hub ERDF 2016-2019,BookWise Solutions Ltd,03/01/2018,2513.51,Grants Other,Grants Other,http://opendatacommunities.org/id/county-council/staffordshire  ,
Staffordshire County Council,Local Members Initiatives,Borderland Voices,03/01/2018,980.00,Local Member Initiative Scheme,Local Member Initiative Scheme,http://opendatacommunities.org/id/county-council/staffordshire  ,
Staffordshire County Council,2 Contraception,Brewood Medical Practice,03/01/2018,730.16,OTHER HIRED SERVICES,OTHER HIRED SERVICES,http://opendatacommunities.org/id/county-council/staffordshire  ,
Staffordshire County Council,Springfield School,,03/01/2018,833.33,Personal Travel Budgets,Personal Travel Budgets,http://opendatacommunities.org/id/county-council/staffordshire  ,
Staffordshire County Council,Stat-OOC transport,,03/01/2018,1720.00,Personal Travel Budgets,Personal Travel Budgets,http://opendatacommunities.org/id/county-council/staffordshire  ,
Staffordshire County Council,Childcare,C M H T Solicitors,03/01/2018,1748.16,Legal Costs and Stamp Duty,Legal Costs and Stamp Duty,http://opendatacommunities.org/id/county-council/staffordshire  ,
Staffordshire County Council,Statutory Recycling Credits,CANNOCK CHASE COUNCIL,03/01/2018,79283.03,Recycling Credits,Recycling Credits,http://opendatacommunities.org/id/county-council/staffordshire  ,
Staffordshire County Council,Learning Disabilities Unalloc,Care Monitoring 2000 Ltd,03/01/2018,28288.68,Practical Care,Practical Care,http://opendatacommunities.org/id/county-council/staffordshire  ,
Staffordshire County Council,Autism Care District Wide,CAS Learning Disabilities Midlands Ltd,03/01/2018,14142.90,RCSS Mental Disability -<65,RCSS Mental Disability -<65,http://opendatacommunities.org/id/county-council/staffordshire  ,
Staffordshire County Council,Public Transp Support & Co-ord,CEN GROUP LTD,03/01/2018,5204.68,Payments to Bus Operators,Payments to Bus Operators,http://opendatacommunities.org/id/county-council/staffordshire  ,
Staffordshire County Council,5438 Staffs Place 1&2Tipping S,CENTRAL GLASS & WINDOWS LTD,03/01/2018,8168.36,Planned Mechanical Services,Planned Mechanical Services,http://opendatacommunities.org/id/county-council/staffordshire  ,
Staffordshire County Council,Local Members Initiatives,Circle of Residents Association,03/01/2018,1151.00,Local Member Initiative Scheme,Local Member Initiative Scheme,http://opendatacommunities.org/id/county-council/staffordshire  ,
Staffordshire County Council,Cannock Chase LD Team,CREATIVE SUPPORT,03/01/2018,12569.76,Supported Group Care,Supported Group Care,http://opendatacommunities.org/id/county-council/staffordshire  ,
Staffordshire County Council,Chasetown Special School,D A R K Cars Ltd,03/01/2018,6838.34,Home School Contract Vehicles,Home School Contract Vehicles,http://opendatacommunities.org/id/county-council/staffordshire  ,
Staffordshire County Council,Stat-OOC transport,,03/01/2018,1125.00,Personal Travel Budgets,Personal Travel Budgets,http://opendatacommunities.org/id/county-council/staffordshire  ,
Staffordshire County Council,LEP Core,,03/01/2018,2388.30,Advertising,Advertising,http://opendatacommunities.org/id/county-council/staffordshire  ,
Staffordshire County Council,2 Contraception,Dr Wharton's Surgery,03/01/2018,783.76,OTHER HIRED SERVICES,OTHER HIRED SERVICES,http://opendatacommunities.org/id/county-council/staffordshire  ,
Staffordshire County Council,Concessionary Fare Schemes,E S P SYSTEX LTD,03/01/2018,7655.76,Printing General,Printing General,http://opendatacommunities.org/id/county-council/staffordshire  ,
Staffordshire County Council,Statutory Recycling Credits,EAST STAFFS BOROUGH COUNCIL,03/01/2018,98628.16,Recycling Credits,Recycling Credits,http://opendatacommunities.org/id/county-council/staffordshire  ,
Staffordshire County Council,Staffordshire Wood Fuel,EDWARD BILLINGTON & SON LTD,03/01/2018,1009.80,General Equipment Purchase,General Equipment Purchase,http://opendatacommunities.org/id/county-council/staffordshire  ,
Staffordshire County Council,Hollies Short Stay School,EMINENCE TRAVEL,03/01/2018,6115.36,Home School Contract Vehicles,Home School Contract Vehicles,http://opendatacommunities.org/id/county-council/staffordshire  ,
Staffordshire County Council,Integra,Entrust Support Services Ltd,03/01/2018,32143.20,Admin Clerical Prof Supn,Admin Clerical Prof Supn,http://opendatacommunities.org/id/county-council/staffordshire  ,
Staffordshire County Council,Stat-OOC transport,,03/01/2018,604.20,Personal Travel Budgets,Personal Travel Budgets,http://opendatacommunities.org/id/county-council/staffordshire  ,
Staffordshire County Council,Local Members Initiatives,Flagpole Express Limited,03/01/2018,764.40,Local Member Initiative Scheme,Local Member Initiative Scheme,http://opendatacommunities.org/id/county-council/staffordshire  ,
Staffordshire County Council,Local Members Initiatives,Freehay Village Hall,03/01/2018,600.00,Local Member Initiative Scheme,Local Member Initiative Scheme,http://opendatacommunities.org/id/county-council/staffordshire  ,
Staffordshire County Council,Local Members Initiatives,Friends of Mottey Meadows,03/01/2018,750.00,Local Member Initiative Scheme,Local Member Initiative Scheme,http://opendatacommunities.org/id/county-council/staffordshire  ,
Staffordshire County Council,Local Members Initiatives,GREAT WYRLEY PARISH COUNCIL,03/01/2018,792.00,Local Member Initiative Scheme,Local Member Initiative Scheme,http://opendatacommunities.org/id/county-council/staffordshire  ,
Staffordshire County Council,Saxon Hill School,,03/01/2018,532.00,Personal Travel Budgets,Personal Travel Budgets,http://opendatacommunities.org/id/county-council/staffordshire  ,
Staffordshire County Council,Rugeley Educational Endowments,Hart School,03/01/2018,8851.38,Educational Visits,Educational Visits,http://opendatacommunities.org/id/county-council/staffordshire  ,
Staffordshire County Council,B.R.F.C. - East Staffs,Harvey Girls,03/01/2018,2383.50,Project Activities,Project Activities,http://opendatacommunities.org/id/county-council/staffordshire  ,
Staffordshire County Council,Local Members Initiatives,Henry Chadwick Primary,03/01/2018,1000.00,Local Member Initiative Scheme,Local Member Initiative Scheme,http://opendatacommunities.org/id/county-council/staffordshire  ,
Staffordshire County Council,I54 Ses Ongoing Maintenance,i54 Management Company Ltd,03/01/2018,7169.40,Construction Works,Construction Works,http://opendatacommunities.org/id/county-council/staffordshire  ,
Staffordshire County Council,Contracts,ILT LEGAL SERVICES LIMITED,03/01/2018,575.16,AGENCY STAFF,AGENCY STAFF,http://opendatacommunities.org/id/county-council/staffordshire  ,
Staffordshire County Council,Museums,Innovation Displays Ltd,03/01/2018,3015.00,Project Activities,Project Activities,http://opendatacommunities.org/id/county-council/staffordshire  ,
Staffordshire County Council,Wightwick Hall School,,03/01/2018,505.22,Personal Travel Budgets,Personal Travel Budgets,http://opendatacommunities.org/id/county-council/staffordshire  ,
Staffordshire County Council,Stat-OOC transport,,03/01/2018,1056.40,Personal Travel Budgets,Personal Travel Budgets,http://opendatacommunities.org/id/county-council/staffordshire  ,
Staffordshire County Council,Organisational Development,John Blakey Ltd,03/01/2018,4370.76,EXTERNAL TRAINING,EXTERNAL TRAINING,http://opendatacommunities.org/id/county-council/staffordshire  ,
Staffordshire County Council,Stat-OOC transport,,03/01/2018,756.20,Personal Travel Budgets,Personal Travel Budgets,http://opendatacommunities.org/id/county-council/staffordshire  ,
Staffordshire County Council,Stat-OOC transport,,03/01/2018,779.00,Personal Travel Budgets,Personal Travel Budgets,http://opendatacommunities.org/id/county-council/staffordshire  ,
Staffordshire County Council,Merryfields School,,03/01/2018,505.40,Personal Travel Budgets,Personal Travel Budgets,http://opendatacommunities.org/id/county-council/staffordshire  ,
Staffordshire County Council,Practice Education Budget,KEELE UNIVERSITY,03/01/2018,1040.00,Courses,Courses,http://opendatacommunities.org/id/county-council/staffordshire  ,
Staffordshire County Council,Local Members Initiatives,Kidsgrove Sports Centre Community Group,03/01/2018,1000.00,Local Member Initiative Scheme,Local Member Initiative Scheme,http://opendatacommunities.org/id/county-council/staffordshire  ,
Staffordshire County Council,Local Members Initiatives,Kidsgrove Town Centre CIC,03/01/2018,1000.00,Local Member Initiative Scheme,Local Member Initiative Scheme,http://opendatacommunities.org/id/county-council/staffordshire  ,
Staffordshire County Council,Cherry Trees School,,03/01/2018,805.60,Personal Travel Budgets,Personal Travel Budgets,http://opendatacommunities.org/id/county-council/staffordshire  ,
Staffordshire County Council,0008 Stafford Ccent Faraday Ro,LANDYWOOD CONTRACT SERVICES,03/01/2018,540.00,Window Cleaning,Window Cleaning,http://opendatacommunities.org/id/county-council/staffordshire  ,
Staffordshire County Council,Statutory Recycling Credits,LICHFIELD DISTRICT COUNCIL,03/01/2018,99118.08,Recycling Credits,Recycling Credits,http://opendatacommunities.org/id/county-council/staffordshire  ,
Staffordshire County Council,Stat-OOC transport,,03/01/2018,556.00,Personal Travel Budgets,Personal Travel Budgets,http://opendatacommunities.org/id/county-council/staffordshire  ,
Staffordshire County Council,Uttoxeter Business Centre,M J B (DOVEFIELDS) LTD,03/01/2018,19500.00,Rent / Lease Of Premises,Rent / Lease Of Premises,http://opendatacommunities.org/id/county-council/staffordshire  ,
Staffordshire County Council,2 Contraception,MADELEY PRACTICE,03/01/2018,751.36,OTHER HIRED SERVICES,OTHER HIRED SERVICES,http://opendatacommunities.org/id/county-council/staffordshire  ,
Staffordshire County Council,RK24 Security-Server Support,N T A Monitor Ltd,03/01/2018,2610.00,PROFESSIONAL FEES,PROFESSIONAL FEES,http://opendatacommunities.org/id/county-council/staffordshire  ,
Staffordshire County Council,Arts Development General,NEW VIC THEATRE,03/01/2018,40000.00,Victoria Theatre,Victoria Theatre,http://opendatacommunities.org/id/county-council/staffordshire  ,
Staffordshire County Council,Statutory Recycling Credits,NEWCASTLE BOROUGH COUNCIL,03/01/2018,92410.88,Recycling Credits,Recycling Credits,http://opendatacommunities.org/id/county-council/staffordshire  ,
Staffordshire County Council,Local Members Initiatives,Newcastle Staffs Foodbank,03/01/2018,1000.00,Local Member Initiative Scheme,Local Member Initiative Scheme,http://opendatacommunities.org/id/county-council/staffordshire  ,
Staffordshire County Council,Local Members Initiatives,Newman Grove Allotment Holders,03/01/2018,1150.00,Local Member Initiative Scheme,Local Member Initiative Scheme,http://opendatacommunities.org/id/county-council/staffordshire  ,
Staffordshire County Council,SAP Archiving & Other Costs,O'Neil Software Ltd,03/01/2018,1094.04,SOFTWARE LICENCES,SOFTWARE LICENCES,http://opendatacommunities.org/id/county-council/staffordshire  ,
Staffordshire County Council,Stat-OOC transport,,03/01/2018,782.80,Personal Travel Budgets,Personal Travel Budgets,http://opendatacommunities.org/id/county-council/staffordshire  ,
Staffordshire County Council,Stat-OOC transport,,03/01/2018,665.00,Personal Travel Budgets,Personal Travel Budgets,http://opendatacommunities.org/id/county-council/staffordshire  ,
Staffordshire County Council,Local Members Initiatives,Rugeley Cricket Club,03/01/2018,500.00,Local Member Initiative Scheme,Local Member Initiative Scheme,http://opendatacommunities.org/id/county-council/staffordshire  ,
Staffordshire County Council,Local Members Initiatives,Rugeley Lotto,03/01/2018,750.00,Local Member Initiative Scheme,Local Member Initiative Scheme,http://opendatacommunities.org/id/county-council/staffordshire  ,
Staffordshire County Council,Local Members Initiatives,Rushton Speed Watch,03/01/2018,900.00,Local Member Initiative Scheme,Local Member Initiative Scheme,http://opendatacommunities.org/id/county-council/staffordshire  ,
Staffordshire County Council,SEND Reform Grant,S BROWN,03/01/2018,1750.00,CONSULTANT FEES,CONSULTANT FEES,http://opendatacommunities.org/id/county-council/staffordshire  ,
Staffordshire County Council,Stat-OOC transport,,03/01/2018,1567.50,Personal Travel Budgets,Personal Travel Budgets,http://opendatacommunities.org/id/county-council/staffordshire  ,
Staffordshire County Council,Chasetown Special School,,03/01/2018,726.68,Personal Travel Budgets,Personal Travel Budgets,http://opendatacommunities.org/id/county-council/staffordshire  ,
Staffordshire County Council,Walton Hall School,,03/01/2018,596.42,Personal Travel Budgets,Personal Travel Budgets,http://opendatacommunities.org/id/county-council/staffordshire  ,
Staffordshire County Council,Two Rivers Primary,,03/01/2018,528.20,Personal Travel Budgets,Personal Travel Budgets,http://opendatacommunities.org/id/county-council/staffordshire  ,
Staffordshire County Council,Stat-mst transport,,03/01/2018,900.42,Personal Travel Budgets,Personal Travel Budgets,http://opendatacommunities.org/id/county-council/staffordshire  ,
Staffordshire County Council,Home to college transport SEN,,03/01/2018,1094.40,Personal Travel Budgets,Personal Travel Budgets,http://opendatacommunities.org/id/county-council/staffordshire  ,
Staffordshire County Council,Local Members Initiatives,South East Staffordshire CAB,03/01/2018,900.00,Local Member Initiative Scheme,Local Member Initiative Scheme,http://opendatacommunities.org/id/county-council/staffordshire  ,
Staffordshire County Council,Statutory Recycling Credits,South Staffs District Council,03/01/2018,101096.53,Recycling Credits,Recycling Credits,http://opendatacommunities.org/id/county-council/staffordshire  ,
Staffordshire County Council,Local Members Initiatives,St John Ambulance Hednesford,03/01/2018,1000.00,Local Member Initiative Scheme,Local Member Initiative Scheme,http://opendatacommunities.org/id/county-council/staffordshire  ,
Staffordshire County Council,Statutory Recycling Credits,Stafford Borough Council,03/01/2018,117343.55,Recycling Credits,Recycling Credits,http://opendatacommunities.org/id/county-council/staffordshire  ,
Staffordshire County Council,Statutory Recycling Credits,STAFFORDSHIRE MOORLANDS DIS CNCL,03/01/2018,87516.29,Recycling Credits,Recycling Credits,http://opendatacommunities.org/id/county-council/staffordshire  ,
Staffordshire County Council,Physical Regeneration,Staffordshire Pest Control Ltd,03/01/2018,1040.00,Contract Grounds Maintenance,Contract Grounds Maintenance,http://opendatacommunities.org/id/county-council/staffordshire  ,
Staffordshire County Council,1 STI Test & Treat,Staffs & Stoke on Trent P'shp NHS Tr,03/01/2018,115399.08,OTHER HIRED SERVICES,OTHER HIRED SERVICES,http://opendatacommunities.org/id/county-council/staffordshire  ,
Staffordshire County Council,1 STI Test & Treat,Staffs & Stoke on Trent P'shp NHS Tr,03/01/2018,8729.00,OTHER HIRED SERVICES,OTHER HIRED SERVICES,http://opendatacommunities.org/id/county-council/staffordshire  ,
Staffordshire County Council,1 STI Test & Treat,Staffs & Stoke on Trent P'shp NHS Tr,03/01/2018,115399.08,OTHER HIRED SERVICES,OTHER HIRED SERVICES,http://opendatacommunities.org/id/county-council/staffordshire  ,
Staffordshire County Council,1 STI Test & Treat,Staffs & Stoke on Trent P'shp NHS Tr,03/01/2018,529.00,OTHER HIRED SERVICES,OTHER HIRED SERVICES,http://opendatacommunities.org/id/county-council/staffordshire  ,
Staffordshire County Council,1 STI Test & Treat,Staffs & Stoke on Trent P'shp NHS Tr,03/01/2018,8932.00,OTHER HIRED SERVICES,OTHER HIRED SERVICES,http://opendatacommunities.org/id/county-council/staffordshire  ,
Staffordshire County Council,2 Contraception,Staffs & Stoke on Trent P'shp NHS Tr,03/01/2018,2216.00,OTHER HIRED SERVICES,OTHER HIRED SERVICES,http://opendatacommunities.org/id/county-council/staffordshire  ,
Staffordshire County Council,Can/Lich Disability Team,STEVE'S CARS,03/01/2018,1016.00,S17 TRANSPORT,S17 TRANSPORT,http://opendatacommunities.org/id/county-council/staffordshire  ,
Staffordshire County Council,Local Members Initiatives,Sundown 2020,03/01/2018,500.00,Local Member Initiative Scheme,Local Member Initiative Scheme,http://opendatacommunities.org/id/county-council/staffordshire  ,
Staffordshire County Council,Stat-OOC transport,,03/01/2018,1098.20,Personal Travel Budgets,Personal Travel Budgets,http://opendatacommunities.org/id/county-council/staffordshire  ,
Staffordshire County Council,Stat-OOC transport,,03/01/2018,528.20,Personal Travel Budgets,Personal Travel Budgets,http://opendatacommunities.org/id/county-council/staffordshire  ,
Staffordshire County Council,Statutory Recycling Credits,TAMWORTH BOROUGH COUNCIL,03/01/2018,60452.75,Recycling Credits,Recycling Credits,http://opendatacommunities.org/id/county-council/staffordshire  ,
Staffordshire County Council,E Staffs LD Team,TAMWORTH TAXIS & PRIVATE HIRE LTD,03/01/2018,1440.00,Rental of Vehicles,Rental of Vehicles,http://opendatacommunities.org/id/county-council/staffordshire  ,
Staffordshire County Council,2 Contraception,The Langton Medical Group,03/01/2018,901.16,OTHER HIRED SERVICES,OTHER HIRED SERVICES,http://opendatacommunities.org/id/county-council/staffordshire  ,
Staffordshire County Council,Local Members Initiatives,TOWER PLAYERS,03/01/2018,2000.00,Local Member Initiative Scheme,Local Member Initiative Scheme,http://opendatacommunities.org/id/county-council/staffordshire  ,
Staffordshire County Council,Rocklands School,TRAVEL WOOD LIMITED,03/01/2018,48702.82,Home School Contract Vehicles,Home School Contract Vehicles,http://opendatacommunities.org/id/county-council/staffordshire  ,
Staffordshire County Council,Newc/Moor CIC Through Care Tm,TRENTHAM PROF'NAL RECRUITMENT LTD,03/01/2018,696.60,S17 CONTACT,S17 CONTACT,http://opendatacommunities.org/id/county-council/staffordshire  ,
Staffordshire County Council,Local Members Initiatives,Uttoxeter Juniors Football Club,03/01/2018,2806.08,Local Member Initiative Scheme,Local Member Initiative Scheme,http://opendatacommunities.org/id/county-council/staffordshire  ,
Staffordshire County Council,Local Members Initiatives,Vibe Academy,03/01/2018,500.00,Local Member Initiative Scheme,Local Member Initiative Scheme,http://opendatacommunities.org/id/county-council/staffordshire  ,
Staffordshire County Council,Stafford LD Team,WESTSIDE (STAFFORD) LTD,03/01/2018,4114.80,Rental of Vehicles,Rental of Vehicles,http://opendatacommunities.org/id/county-council/staffordshire  ,
Staffordshire County Council,Local Members Initiatives,Young at Heart Meir,03/01/2018,708.99,Local Member Initiative Scheme,Local Member Initiative Scheme,http://opendatacommunities.org/id/county-council/staffordshire  ,
Staffordshire County Council,Cannock Invoice Led Older Peop,ADVANCE HEALTHCARE,04/01/2018,507.08,Practical Care,Practical Care,http://opendatacommunities.org/id/county-council/staffordshire  ,
Staffordshire County Council,Lichfield Invoice Led Physi Di,Caremark,04/01/2018,689.66,Practical Care,Practical Care,http://opendatacommunities.org/id/county-council/staffordshire  ,
Staffordshire County Council,Cannock Invoice Led Older Peop,Caremark,04/01/2018,668.24,Practical Care,Practical Care,http://opendatacommunities.org/id/county-council/staffordshire  ,
Staffordshire County Council,East Staffs Invoice Led Older ,CJB Care Ltd,04/01/2018,2254.00,Practical Care,Practical Care,http://opendatacommunities.org/id/county-council/staffordshire  ,
Staffordshire County Council,Cannock Chase LD Team,D E Healthcare,04/01/2018,2178.75,Supported Group Care,Supported Group Care,http://opendatacommunities.org/id/county-council/staffordshire  ,
Staffordshire County Council,E Staffs LD Team,D E Healthcare,04/01/2018,3289.00,Supported Group Care,Supported Group Care,http://opendatacommunities.org/id/county-council/staffordshire  ,
Staffordshire County Council,East Staffs Invoice Led Phys D,Desire Care,04/01/2018,1320.20,Practical Care,Practical Care,http://opendatacommunities.org/id/county-council/staffordshire  ,
Staffordshire County Council,East Staffs Invoice Led Older ,Desire Care,04/01/2018,2297.68,Practical Care,Practical Care,http://opendatacommunities.org/id/county-council/staffordshire  ,
Staffordshire County Council,East Staffs Invoice Led Older ,Kind Hearts Care,04/01/2018,996.85,Practical Care,Practical Care,http://opendatacommunities.org/id/county-council/staffordshire  ,
Staffordshire County Council,SStaffs Invoice Led Older Peop,Midas Care Solutions Ltd,04/01/2018,507.15,Practical Care,Practical Care,http://opendatacommunities.org/id/county-council/staffordshire  ,
Staffordshire County Council,E Staffs LD Team,Orchard House,04/01/2018,3819.58,Supported Group Care,Supported Group Care,http://opendatacommunities.org/id/county-council/staffordshire  ,
Staffordshire County Council,Stafford Invoice Led Older Peo,Radfield Home Care,04/01/2018,663.60,Practical Care,Practical Care,http://opendatacommunities.org/id/county-council/staffordshire  ,
Staffordshire County Council,Stafford Invoice Led Older Peo,Radfield Home Care,04/01/2018,2248.00,Practical Care,Practical Care,http://opendatacommunities.org/id/county-council/staffordshire  ,
Staffordshire County Council,Cannock Invoice Led Older Peop,Rainbow Care Solutions,04/01/2018,2370.42,Practical Care,Practical Care,http://opendatacommunities.org/id/county-council/staffordshire  ,
Staffordshire County Council,Home to school transport-main,A D RUTTER,04/01/2018,2651.22,Home School Contract Vehicles,Home School Contract Vehicles,http://opendatacommunities.org/id/county-council/staffordshire  ,
Staffordshire County Council,Saxon Hill School,ABLE TAXIS,04/01/2018,7740.92,Home School Contract Vehicles,Home School Contract Vehicles,http://opendatacommunities.org/id/county-council/staffordshire  ,
Staffordshire County Council,Beecroft Hill School,ARJO UK LTD,04/01/2018,532.80,Service/Test Arjo/Closomats,Service/Test Arjo/Closomats,http://opendatacommunities.org/id/county-council/staffordshire  ,
Staffordshire County Council,1323 Hawthorn House WS13 6EN,ARJO UK LTD,04/01/2018,1361.93,Service/Test Arjo/Closomats,Service/Test Arjo/Closomats,http://opendatacommunities.org/id/county-council/staffordshire  ,
Staffordshire County Council,Cannock Resource Centre,ARJO UK LTD,04/01/2018,1038.77,Service/Test Arjo/Closomats,Service/Test Arjo/Closomats,http://opendatacommunities.org/id/county-council/staffordshire  ,
Staffordshire County Council,Stafford Local Support Teams,Atlantic Office Trading Ltd,04/01/2018,861.00,Furniture & Bedding,Furniture & Bedding,http://opendatacommunities.org/id/county-council/staffordshire  ,
Staffordshire County Council,5438 Staffs Place 1&2Tipping S,BID,04/01/2018,624.00,Service/Test Controlled Access,Service/Test Controlled Access,http://opendatacommunities.org/id/county-council/staffordshire  ,
Staffordshire County Council,Asset Renewal  - Maint Work 04,BOURNE ELECTRICAL CONTR LTD,04/01/2018,575.29,Construction Works,Construction Works,http://opendatacommunities.org/id/county-council/staffordshire  ,
Staffordshire County Council,Assisted Technology,Canary Care Limited,04/01/2018,828.00,Social Aids Purchase,Social Aids Purchase,http://opendatacommunities.org/id/county-council/staffordshire  ,
Staffordshire County Council,Lichfield LD Team,CHERRY ORCHARD GARDEN SERVICES,04/01/2018,735.00,Day Care,Day Care,http://opendatacommunities.org/id/county-council/staffordshire  ,
Staffordshire County Council,Lichfield LD Team,CHERRY ORCHARD GARDEN SERVICES,04/01/2018,560.00,Day Care,Day Care,http://opendatacommunities.org/id/county-council/staffordshire  ,
Staffordshire County Council,Lichfield LD Team,CHERRY ORCHARD GARDEN SERVICES,04/01/2018,960.00,Day Care,Day Care,http://opendatacommunities.org/id/county-council/staffordshire  ,
Staffordshire County Council,Public Transp Support & Co-ord,COMMUNITY TRANSPORT,04/01/2018,13559.70,Payments to Bus Operators,Payments to Bus Operators,http://opendatacommunities.org/id/county-council/staffordshire  ,
Staffordshire County Council,Public Transp Support & Co-ord,COMMUNITY TRANSPORT,04/01/2018,13558.50,Payments to Bus Operators,Payments to Bus Operators,http://opendatacommunities.org/id/county-council/staffordshire  ,
Staffordshire County Council,Stat-mst transport,,04/01/2018,633.33,Personal Travel Budgets,Personal Travel Budgets,http://opendatacommunities.org/id/county-council/staffordshire  ,
Staffordshire County Council,On-Street Parking Back Office,Dukes Bailiff,04/01/2018,749.99,OTHER HIRED SERVICES,OTHER HIRED SERVICES,http://opendatacommunities.org/id/county-council/staffordshire  ,
Staffordshire County Council,Staffordshire Wood Fuel,EDWARD BILLINGTON & SON LTD,04/01/2018,823.68,General Equipment Purchase,General Equipment Purchase,http://opendatacommunities.org/id/county-council/staffordshire  ,
Staffordshire County Council,Staffordshire Wood Fuel,EDWARD BILLINGTON & SON LTD,04/01/2018,1004.40,General Equipment Purchase,General Equipment Purchase,http://opendatacommunities.org/id/county-council/staffordshire  ,
Staffordshire County Council,Hugo Meynell Primary,EDWARD BILLINGTON & SON LTD,04/01/2018,1036.80,Wood Chip,Wood Chip,http://opendatacommunities.org/id/county-council/staffordshire  ,
Staffordshire County Council,Reimbursement Entrust,Entrust Support Services Ltd,04/01/2018,2119.04,Partnership - Unallocated,Partnership - Unallocated,http://opendatacommunities.org/id/county-council/staffordshire  ,
Staffordshire County Council,The Alders,ESPO,04/01/2018,924.00,Furniture & Bedding,Furniture & Bedding,http://opendatacommunities.org/id/county-council/staffordshire  ,
Staffordshire County Council,Wightwick Hall School,J TOMLINSON LTD,04/01/2018,523.57,Service/Test Gas / Oil Boiler,Service/Test Gas / Oil Boiler,http://opendatacommunities.org/id/county-council/staffordshire  ,
Staffordshire County Council,KCOM - MAN & Tipping St,KCom Group PLC,04/01/2018,159964.69,HARDWARE MAINTENANCE,HARDWARE MAINTENANCE,http://opendatacommunities.org/id/county-council/staffordshire  ,
Staffordshire County Council,MCA / DoLs / AMHP,Lesley Ratcliffe Ltd,04/01/2018,533.76,Independent Investigations,Independent Investigations,http://opendatacommunities.org/id/county-council/staffordshire  ,
Staffordshire County Council,7396 Fam First Throughcare New,Marsons Garages (Wolstanton) Ltd,04/01/2018,787.12,Rent / Lease Of Premises,Rent / Lease Of Premises,http://opendatacommunities.org/id/county-council/staffordshire  ,
Staffordshire County Council,Waterside Court Enterprise Cen,MIDLAND CONTROL SYSTEMS,04/01/2018,874.80,General Equipment Repair/Maint,General Equipment Repair/Maint,http://opendatacommunities.org/id/county-council/staffordshire  ,
Staffordshire County Council,0933 Baswich Library Lynton Av,MIDLAND ROOFING SERVICES DERBY LTD,04/01/2018,1591.20,Day toDay Internal Decoration,Day toDay Internal Decoration,http://opendatacommunities.org/id/county-council/staffordshire  ,
Staffordshire County Council,Tillington Manor - Roofs,MIDLAND ROOFING SERVICES DERBY LTD,04/01/2018,12796.80,Construction Works,Construction Works,http://opendatacommunities.org/id/county-council/staffordshire  ,
Staffordshire County Council,CAMHS Mental Health Grant,MIDLANDS PSYCHOLOGY,04/01/2018,10000.00,Sure Start Project 3,Sure Start Project 3,http://opendatacommunities.org/id/county-council/staffordshire  ,
Staffordshire County Council,Rykneld Primary School,MITIE TECH FACILITIES MGMNT LTD,04/01/2018,1165.67,Service/Test Air-conditioning,Service/Test Air-conditioning,http://opendatacommunities.org/id/county-council/staffordshire  ,
Staffordshire County Council,Millfield Primary School,MITIE TECH FACILITIES MGMNT LTD,04/01/2018,2335.68,Service/Test Air-conditioning,Service/Test Air-conditioning,http://opendatacommunities.org/id/county-council/staffordshire  ,
Staffordshire County Council,Gorsemoor Primary School,MITIE TECH FACILITIES MGMNT LTD,04/01/2018,934.27,Service/Test Air-conditioning,Service/Test Air-conditioning,http://opendatacommunities.org/id/county-council/staffordshire  ,
Staffordshire County Council,Castlechurch Primary School,MITIE TECH FACILITIES MGMNT LTD,04/01/2018,778.56,Service/Test Air-conditioning,Service/Test Air-conditioning,http://opendatacommunities.org/id/county-council/staffordshire  ,
Staffordshire County Council,Blythe Bridge High School,MITIE TECH FACILITIES MGMNT LTD,04/01/2018,1256.51,Service/Test Air-conditioning,Service/Test Air-conditioning,http://opendatacommunities.org/id/county-council/staffordshire  ,
Staffordshire County Council,Codsall Community High School,MITIE TECH FACILITIES MGMNT LTD,04/01/2018,1444.66,Service/Test Air-conditioning,Service/Test Air-conditioning,http://opendatacommunities.org/id/county-council/staffordshire  ,
Staffordshire County Council,Cheslyn Hay High School,MITIE TECH FACILITIES MGMNT LTD,04/01/2018,1189.46,Service/Test Air-conditioning,Service/Test Air-conditioning,http://opendatacommunities.org/id/county-council/staffordshire  ,
Staffordshire County Council,The Friary School,MITIE TECH FACILITIES MGMNT LTD,04/01/2018,3066.65,Service/Test Air-conditioning,Service/Test Air-conditioning,http://opendatacommunities.org/id/county-council/staffordshire  ,
Staffordshire County Council,Great Wyrley High School,MITIE TECH FACILITIES MGMNT LTD,04/01/2018,1868.54,Service/Test Air-conditioning,Service/Test Air-conditioning,http://opendatacommunities.org/id/county-council/staffordshire  ,
Staffordshire County Council,Stretton Brook School,MITIE TECH FACILITIES MGMNT LTD,04/01/2018,622.85,Service/Test Air-conditioning,Service/Test Air-conditioning,http://opendatacommunities.org/id/county-council/staffordshire  ,
Staffordshire County Council,Penkridge Middle School,MITIE TECH FACILITIES MGMNT LTD,04/01/2018,682.85,Service/Test Air-conditioning,Service/Test Air-conditioning,http://opendatacommunities.org/id/county-council/staffordshire  ,
Staffordshire County Council,0916 Newcastle Library Ironmar,MITIE TECH FACILITIES MGMNT LTD,04/01/2018,1267.32,Service/Test Air-conditioning,Service/Test Air-conditioning,http://opendatacommunities.org/id/county-council/staffordshire  ,
Staffordshire County Council,"0838 Walton Block D, Martin St",MITIE TECH FACILITIES MGMNT LTD,04/01/2018,1634.98,Service/Test Air-conditioning,Service/Test Air-conditioning,http://opendatacommunities.org/id/county-council/staffordshire  ,
Staffordshire County Council,0837 Peel Block C St Chads Pla,MITIE TECH FACILITIES MGMNT LTD,04/01/2018,1578.74,Service/Test Air-conditioning,Service/Test Air-conditioning,http://opendatacommunities.org/id/county-council/staffordshire  ,
Staffordshire County Council,4696 EastStaffCCent248-57Water,MITIE TECH FACILITIES MGMNT LTD,04/01/2018,2102.11,Service/Test Air-conditioning,Service/Test Air-conditioning,http://opendatacommunities.org/id/county-council/staffordshire  ,
Staffordshire County Council,7171 4 Astonfields ST16 3DX,MITIE TECH FACILITIES MGMNT LTD,04/01/2018,1557.12,Service/Test Air-conditioning,Service/Test Air-conditioning,http://opendatacommunities.org/id/county-council/staffordshire  ,
Staffordshire County Council,Codsall Community High School,MITIE TECH FACILITIES MGMNT LTD,04/01/2018,1868.54,Service/Test Air-conditioning,Service/Test Air-conditioning,http://opendatacommunities.org/id/county-council/staffordshire  ,
Staffordshire County Council,Training,Momentum People Ltd,04/01/2018,918.90,Courses,Courses,http://opendatacommunities.org/id/county-council/staffordshire  ,
Staffordshire County Council,Virtual School - Pupil Premium,NATIONAL TEACHING ADVISORY SERVI,04/01/2018,989.40,OTHER ALLOWANCES,OTHER ALLOWANCES,http://opendatacommunities.org/id/county-council/staffordshire  ,
Staffordshire County Council,Westwood  School,NOVUS PROPERTY SOLS LTD,04/01/2018,1893.42,Construction Works,Construction Works,http://opendatacommunities.org/id/county-council/staffordshire  ,
Staffordshire County Council,Independent School Fee Special,PACE EDUCATION,04/01/2018,11798.00,Fees to Independent Schools,Fees to Independent Schools,http://opendatacommunities.org/id/county-council/staffordshire  ,
Staffordshire County Council,Independent School Fee Special,PACE EDUCATION,04/01/2018,28037.60,Fees to Independent Schools,Fees to Independent Schools,http://opendatacommunities.org/id/county-council/staffordshire  ,
Staffordshire County Council,Richard Wakefield Primary Boil,PLUMBING & HEATING SERVS (STAFFS) LTD,04/01/2018,30858.00,Construction Works,Construction Works,http://opendatacommunities.org/id/county-council/staffordshire  ,
Staffordshire County Council,Speed Awareness,R BROWN,04/01/2018,612.50,DRIVING INSTRUCTION,DRIVING INSTRUCTION,http://opendatacommunities.org/id/county-council/staffordshire  ,
Staffordshire County Council,Lymedale West Business Centre,Roger Little(North West) Ltd,04/01/2018,1020.00,WASTE COLLECTION,WASTE COLLECTION,http://opendatacommunities.org/id/county-council/staffordshire  ,
Staffordshire County Council,Libraries Opportunities for Ev,S Smallman,04/01/2018,1000.00,General Grants,General Grants,http://opendatacommunities.org/id/county-council/staffordshire  ,
Staffordshire County Council,BRFC - Central,Sickle Cell & Thalassaemia Spprt Prj,04/01/2018,1780.00,Project Activities,Project Activities,http://opendatacommunities.org/id/county-council/staffordshire  ,
Staffordshire County Council,Christ Church Infants School,SPEED ELECTRIC SERVICE (SOT) LTD,04/01/2018,4292.57,Service/Test Fixed Electrical,Service/Test Fixed Electrical,http://opendatacommunities.org/id/county-council/staffordshire  ,
Staffordshire County Council,William Shrewsbury Primary Sch,SPEED ELECTRIC SERVICE (SOT) LTD,04/01/2018,3466.37,Service/Test Fixed Electrical,Service/Test Fixed Electrical,http://opendatacommunities.org/id/county-council/staffordshire  ,
Staffordshire County Council,Springcroft Primary School,SPEED ELECTRIC SERVICE (SOT) LTD,04/01/2018,1685.88,Service/Test Fixed Electrical,Service/Test Fixed Electrical,http://opendatacommunities.org/id/county-council/staffordshire  ,
Staffordshire County Council,Charnwood Primary School,SPEED ELECTRIC SERVICE (SOT) LTD,04/01/2018,1770.30,Service/Test Fixed Electrical,Service/Test Fixed Electrical,http://opendatacommunities.org/id/county-council/staffordshire  ,
Staffordshire County Council,Doxey Primary School,SPEED ELECTRIC SERVICE (SOT) LTD,04/01/2018,2473.38,Service/Test Fixed Electrical,Service/Test Fixed Electrical,http://opendatacommunities.org/id/county-council/staffordshire  ,
Staffordshire County Council,St Mary & St Chad CE(C) First,SPEED ELECTRIC SERVICE (SOT) LTD,04/01/2018,1341.90,Service/Test Fixed Electrical,Service/Test Fixed Electrical,http://opendatacommunities.org/id/county-council/staffordshire  ,
Staffordshire County Council,Betley CE(C) Primary School,SPEED ELECTRIC SERVICE (SOT) LTD,04/01/2018,712.70,Service/Test Fixed Electrical,Service/Test Fixed Electrical,http://opendatacommunities.org/id/county-council/staffordshire  ,
Staffordshire County Council,St. Christopher's Catholic Pri,SPEED ELECTRIC SERVICE (SOT) LTD,04/01/2018,1811.88,Service/Test Fixed Electrical,Service/Test Fixed Electrical,http://opendatacommunities.org/id/county-council/staffordshire  ,
Staffordshire County Council,St Michael's CE(C) First Stone,SPEED ELECTRIC SERVICE (SOT) LTD,04/01/2018,2138.22,Service/Test Fixed Electrical,Service/Test Fixed Electrical,http://opendatacommunities.org/id/county-council/staffordshire  ,
Staffordshire County Council,Edge Hill Junior School,SPEED ELECTRIC SERVICE (SOT) LTD,04/01/2018,3053.88,Service/Test Fixed Electrical,Service/Test Fixed Electrical,http://opendatacommunities.org/id/county-council/staffordshire  ,
Staffordshire County Council,DFG Project,STAFFORDSHIRE HOUSING ASSN LTD,04/01/2018,40461.54,Home Improvement,Home Improvement,http://opendatacommunities.org/id/county-council/staffordshire  ,
Staffordshire County Council,2 Contraception,Staffs & Stoke on Trent P'shp NHS Tr,04/01/2018,115399.08,OTHER HIRED SERVICES,OTHER HIRED SERVICES,http://opendatacommunities.org/id/county-council/staffordshire  ,
Staffordshire County Council,Independent School Fee Special,The Haven Wolverhampton,04/01/2018,80000.00,Fees to Independent Schools,Fees to Independent Schools,http://opendatacommunities.org/id/county-council/staffordshire  ,
Staffordshire County Council,BRFC - Central,Train To Equip Sue Rastall Ltd,04/01/2018,2125.20,EXTERNAL TRAINING,EXTERNAL TRAINING,http://opendatacommunities.org/id/county-council/staffordshire  ,
Staffordshire County Council,Nexxus,VoiSis Limited,04/01/2018,3010.73,Subscriptions General,Subscriptions General,http://opendatacommunities.org/id/county-council/staffordshire  ,
Staffordshire County Council,MCA / DoLs / AMHP,Warburton-Scott Ltd,04/01/2018,512.85,Independent Investigations,Independent Investigations,http://opendatacommunities.org/id/county-council/staffordshire  ,
Staffordshire County Council,Equipment Maintenance SET,WESSEX LIFT CO LTD,04/01/2018,4200.00,Servicing Equipment Purchase,Servicing Equipment Purchase,http://opendatacommunities.org/id/county-council/staffordshire  ,
Staffordshire County Council,Equipment Maintenance SET,WESSEX LIFT CO LTD,04/01/2018,1680.00,Servicing Equipment Purchase,Servicing Equipment Purchase,http://opendatacommunities.org/id/county-council/staffordshire  ,
Staffordshire County Council,Equipment Maintenance SET,WESSEX LIFT CO LTD,04/01/2018,900.00,Servicing Equipment Purchase,Servicing Equipment Purchase,http://opendatacommunities.org/id/county-council/staffordshire  ,
Staffordshire County Council,Cannock Invoice Led Older Peop,ADVANCE HEALTHCARE,05/01/2018,507.08,Practical Care,Practical Care,http://opendatacommunities.org/id/county-council/staffordshire  ,
Staffordshire County Council,Cannock Invoice Led Older Peop,ADVANCE HEALTHCARE,05/01/2018,507.08,Practical Care,Practical Care,http://opendatacommunities.org/id/county-council/staffordshire  ,
Staffordshire County Council,Cannock Invoice Led Older Peop,ADVANCE HEALTHCARE,05/01/2018,507.08,Practical Care,Practical Care,http://opendatacommunities.org/id/county-council/staffordshire  ,
Staffordshire County Council,Stafford LD Team,CC Support,05/01/2018,846.25,Practical Care,Practical Care,http://opendatacommunities.org/id/county-council/staffordshire  ,
Staffordshire County Council,Moorlands MH Team U65,Creative Support,05/01/2018,673.74,Supported Group Care,Supported Group Care,http://opendatacommunities.org/id/county-council/staffordshire  ,
Staffordshire County Council,Moorlands MH Team U65,Creative Support Ltd,05/01/2018,673.74,Supported Group Care,Supported Group Care,http://opendatacommunities.org/id/county-council/staffordshire  ,
Staffordshire County Council,Newc OP - South,Extra Care Charitable Trust,05/01/2018,8050.98,Practical Care,Practical Care,http://opendatacommunities.org/id/county-council/staffordshire  ,
Staffordshire County Council,S Staffs LD Team,Home Instead Senior Care E Shrops,05/01/2018,789.80,Practical Care,Practical Care,http://opendatacommunities.org/id/county-council/staffordshire  ,
Staffordshire County Council,Cannock Chase LD Team,Lifestyle Sup Ltd T/A Bluebird Care,05/01/2018,4011.98,Practical Care,Practical Care,http://opendatacommunities.org/id/county-council/staffordshire  ,
Staffordshire County Council,Stafford LD Team,Linfield Care Ltd,05/01/2018,4005.00,Supported Group Care,Supported Group Care,http://opendatacommunities.org/id/county-council/staffordshire  ,
Staffordshire County Council,Cannock Invoice Led Older Peop,Midas Care Solutions Ltd,05/01/2018,507.15,Practical Care,Practical Care,http://opendatacommunities.org/id/county-council/staffordshire  ,
Staffordshire County Council,Court & Care Plan - Burton/Tam,5 TEN CONTRACTS LTD,05/01/2018,530.40,S17 TRANSPORT,S17 TRANSPORT,http://opendatacommunities.org/id/county-council/staffordshire  ,
Staffordshire County Council,Growth Hub ERDF 2016-2019,ABACUS TRAINING,05/01/2018,739.72,Grants Other,Grants Other,http://opendatacommunities.org/id/county-council/staffordshire  ,
Staffordshire County Council,2 Contraception,ALREWAS SURGERY,05/01/2018,810.96,OTHER HIRED SERVICES,OTHER HIRED SERVICES,http://opendatacommunities.org/id/county-council/staffordshire  ,
Staffordshire County Council,Blake Valley-Academy,BALFOUR  BEATTY CONSTR NORTHERN LTD,05/01/2018,10091.69,Construction Works,Construction Works,http://opendatacommunities.org/id/county-council/staffordshire  ,
Staffordshire County Council,Childcare,C THOMPSON,05/01/2018,2160.00,Legal Costs and Stamp Duty,Legal Costs and Stamp Duty,http://opendatacommunities.org/id/county-council/staffordshire  ,
Staffordshire County Council,"1378 Old House Lichfield, WS13",CHUBB FIRE & SECURITY LTD,05/01/2018,585.00,Service/Test Intruder Alarms,Service/Test Intruder Alarms,http://opendatacommunities.org/id/county-council/staffordshire  ,
Staffordshire County Council,County,COACH-AID,05/01/2018,2619.98,CFC Purchase of Stock,CFC Purchase of Stock,http://opendatacommunities.org/id/county-council/staffordshire  ,
Staffordshire County Council,SCC Balance Sheet,Comensura Ltd,05/01/2018,58587.38,AGENCY STAFF,AGENCY STAFF,http://opendatacommunities.org/id/county-council/staffordshire  ,
Staffordshire County Council,Cannock Chase LD Team,Creative Choices CIC,05/01/2018,550.00,Day Care,Day Care,http://opendatacommunities.org/id/county-council/staffordshire  ,
Staffordshire County Council,Workforce Wellbeing Strategy,CTC PHYSIOTHERAPY,05/01/2018,4240.00,CONSULTANT FEES,CONSULTANT FEES,http://opendatacommunities.org/id/county-council/staffordshire  ,
Staffordshire County Council,Regeneration Leader Grant,D Banks,05/01/2018,560.00,Advertising,Advertising,http://opendatacommunities.org/id/county-council/staffordshire  ,
Staffordshire County Council,2 Contraception,Dr Sellens & Partners,05/01/2018,1037.60,OTHER HIRED SERVICES,OTHER HIRED SERVICES,http://opendatacommunities.org/id/county-council/staffordshire  ,
Staffordshire County Council,ERDF Low Carbon Bus Evol Prog,E M S Industries Ltd,05/01/2018,8746.28,Grants to third parties,Grants to third parties,http://opendatacommunities.org/id/county-council/staffordshire  ,
Staffordshire County Council,PAYG Entrust Serv to Schools,Entrust Support Services Ltd,05/01/2018,7396.01,Partnership - Unallocated,Partnership - Unallocated,http://opendatacommunities.org/id/county-council/staffordshire  ,
Staffordshire County Council,Contract Entrust SLA ServtoSch,Entrust Support Services Ltd,05/01/2018,3183.64,Partnership - Unallocated,Partnership - Unallocated,http://opendatacommunities.org/id/county-council/staffordshire  ,
Staffordshire County Council,Abcd Relocation Project,G EVANS (SERVICES) LTD,05/01/2018,105873.12,Construction Works,Construction Works,http://opendatacommunities.org/id/county-council/staffordshire  ,
Staffordshire County Council,Stock Suspense Account,GOODYEAR DUNLOP TYRES UK LTD,05/01/2018,4902.96,CFC Purchase of Stock,CFC Purchase of Stock,http://opendatacommunities.org/id/county-council/staffordshire  ,
Staffordshire County Council,15 Servs & Interven,ICE/AVI Ltd,05/01/2018,7016.40,OTHER HIRED SERVICES,OTHER HIRED SERVICES,http://opendatacommunities.org/id/county-council/staffordshire  ,
Staffordshire County Council,Newc/Moor CIC Through Care Tm,J B Carpets,05/01/2018,555.00,Prev Supp Leaving Care Weekly,Prev Supp Leaving Care Weekly,http://opendatacommunities.org/id/county-council/staffordshire  ,
Staffordshire County Council,Speech and Language/O Therapy,K Geary,05/01/2018,1075.00,OTHER HIRED SERVICES,OTHER HIRED SERVICES,http://opendatacommunities.org/id/county-council/staffordshire  ,
Staffordshire County Council,2 Contraception,Loomer Road Surgery,05/01/2018,1185.60,OTHER HIRED SERVICES,OTHER HIRED SERVICES,http://opendatacommunities.org/id/county-council/staffordshire  ,
Staffordshire County Council,Assett Renewal - Various Estab,M W CRIPWELL LTD,05/01/2018,1431.59,Construction Works,Construction Works,http://opendatacommunities.org/id/county-council/staffordshire  ,
Staffordshire County Council,Learning Disabilities Unalloc,Midland Heart Ltd,05/01/2018,716.08,RCLS Mental Disorder >65 V Dep,RCLS Mental Disorder >65 V Dep,http://opendatacommunities.org/id/county-council/staffordshire  ,
Staffordshire County Council,0944 Cannock Library Manor Ave,MITIE TECH FACILITIES MGMNT LTD,05/01/2018,7137.00,Planned Mechanical Services,Planned Mechanical Services,http://opendatacommunities.org/id/county-council/staffordshire  ,
Staffordshire County Council,1 STI Test & Treat,Nottingham University Hosp NHS Trust,05/01/2018,952.03,OTHER HIRED SERVICES,OTHER HIRED SERVICES,http://opendatacommunities.org/id/county-council/staffordshire  ,
Staffordshire County Council,"0821 17 Eastgate St, Stafford,",NOVUS PROPERTY SOLS LTD,05/01/2018,5221.32,Planned Budget Only,Planned Budget Only,http://opendatacommunities.org/id/county-council/staffordshire  ,
Staffordshire County Council,Lymedale West Business Centre,NPOWER,05/01/2018,2192.58,Electricity,Electricity,http://opendatacommunities.org/id/county-council/staffordshire  ,
Staffordshire County Council,Silverdale Enterprise Centre,NPOWER,05/01/2018,582.19,Electricity,Electricity,http://opendatacommunities.org/id/county-council/staffordshire  ,
Staffordshire County Council,Silverdale Enterprise Centre,NPOWER,05/01/2018,527.69,Electricity,Electricity,http://opendatacommunities.org/id/county-council/staffordshire  ,
Staffordshire County Council,Pooled Accom Central Charges,NPOWER,05/01/2018,80268.91,Electricity,Electricity,http://opendatacommunities.org/id/county-council/staffordshire  ,
Staffordshire County Council,St Albans House Enterprise Cen,NPOWER,05/01/2018,1099.68,Electricity,Electricity,http://opendatacommunities.org/id/county-council/staffordshire  ,
Staffordshire County Council,Cannock Enterprise Centre,NPOWER,05/01/2018,6380.29,Electricity,Electricity,http://opendatacommunities.org/id/county-council/staffordshire  ,
Staffordshire County Council,Nexxus,Perkbox Limited,05/01/2018,5875.20,Subscriptions General,Subscriptions General,http://opendatacommunities.org/id/county-council/staffordshire  ,
Staffordshire County Council,New House Farm Stone Road,R D Roofing Llp,05/01/2018,1104.00,General Equipment Repair/Maint,General Equipment Repair/Maint,http://opendatacommunities.org/id/county-council/staffordshire  ,
Staffordshire County Council,Birchall Farm Esnon Lane,R D Roofing Llp,05/01/2018,2673.60,General Equipment Repair/Maint,General Equipment Repair/Maint,http://opendatacommunities.org/id/county-council/staffordshire  ,
Staffordshire County Council,Speed Awareness,R JOHNSON,05/01/2018,735.00,DRIVING INSTRUCTION,DRIVING INSTRUCTION,http://opendatacommunities.org/id/county-council/staffordshire  ,
Staffordshire County Council,Other Corporate Items,RAIL SETTLEMENT PLAN LTD,05/01/2018,4207.15,Public Transport Other,Public Transport Other,http://opendatacommunities.org/id/county-council/staffordshire  ,
Staffordshire County Council,Other Corporate Items,RAIL SETTLEMENT PLAN LTD,05/01/2018,3861.30,Public Transport Other,Public Transport Other,http://opendatacommunities.org/id/county-council/staffordshire  ,
Staffordshire County Council,Stock Suspense Account,ROANZA LTD,05/01/2018,1079.33,CFC Purchase of Stock,CFC Purchase of Stock,http://opendatacommunities.org/id/county-council/staffordshire  ,
Staffordshire County Council,Queen's Croft Community School,Sandhu Taxi Service,05/01/2018,2680.04,Home School Contract Vehicles,Home School Contract Vehicles,http://opendatacommunities.org/id/county-council/staffordshire  ,
Staffordshire County Council,Moorlands Children's Centre,Soccer Lions Northstaffs,05/01/2018,10430.00,Grants to third parties,Grants to third parties,http://opendatacommunities.org/id/county-council/staffordshire  ,
Staffordshire County Council,Central Winter Maintenance Wor,S-O-T Mobile Link Ltd,05/01/2018,661.54,Radios,Radios,http://opendatacommunities.org/id/county-council/staffordshire  ,
Staffordshire County Council,Cannock Enterprise Centre,SOUTH STAFFORDSHIRE WATER PLC,05/01/2018,1223.85,Water & Sewerage,Water & Sewerage,http://opendatacommunities.org/id/county-council/staffordshire  ,
Staffordshire County Council,Pupil Premium Grant,St Augustine's Catholic Primary School,05/01/2018,500.00,Grants to third parties,Grants to third parties,http://opendatacommunities.org/id/county-council/staffordshire  ,
Staffordshire County Council,Pupil Premium Grant,St Pauls CofE Aided Primary School,05/01/2018,500.00,Grants to third parties,Grants to third parties,http://opendatacommunities.org/id/county-council/staffordshire  ,
Staffordshire County Council,2 Contraception,Staffs & Stoke on Trent P'shp NHS Tr,05/01/2018,12000.00,OTHER HIRED SERVICES,OTHER HIRED SERVICES,http://opendatacommunities.org/id/county-council/staffordshire  ,
Staffordshire County Council,Pupil Premium Grant,Stowe Heath Primary School,05/01/2018,500.00,Grants to third parties,Grants to third parties,http://opendatacommunities.org/id/county-council/staffordshire  ,
Staffordshire County Council,SWS MH Team U65,Supported Homes Ltd,05/01/2018,3712.72,Supported Group Care,Supported Group Care,http://opendatacommunities.org/id/county-council/staffordshire  ,
Staffordshire County Council,SWS MH Team U65,Supported Homes Ltd,05/01/2018,3034.00,Supported Group Care,Supported Group Care,http://opendatacommunities.org/id/county-council/staffordshire  ,
Staffordshire County Council,SWS MH Team U65,Supported Homes Ltd,05/01/2018,3902.00,Supported Group Care,Supported Group Care,http://opendatacommunities.org/id/county-council/staffordshire  ,
Staffordshire County Council,SWS MH Team U65,Supported Homes Ltd,05/01/2018,2600.36,Supported Group Care,Supported Group Care,http://opendatacommunities.org/id/county-council/staffordshire  ,
Staffordshire County Council,SWS MH Team U65,Supported Homes Ltd,05/01/2018,3619.00,Supported Group Care,Supported Group Care,http://opendatacommunities.org/id/county-council/staffordshire  ,
Staffordshire County Council,E Staffs MH Team U65,Supported Homes Ltd,05/01/2018,3038.20,Supported Group Care,Supported Group Care,http://opendatacommunities.org/id/county-council/staffordshire  ,
Staffordshire County Council,Concessionary Fare Schemes,Systra Ltd,05/01/2018,1401.20,OTHER HIRED SERVICES,OTHER HIRED SERVICES,http://opendatacommunities.org/id/county-council/staffordshire  ,
Staffordshire County Council,Can/Lich Disability Team,THORNBURY NURSING SERVICES,05/01/2018,1715.11,S17 FAMILY SUPPORT,S17 FAMILY SUPPORT,http://opendatacommunities.org/id/county-council/staffordshire  ,
Staffordshire County Council,E Staffs MH Team,Together for Mental Wellbeing,05/01/2018,93938.75,Day Care,Day Care,http://opendatacommunities.org/id/county-council/staffordshire  ,
Staffordshire County Council,Newc/Moor CIC Through Care Tm,TRENTHAM PROF'NAL RECRUITMENT LTD,05/01/2018,610.90,S17 CONTACT,S17 CONTACT,http://opendatacommunities.org/id/county-council/staffordshire  ,
Staffordshire County Council,Equipment Maintenance SET,WESSEX LIFT CO LTD,05/01/2018,1200.00,General Equipment Purchase,General Equipment Purchase,http://opendatacommunities.org/id/county-council/staffordshire  ,
Staffordshire County Council,Equipment Maintenance SET,WESSEX LIFT CO LTD,05/01/2018,4200.00,General Equipment Purchase,General Equipment Purchase,http://opendatacommunities.org/id/county-council/staffordshire  ,
Staffordshire County Council,Equipment Maintenance SET,WESSEX LIFT CO LTD,05/01/2018,2400.00,General Equipment Purchase,General Equipment Purchase,http://opendatacommunities.org/id/county-council/staffordshire  ,
Staffordshire County Council,Cannock Rail Station Public Tr,West Midlands Combined Authority,05/01/2018,4800.00,Ext Fees Construction,Ext Fees Construction,http://opendatacommunities.org/id/county-council/staffordshire  ,
Staffordshire County Council,Pupil Premium Grant,Woodhouse Primary Academy,05/01/2018,500.00,Grants to third parties,Grants to third parties,http://opendatacommunities.org/id/county-council/staffordshire  ,
Staffordshire County Council,Moorlands Invoice Led Older Pe,AMG NURSING & CARE SERVICES,08/01/2018,1014.16,Practical Care,Practical Care,http://opendatacommunities.org/id/county-council/staffordshire  ,
Staffordshire County Council,Moorlands Invoice Led Older Pe,AMG NURSING & CARE SERVICES,08/01/2018,703.40,Practical Care,Practical Care,http://opendatacommunities.org/id/county-council/staffordshire  ,
Staffordshire County Council,Stafford Invoice Led Older Peo,Angel Homecaring,08/01/2018,806.30,Practical Care,Practical Care,http://opendatacommunities.org/id/county-council/staffordshire  ,
Staffordshire County Council,Stafford Invoice Led Older Peo,Angel Homecaring,08/01/2018,720.20,Practical Care,Practical Care,http://opendatacommunities.org/id/county-council/staffordshire  ,
Staffordshire County Council,Newcastle Invoice Led Older Pe,AUSTIN BEN LTD,08/01/2018,567.00,Practical Care,Practical Care,http://opendatacommunities.org/id/county-council/staffordshire  ,
Staffordshire County Council,Newcastle Invoice Led Older Pe,AUSTIN BEN LTD,08/01/2018,504.00,Practical Care,Practical Care,http://opendatacommunities.org/id/county-council/staffordshire  ,
Staffordshire County Council,Moorlands LD Team,Dimensions UK,08/01/2018,8101.52,Supported Group Care,Supported Group Care,http://opendatacommunities.org/id/county-council/staffordshire  ,
Staffordshire County Council,Cannock Chase LD Team,LINFIELD CARE LIMITED,08/01/2018,2190.58,Practical Care,Practical Care,http://opendatacommunities.org/id/county-council/staffordshire  ,
Staffordshire County Council,Stafford LD Team,LINFIELD CARE LIMITED,08/01/2018,4005.00,Supported Group Care,Supported Group Care,http://opendatacommunities.org/id/county-council/staffordshire  ,
Staffordshire County Council,Stafford LD Team,LINFIELD CARE LIMITED,08/01/2018,5185.74,Supported Group Care,Supported Group Care,http://opendatacommunities.org/id/county-council/staffordshire  ,
Staffordshire County Council,Stafford LD Team,LINFIELD CARE LIMITED,08/01/2018,4005.00,Supported Group Care,Supported Group Care,http://opendatacommunities.org/id/county-council/staffordshire  ,
Staffordshire County Council,Cannock Invoice Led Older Peop,London Care T/A Custom Care,08/01/2018,573.26,Practical Care,Practical Care,http://opendatacommunities.org/id/county-council/staffordshire  ,
Staffordshire County Council,Employment & Self Advocacy,Royal Mencap Society,08/01/2018,6262.98,OTHER HIRED SERVICES,OTHER HIRED SERVICES,http://opendatacommunities.org/id/county-council/staffordshire  ,
Staffordshire County Council,Stafford LD Team,Selborne Care Ltd,08/01/2018,5859.00,Supported Group Care,Supported Group Care,http://opendatacommunities.org/id/county-council/staffordshire  ,
Staffordshire County Council,Stafford LD Team,Selborne Care Ltd,08/01/2018,6975.00,Supported Group Care,Supported Group Care,http://opendatacommunities.org/id/county-council/staffordshire  ,
Staffordshire County Council,Lichfield LD Team,Selbourne Care Ltd,08/01/2018,14061.60,Supported Group Care,Supported Group Care,http://opendatacommunities.org/id/county-council/staffordshire  ,
Staffordshire County Council,Weston Road Academy - Library,ALLSORTS OFFICE SUPPLIES LTD,08/01/2018,11347.68,Construction Works,Construction Works,http://opendatacommunities.org/id/county-council/staffordshire  ,
Staffordshire County Council,EStaffs/Tamw Disability Team,BENNETT'S TAXIS,08/01/2018,1536.00,S17 FAMILY SUPPORT,S17 FAMILY SUPPORT,http://opendatacommunities.org/id/county-council/staffordshire  ,
Staffordshire County Council,EStaffs/Tamw Disability Team,BENNETT'S TAXIS,08/01/2018,794.40,S17 FAMILY SUPPORT,S17 FAMILY SUPPORT,http://opendatacommunities.org/id/county-council/staffordshire  ,
Staffordshire County Council,EStaffs/Tamw Disability Team,BENNETT'S TAXIS,08/01/2018,2754.00,S17 FAMILY SUPPORT,S17 FAMILY SUPPORT,http://opendatacommunities.org/id/county-council/staffordshire  ,
Staffordshire County Council,EStaffs/Tamw Disability Team,BENNETT'S TAXIS,08/01/2018,2745.60,S17 FAMILY SUPPORT,S17 FAMILY SUPPORT,http://opendatacommunities.org/id/county-council/staffordshire  ,
Staffordshire County Council,HRSSC,CAPITA RESOURCING LIMITED,08/01/2018,588.66,DBS Checks,DBS Checks,http://opendatacommunities.org/id/county-council/staffordshire  ,
Staffordshire County Council,HRSSC,CAPITA RESOURCING LIMITED,08/01/2018,501.06,DBS Checks,DBS Checks,http://opendatacommunities.org/id/county-council/staffordshire  ,
Staffordshire County Council,Moving On,C'ART,08/01/2018,690.00,Project Activities,Project Activities,http://opendatacommunities.org/id/county-council/staffordshire  ,
Staffordshire County Council,Central Winter Maintenance Wor,COMPASS MINERALS UK LTD,08/01/2018,925.48,Winter Salt Purchases,Winter Salt Purchases,http://opendatacommunities.org/id/county-council/staffordshire  ,
Staffordshire County Council,Central Winter Maintenance Wor,COMPASS MINERALS UK LTD,08/01/2018,2810.94,Winter Salt Purchases,Winter Salt Purchases,http://opendatacommunities.org/id/county-council/staffordshire  ,
Staffordshire County Council,Central Winter Maintenance Wor,COMPASS MINERALS UK LTD,08/01/2018,2792.73,Winter Salt Purchases,Winter Salt Purchases,http://opendatacommunities.org/id/county-council/staffordshire  ,
Staffordshire County Council,Central Winter Maintenance Wor,COMPASS MINERALS UK LTD,08/01/2018,3765.19,Winter Salt Purchases,Winter Salt Purchases,http://opendatacommunities.org/id/county-council/staffordshire  ,
Staffordshire County Council,Central Winter Maintenance Wor,COMPASS MINERALS UK LTD,08/01/2018,1852.86,Winter Salt Purchases,Winter Salt Purchases,http://opendatacommunities.org/id/county-council/staffordshire  ,
Staffordshire County Council,Central Winter Maintenance Wor,COMPASS MINERALS UK LTD,08/01/2018,1837.52,Winter Salt Purchases,Winter Salt Purchases,http://opendatacommunities.org/id/county-council/staffordshire  ,
Staffordshire County Council,S Staffs Invoice Led Physic Di,Expeditions Living,08/01/2018,6110.00,Supported Group Care,Supported Group Care,http://opendatacommunities.org/id/county-council/staffordshire  ,
Staffordshire County Council,Holding,FORDS OF BLYTHE BRIDGE LTD,08/01/2018,1404.00,General Equipment Repair/Maint,General Equipment Repair/Maint,http://opendatacommunities.org/id/county-council/staffordshire  ,
Staffordshire County Council,E Staffs LD Team,Four Seasons Health Care,08/01/2018,8504.76,RCLS Learning Disability,RCLS Learning Disability,http://opendatacommunities.org/id/county-council/staffordshire  ,
Staffordshire County Council,Local Growth Fund Holding Acc,KEELE UNIVERSITY,08/01/2018,508349.00,Payments to other Authorities,Payments to other Authorities,http://opendatacommunities.org/id/county-council/staffordshire  ,
Staffordshire County Council,Great Wyrley Day Centre,NPOWER,08/01/2018,565.18,Electricity,Electricity,http://opendatacommunities.org/id/county-council/staffordshire  ,
Staffordshire County Council,Project A - A50 Growth Corrido,NPOWER,08/01/2018,1447.92,Construction Works,Construction Works,http://opendatacommunities.org/id/county-council/staffordshire  ,
Staffordshire County Council,Project A - A50 Growth Corrido,NPOWER,08/01/2018,2800.09,Construction Works,Construction Works,http://opendatacommunities.org/id/county-council/staffordshire  ,
Staffordshire County Council,Integra,Pricewaterhousecoopers LLP,08/01/2018,11203.20,CONSULTANT FEES,CONSULTANT FEES,http://opendatacommunities.org/id/county-council/staffordshire  ,
Staffordshire County Council,Blurton Grange Farm,Rogers Geotechnical Services Ltd,08/01/2018,1508.40,General Equipment Repair/Maint,General Equipment Repair/Maint,http://opendatacommunities.org/id/county-council/staffordshire  ,
Staffordshire County Council,Langebourne,RPS Consulting Services Ltd,08/01/2018,1474.02,Construction Works,Construction Works,http://opendatacommunities.org/id/county-council/staffordshire  ,
Staffordshire County Council,Speed Awareness,S Charlson,08/01/2018,735.00,DRIVING INSTRUCTION,DRIVING INSTRUCTION,http://opendatacommunities.org/id/county-council/staffordshire  ,
Staffordshire County Council,Leaving Care Team - Central,Stoke on Trent City Council,08/01/2018,5867.28,Prev Supp Special Svs & Needs,Prev Supp Special Svs & Needs,http://opendatacommunities.org/id/county-council/staffordshire  ,
Staffordshire County Council,5438 Staffs Place 1&2Tipping S,Taybar Limited,08/01/2018,1372.63,Premises Services,Premises Services,http://opendatacommunities.org/id/county-council/staffordshire  ,
Staffordshire County Council,5438 Staffs Place 1&2Tipping S,Taybar Limited,08/01/2018,1324.67,Premises Services,Premises Services,http://opendatacommunities.org/id/county-council/staffordshire  ,
Staffordshire County Council,5438 Staffs Place 1&2Tipping S,Taybar Limited,08/01/2018,1420.58,Premises Services,Premises Services,http://opendatacommunities.org/id/county-council/staffordshire  ,
Staffordshire County Council,5438 Staffs Place 1&2Tipping S,Taybar Limited,08/01/2018,1324.67,Premises Services,Premises Services,http://opendatacommunities.org/id/county-council/staffordshire  ,
Staffordshire County Council,Vacant Farm Buildings- Cost Of,Western Power Distribution,08/01/2018,2455.18,Construction Works,Construction Works,http://opendatacommunities.org/id/county-council/staffordshire  ,
Staffordshire County Council,Disposal Districts Unallocated,Willshees,08/01/2018,18166.42,WASTE TRANSPORT,WASTE TRANSPORT,http://opendatacommunities.org/id/county-council/staffordshire  ,
Staffordshire County Council,Disposal Districts Unallocated,Willshees,08/01/2018,23665.09,WASTE TRANSPORT,WASTE TRANSPORT,http://opendatacommunities.org/id/county-council/staffordshire  ,
Staffordshire County Council,Disposal Districts Unallocated,Willshees,08/01/2018,1473.40,WASTE TRANSPORT,WASTE TRANSPORT,http://opendatacommunities.org/id/county-council/staffordshire  ,
Staffordshire County Council,Cannock Invoice Led Phys Disab,Active Assistance,09/01/2018,1176.56,Practical Care,Practical Care,http://opendatacommunities.org/id/county-council/staffordshire  ,
Staffordshire County Council,Carematch External,ALDER GRANGE RESIDENTIAL HOME,09/01/2018,1710.00,OTHER HIRED SERVICES,OTHER HIRED SERVICES,http://opendatacommunities.org/id/county-council/staffordshire  ,
Staffordshire County Council,Newcastle Invoice Led Older Pe,AUSTIN BEN LTD,09/01/2018,567.00,Practical Care,Practical Care,http://opendatacommunities.org/id/county-council/staffordshire  ,
Staffordshire County Council,Cannock Invoice Led Older Peop,CSPC Healthcare Ltd,09/01/2018,507.15,Practical Care,Practical Care,http://opendatacommunities.org/id/county-council/staffordshire  ,
Staffordshire County Council,Stafford Invoice Led Phys Disa,CSPC Healthcare Ltd,09/01/2018,818.30,Practical Care,Practical Care,http://opendatacommunities.org/id/county-council/staffordshire  ,
Staffordshire County Council,Stafford Invoice Led Older Peo,CSPC Healthcare Ltd,09/01/2018,582.75,Practical Care,Practical Care,http://opendatacommunities.org/id/county-council/staffordshire  ,
Staffordshire County Council,Cannock Invoice Led Phys Disab,CSPC Healthcare Ltd,09/01/2018,563.50,Practical Care,Practical Care,http://opendatacommunities.org/id/county-council/staffordshire  ,
Staffordshire County Council,Cannock Invoice Led Older Peop,CSPC Healthcare Ltd,09/01/2018,507.15,Practical Care,Practical Care,http://opendatacommunities.org/id/county-council/staffordshire  ,
Staffordshire County Council,Cannock Invoice Led Older Peop,CSPC Healthcare Ltd,09/01/2018,507.15,Practical Care,Practical Care,http://opendatacommunities.org/id/county-council/staffordshire  ,
Staffordshire County Council,East Staffs Invoice Led Older ,CSPC Healthcare Ltd,09/01/2018,526.05,Practical Care,Practical Care,http://opendatacommunities.org/id/county-council/staffordshire  ,
Staffordshire County Council,Carematch External,Freedom Support Limited,09/01/2018,2665.00,OTHER HIRED SERVICES,OTHER HIRED SERVICES,http://opendatacommunities.org/id/county-council/staffordshire  ,
Staffordshire County Council,SStaffs Invoice Led Older Peop,Kensington Community Care,09/01/2018,676.20,Practical Care,Practical Care,http://opendatacommunities.org/id/county-council/staffordshire  ,
Staffordshire County Council,Moorlands Invoice Led Older Pe,Rapid Response Medical Ltd,09/01/2018,644.00,Practical Care,Practical Care,http://opendatacommunities.org/id/county-council/staffordshire  ,
Staffordshire County Council,Moorlands Invoice Led Older Pe,Rapid Response Medical Ltd,09/01/2018,563.50,Practical Care,Practical Care,http://opendatacommunities.org/id/county-council/staffordshire  ,
Staffordshire County Council,Moorlands Invoice Led Older Pe,Rapid Response Medical Ltd,09/01/2018,563.50,Practical Care,Practical Care,http://opendatacommunities.org/id/county-council/staffordshire  ,
Staffordshire County Council,Moorlands Invoice Led Older Pe,Rapid Response Medical Ltd,09/01/2018,669.20,Practical Care,Practical Care,http://opendatacommunities.org/id/county-council/staffordshire  ,
Staffordshire County Council,Moorlands Invoice Led Older Pe,Rapid Response Medical Ltd,09/01/2018,669.20,Practical Care,Practical Care,http://opendatacommunities.org/id/county-council/staffordshire  ,
Staffordshire County Council,Newcastle Invoice Led Older Pe,Rapid Response Medical Ltd,09/01/2018,697.20,Practical Care,Practical Care,http://opendatacommunities.org/id/county-council/staffordshire  ,
Staffordshire County Council,Newcastle Invoice Led Older Pe,Rapid Response Medical Ltd,09/01/2018,697.20,Practical Care,Practical Care,http://opendatacommunities.org/id/county-council/staffordshire  ,
Staffordshire County Council,Stafford Invoice Led Older Peo,Rapid Response Medical Ltd,09/01/2018,529.90,Practical Care,Practical Care,http://opendatacommunities.org/id/county-council/staffordshire  ,
Staffordshire County Council,Stafford Invoice Led Older Peo,Rapid Response Medical Ltd,09/01/2018,549.70,Practical Care,Practical Care,http://opendatacommunities.org/id/county-council/staffordshire  ,
Staffordshire County Council,Stafford Invoice Led Older Peo,Rapid Response Medical Ltd,09/01/2018,549.70,Practical Care,Practical Care,http://opendatacommunities.org/id/county-council/staffordshire  ,
Staffordshire County Council,Moorlands Invoice Led Older Pe,Rapid Response Medical Ltd,09/01/2018,507.15,Practical Care,Practical Care,http://opendatacommunities.org/id/county-council/staffordshire  ,
Staffordshire County Council,Moorlands Invoice Led Older Pe,Rapid Response Medical Ltd,09/01/2018,507.15,Practical Care,Practical Care,http://opendatacommunities.org/id/county-council/staffordshire  ,
Staffordshire County Council,Moorlands Invoice Led Older Pe,Rapid Response Medical Ltd,09/01/2018,697.20,Practical Care,Practical Care,http://opendatacommunities.org/id/county-council/staffordshire  ,
Staffordshire County Council,Moorlands Invoice Led Older Pe,Rapid Response Medical Ltd,09/01/2018,697.20,Practical Care,Practical Care,http://opendatacommunities.org/id/county-council/staffordshire  ,
Staffordshire County Council,Moorlands Invoice Led Older Pe,Rapid Response Medical Ltd,09/01/2018,563.50,Practical Care,Practical Care,http://opendatacommunities.org/id/county-council/staffordshire  ,
Staffordshire County Council,Moorlands Invoice Led Older Pe,Rapid Response Medical Ltd,09/01/2018,563.50,Practical Care,Practical Care,http://opendatacommunities.org/id/county-council/staffordshire  ,
Staffordshire County Council,Moorlands Invoice Led Older Pe,Rapid Response Medical Ltd,09/01/2018,669.20,Practical Care,Practical Care,http://opendatacommunities.org/id/county-council/staffordshire  ,
Staffordshire County Council,Moorlands Invoice Led Older Pe,Rapid Response Medical Ltd,09/01/2018,669.20,Practical Care,Practical Care,http://opendatacommunities.org/id/county-council/staffordshire  ,
Staffordshire County Council,Newcastle Invoice Led Older Pe,Rapid Response Medical Ltd,09/01/2018,697.20,Practical Care,Practical Care,http://opendatacommunities.org/id/county-council/staffordshire  ,
Staffordshire County Council,Newcastle Invoice Led Older Pe,Rapid Response Medical Ltd,09/01/2018,697.20,Practical Care,Practical Care,http://opendatacommunities.org/id/county-council/staffordshire  ,
Staffordshire County Council,Stafford Invoice Led Older Peo,Rapid Response Medical Ltd,09/01/2018,529.90,Practical Care,Practical Care,http://opendatacommunities.org/id/county-council/staffordshire  ,
Staffordshire County Council,Stafford Invoice Led Older Peo,Rapid Response Medical Ltd,09/01/2018,529.90,Practical Care,Practical Care,http://opendatacommunities.org/id/county-council/staffordshire  ,
Staffordshire County Council,Stafford Invoice Led Older Peo,Rapid Response Medical Ltd,09/01/2018,549.70,Practical Care,Practical Care,http://opendatacommunities.org/id/county-council/staffordshire  ,
Staffordshire County Council,Stafford Invoice Led Older Peo,Rapid Response Medical Ltd,09/01/2018,549.70,Practical Care,Practical Care,http://opendatacommunities.org/id/county-council/staffordshire  ,
Staffordshire County Council,Stafford Invoice Led Older Peo,Rapid Response Medical Ltd,09/01/2018,697.20,Practical Care,Practical Care,http://opendatacommunities.org/id/county-council/staffordshire  ,
Staffordshire County Council,Stafford Invoice Led Older Peo,Rapid Response Medical Ltd,09/01/2018,697.20,Practical Care,Practical Care,http://opendatacommunities.org/id/county-council/staffordshire  ,
Staffordshire County Council,Stafford Invoice Led Older Peo,SRS Care Ltd,09/01/2018,776.10,Practical Care,Practical Care,http://opendatacommunities.org/id/county-council/staffordshire  ,
Staffordshire County Council,Stafford Invoice Led Older Peo,SRS Care Ltd,09/01/2018,542.20,Practical Care,Practical Care,http://opendatacommunities.org/id/county-council/staffordshire  ,
Staffordshire County Council,Stafford Invoice Led Older Peo,SRS Care Ltd,09/01/2018,774.60,Practical Care,Practical Care,http://opendatacommunities.org/id/county-council/staffordshire  ,
Staffordshire County Council,Stafford Invoice Led Older Peo,SRS Care Ltd,09/01/2018,1632.20,Practical Care,Practical Care,http://opendatacommunities.org/id/county-council/staffordshire  ,
Staffordshire County Council,Stafford Invoice Led Older Peo,SRS Care Ltd,09/01/2018,1371.40,Practical Care,Practical Care,http://opendatacommunities.org/id/county-council/staffordshire  ,
Staffordshire County Council,Stafford Invoice Led Older Peo,SRS Care Ltd,09/01/2018,1635.20,Practical Care,Practical Care,http://opendatacommunities.org/id/county-council/staffordshire  ,
Staffordshire County Council,Carematch External,St Giles Care Agency,09/01/2018,1260.00,OTHER HIRED SERVICES,OTHER HIRED SERVICES,http://opendatacommunities.org/id/county-council/staffordshire  ,
Staffordshire County Council,"Server, Storage and DBA",ABM Critical Solutions,09/01/2018,624.00,Contract Cleaning,Contract Cleaning,http://opendatacommunities.org/id/county-council/staffordshire  ,
Staffordshire County Council,Virtual School - Pupil Premium,Attachment Research Community,09/01/2018,3890.00,OTHER ALLOWANCES,OTHER ALLOWANCES,http://opendatacommunities.org/id/county-council/staffordshire  ,
Staffordshire County Council,EStaffs/Tamw Disability Team,BENNETT'S TAXIS,09/01/2018,3564.00,S17 FAMILY SUPPORT,S17 FAMILY SUPPORT,http://opendatacommunities.org/id/county-council/staffordshire  ,
Staffordshire County Council,St John'S - Fire Alarm,BOURNE ELECTRICAL CONTR LTD,09/01/2018,16788.26,Construction Works,Construction Works,http://opendatacommunities.org/id/county-council/staffordshire  ,
Staffordshire County Council,Fostering Main,Chris Dennison Consulting Ltd,09/01/2018,1944.00,Fostering Panel Expenses,Fostering Panel Expenses,http://opendatacommunities.org/id/county-council/staffordshire  ,
Staffordshire County Council,Central Winter Maintenance Wor,COMPASS MINERALS UK LTD,09/01/2018,921.64,Winter Salt Purchases,Winter Salt Purchases,http://opendatacommunities.org/id/county-council/staffordshire  ,
Staffordshire County Council,Specialist Supp Serv HI Cent,CONNEVANS LTD,09/01/2018,717.92,Social Aids Sensory Impairment,Social Aids Sensory Impairment,http://opendatacommunities.org/id/county-council/staffordshire  ,
Staffordshire County Council,P16 top up for Indep Specialis,Craegmoor Strathmore College,09/01/2018,10285.00,Events and Competitions,Events and Competitions,http://opendatacommunities.org/id/county-council/staffordshire  ,
Staffordshire County Council,Moorlands LD Team,CREATIVE SUPPORT,09/01/2018,22231.84,Supported Group Care,Supported Group Care,http://opendatacommunities.org/id/county-council/staffordshire  ,
Staffordshire County Council,LEP Core,,09/01/2018,5000.00,Advertising,Advertising,http://opendatacommunities.org/id/county-council/staffordshire  ,
Staffordshire County Council,Staffordshire Wood Fuel,EDWARD BILLINGTON & SON LTD,09/01/2018,1154.88,General Equipment Purchase,General Equipment Purchase,http://opendatacommunities.org/id/county-council/staffordshire  ,
Staffordshire County Council,Hugo Meynell Primary,EDWARD BILLINGTON & SON LTD,09/01/2018,1080.00,Wood Chip,Wood Chip,http://opendatacommunities.org/id/county-council/staffordshire  ,
Staffordshire County Council,Staffordshire Wood Fuel,EDWARD BILLINGTON & SON LTD,09/01/2018,2143.80,General Equipment Purchase,General Equipment Purchase,http://opendatacommunities.org/id/county-council/staffordshire  ,
Staffordshire County Council,Integra,Entrust Support Services Ltd,09/01/2018,123684.00,INSTALLATION CHARGES,INSTALLATION CHARGES,http://opendatacommunities.org/id/county-council/staffordshire  ,
Staffordshire County Council,Integra,Entrust Support Services Ltd,09/01/2018,185216.40,INSTALLATION CHARGES,INSTALLATION CHARGES,http://opendatacommunities.org/id/county-council/staffordshire  ,
Staffordshire County Council,Public Transp Support & Co-ord,FIRST POTTERIES LTD,09/01/2018,1161.84,Payments to Bus Operators,Payments to Bus Operators,http://opendatacommunities.org/id/county-council/staffordshire  ,
Staffordshire County Council,Pooled Accom Central Charges,FORCE ONE SECURITY UK LTD,09/01/2018,6804.00,Premises Services,Premises Services,http://opendatacommunities.org/id/county-council/staffordshire  ,
Staffordshire County Council,Scientific Services,GRADKO INTERNATIONAL LTD,09/01/2018,2818.20,Consumables,Consumables,http://opendatacommunities.org/id/county-council/staffordshire  ,
Staffordshire County Council,0837 Peel Block C St Chads Pla,HEATELECT LIMITED,09/01/2018,534.00,Day to Day Mechanical Services,Day to Day Mechanical Services,http://opendatacommunities.org/id/county-council/staffordshire  ,
Staffordshire County Council,Main Trading Standards,K Saunders,09/01/2018,2100.00,Legal Costs and Stamp Duty,Legal Costs and Stamp Duty,http://opendatacommunities.org/id/county-council/staffordshire  ,
Staffordshire County Council,Destination Management Partner,Lichfield Cathedral Chapter Office,09/01/2018,1440.00,Contr. To Other Non Vol Bodies,Contr. To Other Non Vol Bodies,http://opendatacommunities.org/id/county-council/staffordshire  ,
Staffordshire County Council,Operations Delivery,LONGDON PARISH COUNCIL,09/01/2018,717.00,Parish District Grass Cutting,Parish District Grass Cutting,http://opendatacommunities.org/id/county-council/staffordshire  ,
Staffordshire County Council,Workshop Overheads,M R H AUTOS,09/01/2018,600.00,CFC Purchase of Stock,CFC Purchase of Stock,http://opendatacommunities.org/id/county-council/staffordshire  ,
Staffordshire County Council,7096 58-60 High Street Burton ,Management Company,09/01/2018,1100.92,Gas,Gas,http://opendatacommunities.org/id/county-council/staffordshire  ,
Staffordshire County Council,Liability,MARSH LTD,09/01/2018,870.00,Insurance Premiums Paid,Insurance Premiums Paid,http://opendatacommunities.org/id/county-council/staffordshire  ,
Staffordshire County Council,Liability,MARSH LTD,09/01/2018,9600.00,Insurance Premiums Paid,Insurance Premiums Paid,http://opendatacommunities.org/id/county-council/staffordshire  ,
Staffordshire County Council,Physical Regeneration,MIDLAND LANDSCAPING LTD,09/01/2018,2320.80,Contract Grounds Maintenance,Contract Grounds Maintenance,http://opendatacommunities.org/id/county-council/staffordshire  ,
Staffordshire County Council,Lymedale Park Ext,MIDLAND LANDSCAPING LTD,09/01/2018,9712.87,Construction Works,Construction Works,http://opendatacommunities.org/id/county-council/staffordshire  ,
Staffordshire County Council,Communications,Neopost Ltd,09/01/2018,1634.40,Postages,Postages,http://opendatacommunities.org/id/county-council/staffordshire  ,
Staffordshire County Council,2 Contraception,Newcastle & Silverdale Grp Practice,09/01/2018,575.76,OTHER HIRED SERVICES,OTHER HIRED SERVICES,http://opendatacommunities.org/id/county-council/staffordshire  ,
Staffordshire County Council,Moor First - Roofs,NOVUS PROPERTY SOLS LTD,09/01/2018,11318.41,Construction Works,Construction Works,http://opendatacommunities.org/id/county-council/staffordshire  ,
Staffordshire County Council,Lymedale West Business Centre,NPOWER,09/01/2018,1994.32,Electricity,Electricity,http://opendatacommunities.org/id/county-council/staffordshire  ,
Staffordshire County Council,St John - Heat Source,PLUMBING & HEATING SERVS (STAFFS) LTD,09/01/2018,32329.20,Construction Works,Construction Works,http://opendatacommunities.org/id/county-council/staffordshire  ,
Staffordshire County Council,Springhead Heating,PLUMBING & HEATING SERVS (STAFFS) LTD,09/01/2018,4477.20,Construction Works,Construction Works,http://opendatacommunities.org/id/county-council/staffordshire  ,
Staffordshire County Council,Endon Hall Water Conversion,PLUMBING & HEATING SERVS (STAFFS) LTD,09/01/2018,11689.20,Construction Works,Construction Works,http://opendatacommunities.org/id/county-council/staffordshire  ,
Staffordshire County Council,Lymedale West Business Centre,PLUMBING & HEATING SERVS (STAFFS) LTD,09/01/2018,1111.20,Planned Mechanical Services,Planned Mechanical Services,http://opendatacommunities.org/id/county-council/staffordshire  ,
Staffordshire County Council,Communications,Premier Paper Group Ltd,09/01/2018,1146.00,Stationery General,Stationery General,http://opendatacommunities.org/id/county-council/staffordshire  ,
Staffordshire County Council,Speech and Language/O Therapy,R Gudger,09/01/2018,975.00,OTHER HIRED SERVICES,OTHER HIRED SERVICES,http://opendatacommunities.org/id/county-council/staffordshire  ,
Staffordshire County Council,Independent School Fee Nursery,Reach for the Stars Nursery,09/01/2018,825.00,Grants to third parties,Grants to third parties,http://opendatacommunities.org/id/county-council/staffordshire  ,
Staffordshire County Council,Marston Lane Yarlet,Ridgewood Contracts Ltd,09/01/2018,13646.22,General Equipment Repair/Maint,General Equipment Repair/Maint,http://opendatacommunities.org/id/county-council/staffordshire  ,
Staffordshire County Council,General ICT Projects Code,Risual Group Ltd,09/01/2018,1140.00,Computer Support Charges,Computer Support Charges,http://opendatacommunities.org/id/county-council/staffordshire  ,
Staffordshire County Council,Asset Renewal  - Maint Work 04,ROY DYKE ELECTRICAL LTD,09/01/2018,5040.00,Construction Works,Construction Works,http://opendatacommunities.org/id/county-council/staffordshire  ,
Staffordshire County Council,Independent School Fee Special,Shapwick Prep School,09/01/2018,9573.00,Fees to Independent Schools,Fees to Independent Schools,http://opendatacommunities.org/id/county-council/staffordshire  ,
Staffordshire County Council,Independent School Fee Special,Shapwick Prep School,09/01/2018,8501.00,Fees to Independent Schools,Fees to Independent Schools,http://opendatacommunities.org/id/county-council/staffordshire  ,
Staffordshire County Council,BRFC - Central,Sickle Cell & Thalassaemia Spprt Prj,09/01/2018,1640.00,Project Activities,Project Activities,http://opendatacommunities.org/id/county-council/staffordshire  ,
Staffordshire County Council,0822 County Records Eastgate S,SOVEREIGN PLANNED SERVICES LTD,09/01/2018,795.60,Day to Day Mechanical Services,Day to Day Mechanical Services,http://opendatacommunities.org/id/county-council/staffordshire  ,
Staffordshire County Council,Client Device Rollout,Specialist Computer Services Ltd,09/01/2018,3792.24,Purchase of Hardware,Purchase of Hardware,http://opendatacommunities.org/id/county-council/staffordshire  ,
Staffordshire County Council,Client Device Rollout,Specialist Computer Services Ltd,09/01/2018,59617.57,Purchase of Hardware,Purchase of Hardware,http://opendatacommunities.org/id/county-council/staffordshire  ,
Staffordshire County Council,Lichfield Library Relocation,St Marys in the Market Square,09/01/2018,2258.67,Construction Works,Construction Works,http://opendatacommunities.org/id/county-council/staffordshire  ,
Staffordshire County Council,Cannock Enterprise Centre,Swiftclean (UK) Ltd,09/01/2018,684.00,Contract Grounds Maintenance,Contract Grounds Maintenance,http://opendatacommunities.org/id/county-council/staffordshire  ,
Staffordshire County Council,County,SYNERGY,09/01/2018,678.00,Printing General,Printing General,http://opendatacommunities.org/id/county-council/staffordshire  ,
Staffordshire County Council,Can/Lich Disability Team,THORNBURY NURSING SERVICES,09/01/2018,2100.60,S17 FAMILY SUPPORT,S17 FAMILY SUPPORT,http://opendatacommunities.org/id/county-council/staffordshire  ,
Staffordshire County Council,2 Contraception,Trent Meadows Medical Practice,09/01/2018,652.12,OTHER HIRED SERVICES,OTHER HIRED SERVICES,http://opendatacommunities.org/id/county-council/staffordshire  ,
Staffordshire County Council,NHS Campus Reprov. Phase 1,Turning Point,09/01/2018,307607.62,Supported Group Care,Supported Group Care,http://opendatacommunities.org/id/county-council/staffordshire  ,
Staffordshire County Council,Cannock Invoice Led Phys Disab,Active Assistance,10/01/2018,1176.56,Practical Care,Practical Care,http://opendatacommunities.org/id/county-council/staffordshire  ,
Staffordshire County Council,Lichfield Invoice Led Physi Di,Ave Maria Care Ltd,10/01/2018,548.00,Practical Care,Practical Care,http://opendatacommunities.org/id/county-council/staffordshire  ,
Staffordshire County Council,Stafford Invoice Led Older Peo,Bluebird Care Stoke On Trent,10/01/2018,541.80,Practical Care,Practical Care,http://opendatacommunities.org/id/county-council/staffordshire  ,
Staffordshire County Council,Stafford Invoice Led Older Peo,Bluebird Care Stoke On Trent,10/01/2018,541.80,Practical Care,Practical Care,http://opendatacommunities.org/id/county-council/staffordshire  ,
Staffordshire County Council,Stafford Invoice Led Older Peo,Bluebird Care Stoke On Trent,10/01/2018,602.00,Practical Care,Practical Care,http://opendatacommunities.org/id/county-council/staffordshire  ,
Staffordshire County Council,Stafford Invoice Led Older Peo,Bluebird Care Stoke On Trent,10/01/2018,602.00,Practical Care,Practical Care,http://opendatacommunities.org/id/county-council/staffordshire  ,
Staffordshire County Council,East Staffs Invoice Led Older ,Bluebird Care Tamworth & Lichfield,10/01/2018,780.46,Practical Care,Practical Care,http://opendatacommunities.org/id/county-council/staffordshire  ,
Staffordshire County Council,Cannock Invoice Led Phys Disab,Chase Care & Support Services,10/01/2018,1094.80,Practical Care,Practical Care,http://opendatacommunities.org/id/county-council/staffordshire  ,
Staffordshire County Council,Cannock Invoice Led Phys Disab,Chase Care & Support Services,10/01/2018,1577.80,Practical Care,Practical Care,http://opendatacommunities.org/id/county-council/staffordshire  ,
Staffordshire County Council,Cannock Invoice Led Older Peop,Chase Care & Support Services,10/01/2018,748.65,Practical Care,Practical Care,http://opendatacommunities.org/id/county-council/staffordshire  ,
Staffordshire County Council,Cannock Invoice Led Older Peop,Chase Care & Support Services,10/01/2018,1014.30,Practical Care,Practical Care,http://opendatacommunities.org/id/county-council/staffordshire  ,
Staffordshire County Council,Moorlands Invoice Led Phys Dis,Crossroads (Staffs)Carng for Carers,10/01/2018,583.90,Practical Care,Practical Care,http://opendatacommunities.org/id/county-council/staffordshire  ,
Staffordshire County Council,Moorlands Invoice Led Phys Dis,MSC Home Care Ltd,10/01/2018,2781.56,Practical Care,Practical Care,http://opendatacommunities.org/id/county-council/staffordshire  ,
Staffordshire County Council,Newcastle Invoice Led Older Pe,MSC Home Care Ltd,10/01/2018,1008.62,Practical Care,Practical Care,http://opendatacommunities.org/id/county-council/staffordshire  ,
Staffordshire County Council,Newcastle Invoice Led Older Pe,MSC Home Care Ltd,10/01/2018,1278.74,Practical Care,Practical Care,http://opendatacommunities.org/id/county-council/staffordshire  ,
Staffordshire County Council,Moorlands Invoice Led Older Pe,MSC Home Care Ltd,10/01/2018,2499.12,Practical Care,Practical Care,http://opendatacommunities.org/id/county-council/staffordshire  ,
Staffordshire County Council,Moorlands Invoice Led Older Pe,MSC Home Care Ltd,10/01/2018,608.18,Practical Care,Practical Care,http://opendatacommunities.org/id/county-council/staffordshire  ,
Staffordshire County Council,Stafford Invoice Led Older Peo,Rapid Response Medical Ltd,10/01/2018,529.90,Practical Care,Practical Care,http://opendatacommunities.org/id/county-council/staffordshire  ,
Staffordshire County Council,Stafford Invoice Led Older Peo,Rapid Response Medical Ltd,10/01/2018,549.70,Practical Care,Practical Care,http://opendatacommunities.org/id/county-council/staffordshire  ,
Staffordshire County Council,E Staffs LD Team,Sanctuary Housing Association,10/01/2018,1040.00,Supported Group Care,Supported Group Care,http://opendatacommunities.org/id/county-council/staffordshire  ,
Staffordshire County Council,Cannock Chase LD Team,Selborne Care Ltd,10/01/2018,7274.43,Supported Group Care,Supported Group Care,http://opendatacommunities.org/id/county-council/staffordshire  ,
Staffordshire County Council,Stafford LD Team,Selborne Care Ltd,10/01/2018,5859.00,Supported Group Care,Supported Group Care,http://opendatacommunities.org/id/county-council/staffordshire  ,
Staffordshire County Council,Stafford LD Team,Selborne Care Ltd,10/01/2018,6975.00,Supported Group Care,Supported Group Care,http://opendatacommunities.org/id/county-council/staffordshire  ,
Staffordshire County Council,Stafford LD Team,Selbourne Care Ltd,10/01/2018,5859.00,Supported Group Care,Supported Group Care,http://opendatacommunities.org/id/county-council/staffordshire  ,
Staffordshire County Council,E Staffs LD Team,The Mount,10/01/2018,4667.88,Supported Group Care,Supported Group Care,http://opendatacommunities.org/id/county-council/staffordshire  ,
Staffordshire County Council,Stafford LD Team,Voyage Ltd,10/01/2018,1855.00,Supported Group Care,Supported Group Care,http://opendatacommunities.org/id/county-council/staffordshire  ,
Staffordshire County Council,Stafford LD Team,Voyage Ltd,10/01/2018,4399.00,Supported Group Care,Supported Group Care,http://opendatacommunities.org/id/county-council/staffordshire  ,
Staffordshire County Council,Stafford LD Team,Voyage Ltd,10/01/2018,2279.00,Supported Group Care,Supported Group Care,http://opendatacommunities.org/id/county-council/staffordshire  ,
Staffordshire County Council,Rugeley SU14,Aero Executive (Midlands) Ltd,10/01/2018,528.00,S17 TRANSPORT,S17 TRANSPORT,http://opendatacommunities.org/id/county-council/staffordshire  ,
Staffordshire County Council,Growth Hub ERDF 2016-2019,Alconbury Weston,10/01/2018,10000.00,Grants Other,Grants Other,http://opendatacommunities.org/id/county-council/staffordshire  ,
Staffordshire County Council,Merryfields School,Amanda Montandon,10/01/2018,524.40,Personal Travel Budgets,Personal Travel Budgets,http://opendatacommunities.org/id/county-council/staffordshire  ,
Staffordshire County Council,Local Members Initiatives,APRIL LEWIS CIC,10/01/2018,2420.00,Local Member Initiative Scheme,Local Member Initiative Scheme,http://opendatacommunities.org/id/county-council/staffordshire  ,
Staffordshire County Council,Local Members Initiatives,ARMITAGE & HANDSACRE VLLGE DAY COMM,10/01/2018,1000.00,Local Member Initiative Scheme,Local Member Initiative Scheme,http://opendatacommunities.org/id/county-council/staffordshire  ,
Staffordshire County Council,Local Members Initiatives,Biddulph Moor Evergreen Club,10/01/2018,500.00,Local Member Initiative Scheme,Local Member Initiative Scheme,http://opendatacommunities.org/id/county-council/staffordshire  ,
Staffordshire County Council,HRSSC,Busy Bees Benefits Ltd,10/01/2018,84209.50,Extra District Charges Other,Extra District Charges Other,http://opendatacommunities.org/id/county-council/staffordshire  ,
Staffordshire County Council,Cannock Enterprise Centre,Coopers Recycling Ltd,10/01/2018,715.89,WASTE COLLECTION,WASTE COLLECTION,http://opendatacommunities.org/id/county-council/staffordshire  ,
Staffordshire County Council,Health & Safety,CRISIS PREVENTION INSTITUTE,10/01/2018,1404.00,Training Expenses,Training Expenses,http://opendatacommunities.org/id/county-council/staffordshire  ,
Staffordshire County Council,De Ferrers - New Maths Faculty,De Ferrers Trust,10/01/2018,587955.00,Construction Works,Construction Works,http://opendatacommunities.org/id/county-council/staffordshire  ,
Staffordshire County Council,E Staffs MH Team U65,Eden Futures,10/01/2018,5377.40,Supported Group Care,Supported Group Care,http://opendatacommunities.org/id/county-council/staffordshire  ,
Staffordshire County Council,Reimbursement Entrust,Entrust Support Services Ltd,10/01/2018,8209.34,Partnership - Unallocated,Partnership - Unallocated,http://opendatacommunities.org/id/county-council/staffordshire  ,
Staffordshire County Council,Stone Road Yarlet,FORDS OF BLYTHE BRIDGE LTD,10/01/2018,4632.00,General Equipment Repair/Maint,General Equipment Repair/Maint,http://opendatacommunities.org/id/county-council/staffordshire  ,
Staffordshire County Council,Local Members Initiatives,Friends of Hednesford Park,10/01/2018,500.00,Local Member Initiative Scheme,Local Member Initiative Scheme,http://opendatacommunities.org/id/county-council/staffordshire  ,
Staffordshire County Council,Branston Road - New Sec School,Geldards Llp,10/01/2018,1022.00,Construction Works,Construction Works,http://opendatacommunities.org/id/county-council/staffordshire  ,
Staffordshire County Council,Cherry Trees School,,10/01/2018,665.00,Personal Travel Budgets,Personal Travel Budgets,http://opendatacommunities.org/id/county-council/staffordshire  ,
Staffordshire County Council,Local Members Initiatives,Ipstones Agricultural Society,10/01/2018,500.00,Local Member Initiative Scheme,Local Member Initiative Scheme,http://opendatacommunities.org/id/county-council/staffordshire  ,
Staffordshire County Council,Stat-OOC transport,,10/01/2018,570.00,Personal Travel Budgets,Personal Travel Budgets,http://opendatacommunities.org/id/county-council/staffordshire  ,
Staffordshire County Council,Stat-OOC transport,,10/01/2018,590.20,Home School Direct Payment,Home School Direct Payment,http://opendatacommunities.org/id/county-council/staffordshire  ,
Staffordshire County Council,Stock Suspense Account,JONES SPRINGS (ENG.) LTD,10/01/2018,654.00,CFC Purchase of Stock,CFC Purchase of Stock,http://opendatacommunities.org/id/county-council/staffordshire  ,
Staffordshire County Council,Growth Hub ERDF 2016-2019,KING OF THE ROAD COFFEE SOLUTIONS,10/01/2018,2334.28,Grants Other,Grants Other,http://opendatacommunities.org/id/county-council/staffordshire  ,
Staffordshire County Council,Local Members Initiatives,LIVING SPRINGS COMMUNITY CHURCH,10/01/2018,500.00,Local Member Initiative Scheme,Local Member Initiative Scheme,http://opendatacommunities.org/id/county-council/staffordshire  ,
Staffordshire County Council,ACADEMY Drivers,LOOKERS LEASING LTD,10/01/2018,60750.19,Staff Car Leasing Recharge,Staff Car Leasing Recharge,http://opendatacommunities.org/id/county-council/staffordshire  ,
Staffordshire County Council,Springcroft Boiler,M W CRIPWELL LTD,10/01/2018,6178.45,Construction Works,Construction Works,http://opendatacommunities.org/id/county-council/staffordshire  ,
Staffordshire County Council,Local Members Initiatives,MADELEY PARISH COUNCIL,10/01/2018,1000.00,Local Member Initiative Scheme,Local Member Initiative Scheme,http://opendatacommunities.org/id/county-council/staffordshire  ,
Staffordshire County Council,Transport for Excluded Pupils,Midland Classic Ltd,10/01/2018,2935.00,Home School Tickets,Home School Tickets,http://opendatacommunities.org/id/county-council/staffordshire  ,
Staffordshire County Council,Local Members Initiatives,Museum of Cannock Chase,10/01/2018,1000.00,Local Member Initiative Scheme,Local Member Initiative Scheme,http://opendatacommunities.org/id/county-council/staffordshire  ,
Staffordshire County Council,All Saints - Windows,R A EDWARDS & PARTNERS LTD,10/01/2018,2146.08,Construction Works,Construction Works,http://opendatacommunities.org/id/county-council/staffordshire  ,
Staffordshire County Council,Hugo Meynell ,R A EDWARDS & PARTNERS LTD,10/01/2018,4575.07,Construction Works,Construction Works,http://opendatacommunities.org/id/county-council/staffordshire  ,
Staffordshire County Council,DIPS,Remedy Education,10/01/2018,2160.00, Alternative Education Schemes, Alternative Education Schemes,http://opendatacommunities.org/id/county-council/staffordshire  ,
Staffordshire County Council,General ICT Projects Code,Risual Group Ltd,10/01/2018,2280.00,Computer Support Charges,Computer Support Charges,http://opendatacommunities.org/id/county-council/staffordshire  ,
Staffordshire County Council,General ICT Projects Code,Risual Group Ltd,10/01/2018,3420.00,Computer Support Charges,Computer Support Charges,http://opendatacommunities.org/id/county-council/staffordshire  ,
Staffordshire County Council,General ICT Projects Code,Risual Group Ltd,10/01/2018,4560.00,Computer Support Charges,Computer Support Charges,http://opendatacommunities.org/id/county-council/staffordshire  ,
Staffordshire County Council,Local Members Initiatives,Rocester FCS - Ladies FC,10/01/2018,800.00,Local Member Initiative Scheme,Local Member Initiative Scheme,http://opendatacommunities.org/id/county-council/staffordshire  ,
Staffordshire County Council,S Staffs LD Team,ROCKSPUR LTD,10/01/2018,770.00,Day Care,Day Care,http://opendatacommunities.org/id/county-council/staffordshire  ,
Staffordshire County Council,Stafford LD Team,ROCKSPUR LTD,10/01/2018,595.00,Day Care,Day Care,http://opendatacommunities.org/id/county-council/staffordshire  ,
Staffordshire County Council,Local Members Initiatives,ROLLESTON ON DOVE P C,10/01/2018,1200.00,Local Member Initiative Scheme,Local Member Initiative Scheme,http://opendatacommunities.org/id/county-council/staffordshire  ,
Staffordshire County Council,Local Members Initiatives,Salvation Army Hednesford Corps,10/01/2018,971.11,Local Member Initiative Scheme,Local Member Initiative Scheme,http://opendatacommunities.org/id/county-council/staffordshire  ,
Staffordshire County Council,Local Members Initiatives,Saredon Parish Council,10/01/2018,1500.00,Local Member Initiative Scheme,Local Member Initiative Scheme,http://opendatacommunities.org/id/county-council/staffordshire  ,
Staffordshire County Council,Occupational Health Unit,Specialist Computer Services Ltd,10/01/2018,850.46,General Equipment Purchase,General Equipment Purchase,http://opendatacommunities.org/id/county-council/staffordshire  ,
Staffordshire County Council,Local Members Initiatives,St John Fisher Catholic College,10/01/2018,530.00,Local Member Initiative Scheme,Local Member Initiative Scheme,http://opendatacommunities.org/id/county-council/staffordshire  ,
Staffordshire County Council,Highway Data,TRACSIS TRAFFIC DATA LTD,10/01/2018,14388.00,General Equipment Purchase,General Equipment Purchase,http://opendatacommunities.org/id/county-council/staffordshire  ,
Staffordshire County Council,Growth Hub ERDF 2016-2019,UK Business IT Ltd,10/01/2018,10000.00,Grants Other,Grants Other,http://opendatacommunities.org/id/county-council/staffordshire  ,
Staffordshire County Council,TSU- Traded work,VANTAGE CONSULTING (MIDLANDS) LTD,10/01/2018,2310.00,AGENCY STAFF,AGENCY STAFF,http://opendatacommunities.org/id/county-council/staffordshire  ,
Staffordshire County Council,Home to school transport-main,W Ahmed T/A 24 Taxis Lichfield,10/01/2018,6226.26,Home School Contract Vehicles,Home School Contract Vehicles,http://opendatacommunities.org/id/county-council/staffordshire  ,
Staffordshire County Council,Telecare,Wealden & Eastbourne Lifeline Ltd,10/01/2018,2802.80,OTHER HIRED SERVICES,OTHER HIRED SERVICES,http://opendatacommunities.org/id/county-council/staffordshire  ,
Staffordshire County Council,Local Members Initiatives,Werrington Community Library ,10/01/2018,1200.00,Local Member Initiative Scheme,Local Member Initiative Scheme,http://opendatacommunities.org/id/county-council/staffordshire  ,
Staffordshire County Council,Equipment Maintenance SET,WESSEX LIFT CO LTD,10/01/2018,4200.00,Servicing Equipment Purchase,Servicing Equipment Purchase,http://opendatacommunities.org/id/county-council/staffordshire  ,
Staffordshire County Council,ERDF - Staffordsheer,Winning Moves Ltd,10/01/2018,58218.00,EXTERNAL TRAINING,EXTERNAL TRAINING,http://opendatacommunities.org/id/county-council/staffordshire  ,
Staffordshire County Council,Moorlands Invoice Led Older Pe,Bluebird Care Stoke On Trent,11/01/2018,1229.80,Practical Care,Practical Care,http://opendatacommunities.org/id/county-council/staffordshire  ,
Staffordshire County Council,Moorlands Invoice Led Older Pe,Bluebird Care Stoke On Trent,11/01/2018,1453.40,Practical Care,Practical Care,http://opendatacommunities.org/id/county-council/staffordshire  ,
Staffordshire County Council,East Staffs Invoice Led Older ,CJB Care Ltd,11/01/2018,1118.95,Practical Care,Practical Care,http://opendatacommunities.org/id/county-council/staffordshire  ,
Staffordshire County Council,East Staffs Invoice Led Older ,CJB Care Ltd,11/01/2018,1771.00,Practical Care,Practical Care,http://opendatacommunities.org/id/county-council/staffordshire  ,
Staffordshire County Council,East Staffs Invoice Led Older ,CJB Care Ltd,11/01/2018,768.78,Practical Care,Practical Care,http://opendatacommunities.org/id/county-council/staffordshire  ,
Staffordshire County Council,East Staffs Invoice Led Phys D,CJB Care Ltd,11/01/2018,2221.80,Practical Care,Practical Care,http://opendatacommunities.org/id/county-council/staffordshire  ,
Staffordshire County Council,East Staffs Invoice Led Older ,CJB Care Ltd,11/01/2018,978.08,Practical Care,Practical Care,http://opendatacommunities.org/id/county-council/staffordshire  ,
Staffordshire County Council,East Staffs Invoice Led Older ,CJB Care Ltd,11/01/2018,3155.60,Practical Care,Practical Care,http://opendatacommunities.org/id/county-council/staffordshire  ,
Staffordshire County Council,East Staffs Invoice Led Older ,CJB Care Ltd,11/01/2018,788.90,Practical Care,Practical Care,http://opendatacommunities.org/id/county-council/staffordshire  ,
Staffordshire County Council,East Staffs Invoice Led Older ,CJB Care Ltd,11/01/2018,877.45,Practical Care,Practical Care,http://opendatacommunities.org/id/county-council/staffordshire  ,
Staffordshire County Council,East Staffs Invoice Led Older ,CJB Care Ltd,11/01/2018,676.20,Practical Care,Practical Care,http://opendatacommunities.org/id/county-council/staffordshire  ,
Staffordshire County Council,East Staffs Invoice Led Phys D,CJB Care Ltd,11/01/2018,1851.50,Practical Care,Practical Care,http://opendatacommunities.org/id/county-council/staffordshire  ,
Staffordshire County Council,Stafford Invoice Led Older Peo,Daycare Domicilliary Services Ltd,11/01/2018,1702.40,Practical Care,Practical Care,http://opendatacommunities.org/id/county-council/staffordshire  ,
Staffordshire County Council,Cannock Invoice Led Older Peop,GEE PROFESSIONAL SERVICES,11/01/2018,712.60,Practical Care,Practical Care,http://opendatacommunities.org/id/county-council/staffordshire  ,
Staffordshire County Council,Cannock Invoice Led Older Peop,GEE PROFESSIONAL SERVICES,11/01/2018,507.15,Practical Care,Practical Care,http://opendatacommunities.org/id/county-council/staffordshire  ,
Staffordshire County Council,Cannock Invoice Led Older Peop,Kensington Community Care,11/01/2018,507.15,Practical Care,Practical Care,http://opendatacommunities.org/id/county-council/staffordshire  ,
Staffordshire County Council,Cannock Invoice Led Older Peop,Kensington Community Care,11/01/2018,507.15,Practical Care,Practical Care,http://opendatacommunities.org/id/county-council/staffordshire  ,
Staffordshire County Council,Cannock Invoice Led Older Peop,Midas Care Solutions Ltd,11/01/2018,507.15,Practical Care,Practical Care,http://opendatacommunities.org/id/county-council/staffordshire  ,
Staffordshire County Council,SStaffs Invoice Led Older Peop,Midas Care Solutions Ltd,11/01/2018,507.15,Practical Care,Practical Care,http://opendatacommunities.org/id/county-council/staffordshire  ,
Staffordshire County Council,Moorlands Invoice Led Older Pe,MSC Home Care Ltd,11/01/2018,1174.80,Practical Care,Practical Care,http://opendatacommunities.org/id/county-council/staffordshire  ,
Staffordshire County Council,Moorlands Invoice Led Phys Dis,MSC Home Care Ltd,11/01/2018,927.35,Practical Care,Practical Care,http://opendatacommunities.org/id/county-council/staffordshire  ,
Staffordshire County Council,Moorlands Invoice Led Older Pe,MSC Home Care Ltd,11/01/2018,657.05,Practical Care,Practical Care,http://opendatacommunities.org/id/county-council/staffordshire  ,
Staffordshire County Council,Moorlands Invoice Led Older Pe,MSC Home Care Ltd,11/01/2018,896.45,Practical Care,Practical Care,http://opendatacommunities.org/id/county-council/staffordshire  ,
Staffordshire County Council,Newcastle Invoice Led Older Pe,MSC Home Care Ltd,11/01/2018,583.50,Practical Care,Practical Care,http://opendatacommunities.org/id/county-council/staffordshire  ,
Staffordshire County Council,Newcastle Invoice Led Older Pe,MSC Home Care Ltd,11/01/2018,560.06,Practical Care,Practical Care,http://opendatacommunities.org/id/county-council/staffordshire  ,
Staffordshire County Council,Moorlands Invoice Led Older Pe,MSC Home Care Ltd,11/01/2018,857.96,Practical Care,Practical Care,http://opendatacommunities.org/id/county-council/staffordshire  ,
Staffordshire County Council,Moorlands Invoice Led Older Pe,MSC Home Care Ltd,11/01/2018,712.00,Practical Care,Practical Care,http://opendatacommunities.org/id/county-council/staffordshire  ,
Staffordshire County Council,Newcastle Invoice Led Older Pe,MSC Home Care Ltd,11/01/2018,530.44,Practical Care,Practical Care,http://opendatacommunities.org/id/county-council/staffordshire  ,
Staffordshire County Council,Newcastle Invoice Led Older Pe,MSC Home Care Ltd,11/01/2018,828.97,Practical Care,Practical Care,http://opendatacommunities.org/id/county-council/staffordshire  ,
Staffordshire County Council,Newcastle Invoice Led Older Pe,MSC Home Care Ltd,11/01/2018,1128.30,Practical Care,Practical Care,http://opendatacommunities.org/id/county-council/staffordshire  ,
Staffordshire County Council,Moorlands Invoice Led Older Pe,MSC Home Care Ltd,11/01/2018,1043.40,Practical Care,Practical Care,http://opendatacommunities.org/id/county-council/staffordshire  ,
Staffordshire County Council,Newcastle Invoice Led Older Pe,MSC Home Care Ltd,11/01/2018,1730.16,Practical Care,Practical Care,http://opendatacommunities.org/id/county-council/staffordshire  ,
Staffordshire County Council,Newcastle Invoice Led Older Pe,MSC Home Care Ltd,11/01/2018,2086.12,Practical Care,Practical Care,http://opendatacommunities.org/id/county-council/staffordshire  ,
Staffordshire County Council,Newcastle Invoice Led Older Pe,MSC Home Care Ltd,11/01/2018,548.24,Practical Care,Practical Care,http://opendatacommunities.org/id/county-council/staffordshire  ,
Staffordshire County Council,Moorlands Invoice Led Older Pe,MSC Home Care Ltd,11/01/2018,761.84,Practical Care,Practical Care,http://opendatacommunities.org/id/county-council/staffordshire  ,
Staffordshire County Council,Moorlands Invoice Led Older Pe,MSC Home Care Ltd,11/01/2018,1043.40,Practical Care,Practical Care,http://opendatacommunities.org/id/county-council/staffordshire  ,
Staffordshire County Council,Moorlands Invoice Led Older Pe,MSC Home Care Ltd,11/01/2018,579.60,Practical Care,Practical Care,http://opendatacommunities.org/id/county-council/staffordshire  ,
Staffordshire County Council,Moorlands Invoice Led Older Pe,MSC Home Care Ltd,11/01/2018,1060.88,Practical Care,Practical Care,http://opendatacommunities.org/id/county-council/staffordshire  ,
Staffordshire County Council,Newcastle Invoice Led Older Pe,MSC Home Care Ltd,11/01/2018,583.50,Practical Care,Practical Care,http://opendatacommunities.org/id/county-council/staffordshire  ,
Staffordshire County Council,Newcastle Invoice Led Older Pe,MSC Home Care Ltd,11/01/2018,583.50,Practical Care,Practical Care,http://opendatacommunities.org/id/county-council/staffordshire  ,
Staffordshire County Council,Moorlands Invoice Led Older Pe,MSC Home Care Ltd,11/01/2018,2063.04,Practical Care,Practical Care,http://opendatacommunities.org/id/county-council/staffordshire  ,
Staffordshire County Council,Newcastle Invoice Led Older Pe,MSC Home Care Ltd,11/01/2018,573.99,Practical Care,Practical Care,http://opendatacommunities.org/id/county-council/staffordshire  ,
Staffordshire County Council,Moorlands Invoice Led Older Pe,MSC Home Care Ltd,11/01/2018,927.60,Practical Care,Practical Care,http://opendatacommunities.org/id/county-council/staffordshire  ,
Staffordshire County Council,Moorlands Invoice Led Phys Dis,MSC Home Care Ltd,11/01/2018,2781.30,Practical Care,Practical Care,http://opendatacommunities.org/id/county-council/staffordshire  ,
Staffordshire County Council,Moorlands Invoice Led Older Pe,MSC Home Care Ltd,11/01/2018,1213.47,Practical Care,Practical Care,http://opendatacommunities.org/id/county-council/staffordshire  ,
Staffordshire County Council,Moorlands Invoice Led Older Pe,MSC Home Care Ltd,11/01/2018,579.60,Practical Care,Practical Care,http://opendatacommunities.org/id/county-council/staffordshire  ,
Staffordshire County Council,Moorlands Invoice Led Phys Dis,MSC Home Care Ltd,11/01/2018,2509.80,Practical Care,Practical Care,http://opendatacommunities.org/id/county-council/staffordshire  ,
Staffordshire County Council,Moorlands Invoice Led Older Pe,MSC Home Care Ltd,11/01/2018,740.48,Practical Care,Practical Care,http://opendatacommunities.org/id/county-council/staffordshire  ,
Staffordshire County Council,Newcastle Invoice Led Older Pe,MSC Home Care Ltd,11/01/2018,811.50,Practical Care,Practical Care,http://opendatacommunities.org/id/county-council/staffordshire  ,
Staffordshire County Council,Moorlands Invoice Led Older Pe,Rapid Response Medical Ltd,11/01/2018,563.50,Practical Care,Practical Care,http://opendatacommunities.org/id/county-council/staffordshire  ,
Staffordshire County Council,Moorlands Invoice Led Older Pe,Rapid Response Medical Ltd,11/01/2018,669.20,Practical Care,Practical Care,http://opendatacommunities.org/id/county-council/staffordshire  ,
Staffordshire County Council,Newcastle Invoice Led Older Pe,Rapid Response Medical Ltd,11/01/2018,697.20,Practical Care,Practical Care,http://opendatacommunities.org/id/county-council/staffordshire  ,
Staffordshire County Council,Moorlands Invoice Led Older Pe,Rapid Response Medical Ltd,11/01/2018,697.20,Practical Care,Practical Care,http://opendatacommunities.org/id/county-council/staffordshire  ,
Staffordshire County Council,Stafford LD Team,Voyage Ltd,11/01/2018,5460.00,Supported Group Care,Supported Group Care,http://opendatacommunities.org/id/county-council/staffordshire  ,
Staffordshire County Council,Speed Awareness,A WEAVER,11/01/2018,2205.00,DRIVING INSTRUCTION,DRIVING INSTRUCTION,http://opendatacommunities.org/id/county-council/staffordshire  ,
Staffordshire County Council,Home to school transport-main,A2B Cars,11/01/2018,49691.04,Home School Contract Vehicles,Home School Contract Vehicles,http://opendatacommunities.org/id/county-council/staffordshire  ,
Staffordshire County Council,Case Manage Team -Central West,ACPAS LTD,11/01/2018,758.20,Prev Supp Legal Costs,Prev Supp Legal Costs,http://opendatacommunities.org/id/county-council/staffordshire  ,
Staffordshire County Council,Fuel,ALLSTAR BUSINESS SOLUTIONS LTD,11/01/2018,3299.28,Petrol & Oil,Petrol & Oil,http://opendatacommunities.org/id/county-council/staffordshire  ,
Staffordshire County Council,Chaselea Short Stay School,ARRIVA MIDLANDS NORTH LTD,11/01/2018,50205.00,Home School Tickets,Home School Tickets,http://opendatacommunities.org/id/county-council/staffordshire  ,
Staffordshire County Council,IMCA,ASIST,11/01/2018,62175.25,Comm Care Advocacy Service,Comm Care Advocacy Service,http://opendatacommunities.org/id/county-council/staffordshire  ,
Staffordshire County Council,Comp Dev,AXIELL LTD,11/01/2018,765.10,Postages,Postages,http://opendatacommunities.org/id/county-council/staffordshire  ,
Staffordshire County Council,2 Contraception,BALANCE STREET PRACTICE,11/01/2018,1507.12,OTHER HIRED SERVICES,OTHER HIRED SERVICES,http://opendatacommunities.org/id/county-council/staffordshire  ,
Staffordshire County Council,Through Care Team - Burton/Tam,BENNETT'S TAXIS,11/01/2018,735.60,Home School Contract Vehicles,Home School Contract Vehicles,http://opendatacommunities.org/id/county-council/staffordshire  ,
Staffordshire County Council,Speech and Language/O Therapy,Birmingham Community Healthcare NHS,11/01/2018,22917.00,OTHER HIRED SERVICES,OTHER HIRED SERVICES,http://opendatacommunities.org/id/county-council/staffordshire  ,
Staffordshire County Council,1 STI Test & Treat,CENTRAL MANCHESTER UNI HOSPITALS,11/01/2018,764.00,OTHER HIRED SERVICES,OTHER HIRED SERVICES,http://opendatacommunities.org/id/county-council/staffordshire  ,
Staffordshire County Council,Central Winter Maintenance Wor,COMPASS MINERALS UK LTD,11/01/2018,8097.16,Winter Salt Purchases,Winter Salt Purchases,http://opendatacommunities.org/id/county-council/staffordshire  ,
Staffordshire County Council,Public Transp Support & Co-ord,Derbyshire County Council,11/01/2018,6960.22,Payments to Bus Operators,Payments to Bus Operators,http://opendatacommunities.org/id/county-council/staffordshire  ,
Staffordshire County Council,2 Contraception,Dr Law & Partners,11/01/2018,1155.40,OTHER HIRED SERVICES,OTHER HIRED SERVICES,http://opendatacommunities.org/id/county-council/staffordshire  ,
Staffordshire County Council,Strategic Commissioning,FACE RECORDING & MEASMNT SYS LTD,11/01/2018,44847.60,SOFTWARE LICENCES,SOFTWARE LICENCES,http://opendatacommunities.org/id/county-council/staffordshire  ,
Staffordshire County Council,Lymedale Enterprise Centre,FIRST IN SERVICE LTD,11/01/2018,679.20,General Equipment Repair/Maint,General Equipment Repair/Maint,http://opendatacommunities.org/id/county-council/staffordshire  ,
Staffordshire County Council,Independent School Fee Special,Horizon Care Ltd,11/01/2018,12675.00,Fees to Independent Schools,Fees to Independent Schools,http://opendatacommunities.org/id/county-council/staffordshire  ,
Staffordshire County Council,Highways,Information Security Advice Limited,11/01/2018,1563.84,AGENCY STAFF,AGENCY STAFF,http://opendatacommunities.org/id/county-council/staffordshire  ,
Staffordshire County Council,ASC Funding,IRG Advisors LLP,11/01/2018,10200.00,CONSULTANT FEES,CONSULTANT FEES,http://opendatacommunities.org/id/county-council/staffordshire  ,
Staffordshire County Council,ASC Funding,IRG Advisors LLP,11/01/2018,10200.00,CONSULTANT FEES,CONSULTANT FEES,http://opendatacommunities.org/id/county-council/staffordshire  ,
Staffordshire County Council,ASC Funding,IRG Advisors LLP,11/01/2018,5100.00,CONSULTANT FEES,CONSULTANT FEES,http://opendatacommunities.org/id/county-council/staffordshire  ,
Staffordshire County Council,ASC Funding,IRG Advisors LLP,11/01/2018,7140.00,CONSULTANT FEES,CONSULTANT FEES,http://opendatacommunities.org/id/county-council/staffordshire  ,
Staffordshire County Council,ASC Funding,IRG Advisors LLP,11/01/2018,9180.00,CONSULTANT FEES,CONSULTANT FEES,http://opendatacommunities.org/id/county-council/staffordshire  ,
Staffordshire County Council,Stafford Western Access Rd 13/,JCT CONSULTANCY LTD,11/01/2018,1710.00,Utilities Construction,Utilities Construction,http://opendatacommunities.org/id/county-council/staffordshire  ,
Staffordshire County Council,Stock Suspense Account,JONES SPRINGS (ENG.) LTD,11/01/2018,1308.00,CFC Purchase of Stock,CFC Purchase of Stock,http://opendatacommunities.org/id/county-council/staffordshire  ,
Staffordshire County Council,KCOM - Edge Network,KCom Group PLC,11/01/2018,58246.63,MEGASTREAMS,MEGASTREAMS,http://opendatacommunities.org/id/county-council/staffordshire  ,
Staffordshire County Council,KCOM - Edge Network,KCom Group PLC,11/01/2018,10483.74,MEGASTREAMS,MEGASTREAMS,http://opendatacommunities.org/id/county-council/staffordshire  ,
Staffordshire County Council,Nexxus,Kim Emson Animates,11/01/2018,4800.00,Marketing,Marketing,http://opendatacommunities.org/id/county-council/staffordshire  ,
Staffordshire County Council,0953 Glascote LibC Caledonian ,M W CRIPWELL LTD,11/01/2018,1656.00,Day to Day Mechanical Services,Day to Day Mechanical Services,http://opendatacommunities.org/id/county-council/staffordshire  ,
Staffordshire County Council,Wolgarston High School,M W CRIPWELL LTD,11/01/2018,3823.55,Construction Works,Construction Works,http://opendatacommunities.org/id/county-council/staffordshire  ,
Staffordshire County Council,Wolgarston High School,M W CRIPWELL LTD,11/01/2018,13448.48,Construction Works,Construction Works,http://opendatacommunities.org/id/county-council/staffordshire  ,
Staffordshire County Council,Independent School Fee Special,MAPLE HAYES SCHOOL,11/01/2018,6580.20,Fees to Independent Schools,Fees to Independent Schools,http://opendatacommunities.org/id/county-council/staffordshire  ,
Staffordshire County Council,Independent School Fee Special,MAPLE HAYES SCHOOL,11/01/2018,6580.20,Fees to Independent Schools,Fees to Independent Schools,http://opendatacommunities.org/id/county-council/staffordshire  ,
Staffordshire County Council,RK24 Security-Server Support,N T A Monitor Ltd,11/01/2018,11267.47,PROFESSIONAL FEES,PROFESSIONAL FEES,http://opendatacommunities.org/id/county-council/staffordshire  ,
Staffordshire County Council,DIPS,NATIONAL TEACHING ADVISORY SERVI,11/01/2018,1216.80, Alternative Education Schemes, Alternative Education Schemes,http://opendatacommunities.org/id/county-council/staffordshire  ,
Staffordshire County Council,DIPS,NATIONAL TEACHING ADVISORY SERVI,11/01/2018,1132.20, Alternative Education Schemes, Alternative Education Schemes,http://opendatacommunities.org/id/county-council/staffordshire  ,
Staffordshire County Council,DIPS,NATIONAL TEACHING ADVISORY SERVI,11/01/2018,1216.80, Alternative Education Schemes, Alternative Education Schemes,http://opendatacommunities.org/id/county-council/staffordshire  ,
Staffordshire County Council,DIPS,NATIONAL TEACHING ADVISORY SERVI,11/01/2018,3375.00, Alternative Education Schemes, Alternative Education Schemes,http://opendatacommunities.org/id/county-council/staffordshire  ,
Staffordshire County Council,Keele University Science Busin,NEWCASTLE U LYME BOROUGH COUNCIL,11/01/2018,4311.00,Business Rates,Business Rates,http://opendatacommunities.org/id/county-council/staffordshire  ,
Staffordshire County Council,Keele University Science Busin,NEWCASTLE U LYME BOROUGH COUNCIL,11/01/2018,1705.00,Business Rates,Business Rates,http://opendatacommunities.org/id/county-council/staffordshire  ,
Staffordshire County Council,Keele University Science Busin,NEWCASTLE U LYME BOROUGH COUNCIL,11/01/2018,2079.36,Business Rates,Business Rates,http://opendatacommunities.org/id/county-council/staffordshire  ,
Staffordshire County Council,May Bank Early Years Capital P,NOVUS PROPERTY SOLS LTD,11/01/2018,18262.50,Construction Works,Construction Works,http://opendatacommunities.org/id/county-council/staffordshire  ,
Staffordshire County Council,Lichfield Adaptations,PRISM UK MEDICAL - WESTHOLME DIV,11/01/2018,2805.15,Adaptations Purchase,Adaptations Purchase,http://opendatacommunities.org/id/county-council/staffordshire  ,
Staffordshire County Council,ERDF Low Carbon Bus Evol Prog,Project Fire Products,11/01/2018,3494.20,Grants to third parties,Grants to third parties,http://opendatacommunities.org/id/county-council/staffordshire  ,
Staffordshire County Council,Paulet High School,R A EDWARDS & PARTNERS LTD,11/01/2018,7964.44,Construction Works,Construction Works,http://opendatacommunities.org/id/county-council/staffordshire  ,
Staffordshire County Council,Independent School Fee Special,Senad Limited,11/01/2018,79212.25,Fees to Independent Schools,Fees to Independent Schools,http://opendatacommunities.org/id/county-council/staffordshire  ,
Staffordshire County Council,Independent School Fee Special,Senad Limited,11/01/2018,79212.25,Fees to Independent Schools,Fees to Independent Schools,http://opendatacommunities.org/id/county-council/staffordshire  ,
Staffordshire County Council,Independent School Fee Special,Senad Limited,11/01/2018,28981.00,Fees to Independent Schools,Fees to Independent Schools,http://opendatacommunities.org/id/county-council/staffordshire  ,
Staffordshire County Council,Independent School Fee Special,Senad Limited,11/01/2018,27097.00,Fees to Independent Schools,Fees to Independent Schools,http://opendatacommunities.org/id/county-council/staffordshire  ,
Staffordshire County Council,Independent School Fee Special,Senad Limited,11/01/2018,24598.12,Fees to Independent Schools,Fees to Independent Schools,http://opendatacommunities.org/id/county-council/staffordshire  ,
Staffordshire County Council,Stafford Western Access Rd 13/,Sharpe Pritchard,11/01/2018,2184.00,Int Fees Construction,Int Fees Construction,http://opendatacommunities.org/id/county-council/staffordshire  ,
Staffordshire County Council,MMI Liability,Slater Gordon Solutions,11/01/2018,5200.00,Payment of Insurance Claims,Payment of Insurance Claims,http://opendatacommunities.org/id/county-council/staffordshire  ,
Staffordshire County Council,Home to school transport-main,SOLUS TRAVEL LTD,11/01/2018,19281.56,Home School Tickets,Home School Tickets,http://opendatacommunities.org/id/county-council/staffordshire  ,
Staffordshire County Council,Richard Wakefield,Strata (Double Glazing & Jnery Ctre) Ltd,11/01/2018,4516.50,Construction Works,Construction Works,http://opendatacommunities.org/id/county-council/staffordshire  ,
Staffordshire County Council,Chesterton SU5,Sun Academy Bradwell,11/01/2018,1200.00,S17-NURSERY,S17-NURSERY,http://opendatacommunities.org/id/county-council/staffordshire  ,
Staffordshire County Council,EStaffs/Tamw Disability Team,Taxi 92,11/01/2018,2112.00,S17 TRANSPORT,S17 TRANSPORT,http://opendatacommunities.org/id/county-council/staffordshire  ,
Staffordshire County Council,EStaffs/Tamw Disability Team,Taxi 92,11/01/2018,1632.00,S17 TRANSPORT,S17 TRANSPORT,http://opendatacommunities.org/id/county-council/staffordshire  ,
Staffordshire County Council,5438 Staffs Place 1&2Tipping S,Taybar Limited,11/01/2018,1245.11,Premises Services,Premises Services,http://opendatacommunities.org/id/county-council/staffordshire  ,
Staffordshire County Council,5438 Staffs Place 1&2Tipping S,Taybar Limited,11/01/2018,1324.67,Premises Services,Premises Services,http://opendatacommunities.org/id/county-council/staffordshire  ,
Staffordshire County Council,2 Contraception,Trent Meadows Medical Practice,11/01/2018,940.56,OTHER HIRED SERVICES,OTHER HIRED SERVICES,http://opendatacommunities.org/id/county-council/staffordshire  ,
Staffordshire County Council,NHS Campus Reprov. Phase 1,Turning Point,11/01/2018,18059.37,Supported Group Care,Supported Group Care,http://opendatacommunities.org/id/county-council/staffordshire  ,
Staffordshire County Council,SFA Community Learning,UNIVERSITY OF DERBY,11/01/2018,11855.00,OTHER HIRED SERVICES,OTHER HIRED SERVICES,http://opendatacommunities.org/id/county-council/staffordshire  ,
Staffordshire County Council,ERDF - Staffordsheer,Winning Moves Ltd,11/01/2018,3360.00,EXTERNAL TRAINING,EXTERNAL TRAINING,http://opendatacommunities.org/id/county-council/staffordshire  ,
Staffordshire County Council,2 Contraception,Winshill Medical Centre,11/01/2018,1106.16,OTHER HIRED SERVICES,OTHER HIRED SERVICES,http://opendatacommunities.org/id/county-council/staffordshire  ,
Staffordshire County Council,Headquarters - I.S.P,ABC Fostering Services Ltd,12/01/2018,2978.13,Social Services Oth Local Auth,Social Services Oth Local Auth,http://opendatacommunities.org/id/county-council/staffordshire  ,
Staffordshire County Council,Central Disability Team,Albrighton Care Ltd,12/01/2018,9786.00,Specialist Childs Res Services,Specialist Childs Res Services,http://opendatacommunities.org/id/county-council/staffordshire  ,
Staffordshire County Council,Central Disability Team,Albrighton Care Ltd,12/01/2018,10920.00,Specialist Childs Res Services,Specialist Childs Res Services,http://opendatacommunities.org/id/county-council/staffordshire  ,
Staffordshire County Council,Headquarters - I.S.P,Aspire Residential Care Home,12/01/2018,14508.00,Specialist Childs Res Services,Specialist Childs Res Services,http://opendatacommunities.org/id/county-council/staffordshire  ,
Staffordshire County Council,Headquarters - I.S.P,Aspire Residential Care Home,12/01/2018,3105.00,Specialist Childs Res Services,Specialist Childs Res Services,http://opendatacommunities.org/id/county-council/staffordshire  ,
Staffordshire County Council,Stafford Invoice Led Older Peo,CC Support,12/01/2018,1248.00,Practical Care,Practical Care,http://opendatacommunities.org/id/county-council/staffordshire  ,
Staffordshire County Council,Stafford Invoice Led Phys Disa,CC Support,12/01/2018,1066.00,Practical Care,Practical Care,http://opendatacommunities.org/id/county-council/staffordshire  ,
Staffordshire County Council,Headquarters - I.S.P,CCATS Ltd,12/01/2018,2880.00,Specialist Childs Res Services,Specialist Childs Res Services,http://opendatacommunities.org/id/county-council/staffordshire  ,
Staffordshire County Council,Cannock Invoice Led Older Peop,Chase Care & Support Services,12/01/2018,563.50,Practical Care,Practical Care,http://opendatacommunities.org/id/county-council/staffordshire  ,
Staffordshire County Council,Stafford Invoice Led Phys Disa,Christies Care Ltd,12/01/2018,3572.00,Practical Care,Practical Care,http://opendatacommunities.org/id/county-council/staffordshire  ,
Staffordshire County Council,Stafford Invoice Led Older Peo,Christies Care Ltd,12/01/2018,3676.00,Practical Care,Practical Care,http://opendatacommunities.org/id/county-council/staffordshire  ,
Staffordshire County Council,Headquarters - I.S.P,Core Assets Fostering Ltd,12/01/2018,6116.30,Social Services Oth Local Auth,Social Services Oth Local Auth,http://opendatacommunities.org/id/county-council/staffordshire  ,
Staffordshire County Council,Headquarters - I.S.P,CRYSTAL CARE SOLUTIONS,12/01/2018,19862.14,Specialist Childs Res Services,Specialist Childs Res Services,http://opendatacommunities.org/id/county-council/staffordshire  ,
Staffordshire County Council,SStaffs Invoice Led Older Peop,Extra Care Charitable Trust,12/01/2018,5256.02,Supported Group Care,Supported Group Care,http://opendatacommunities.org/id/county-council/staffordshire  ,
Staffordshire County Council,Cannock Invoice Led Older Peop,Extra Care Charitable Trust,12/01/2018,1061.92,Supported Group Care,Supported Group Care,http://opendatacommunities.org/id/county-council/staffordshire  ,
Staffordshire County Council,Headquarters - I.S.P,FATHER HUDSONS SOCIETY,12/01/2018,2771.75,Social Services Oth Local Auth,Social Services Oth Local Auth,http://opendatacommunities.org/id/county-council/staffordshire  ,
Staffordshire County Council,Headquarters - I.S.P,FATHER HUDSONS SOCIETY,12/01/2018,2864.13,Social Services Oth Local Auth,Social Services Oth Local Auth,http://opendatacommunities.org/id/county-council/staffordshire  ,
Staffordshire County Council,Headquarters - I.S.P,Full Circle Care,12/01/2018,8228.57,Specialist Childs Res Services,Specialist Childs Res Services,http://opendatacommunities.org/id/county-council/staffordshire  ,
Staffordshire County Council,Headquarters - I.S.P,G-MAP SERVICES LTD,12/01/2018,5808.00,Specialist Childs Res Services,Specialist Childs Res Services,http://opendatacommunities.org/id/county-council/staffordshire  ,
Staffordshire County Council,Headquarters - I.S.P,Kaleidoscope Assessment Services,12/01/2018,20999.99,Specialist Childs Res Services,Specialist Childs Res Services,http://opendatacommunities.org/id/county-council/staffordshire  ,
Staffordshire County Council,Tamworth LD Team,Living Ambitions Ltd,12/01/2018,12629.68,Supported Group Care,Supported Group Care,http://opendatacommunities.org/id/county-council/staffordshire  ,
Staffordshire County Council,Stafford Invoice Led Phys Disa,LSC Nursing Care & Services Ltd,12/01/2018,2322.76,Practical Care,Practical Care,http://opendatacommunities.org/id/county-council/staffordshire  ,
Staffordshire County Council,Stafford Invoice Led Phys Disa,LSC Nursing Care & Services Ltd,12/01/2018,2334.95,Practical Care,Practical Care,http://opendatacommunities.org/id/county-council/staffordshire  ,
Staffordshire County Council,Stafford Invoice Led Phys Disa,LSC Nursing Care & Services Ltd,12/01/2018,2331.34,Practical Care,Practical Care,http://opendatacommunities.org/id/county-council/staffordshire  ,
Staffordshire County Council,Stafford Invoice Led Phys Disa,LSC Nursing Care & Services Ltd,12/01/2018,1556.30,Practical Care,Practical Care,http://opendatacommunities.org/id/county-council/staffordshire  ,
Staffordshire County Council,E Staffs LD Team,MEDILINE NURSES,12/01/2018,4635.40,Practical Care,Practical Care,http://opendatacommunities.org/id/county-council/staffordshire  ,
Staffordshire County Council,Carematch External,Mediline Nurses & Carers Ltd,12/01/2018,4725.00,OTHER HIRED SERVICES,OTHER HIRED SERVICES,http://opendatacommunities.org/id/county-council/staffordshire  ,
Staffordshire County Council,E Staffs LD Team,Orchard House,12/01/2018,4667.88,Supported Group Care,Supported Group Care,http://opendatacommunities.org/id/county-council/staffordshire  ,
Staffordshire County Council,E Staffs LD Team,Orchard House,12/01/2018,4473.53,Supported Group Care,Supported Group Care,http://opendatacommunities.org/id/county-council/staffordshire  ,
Staffordshire County Council,Headquarters - I.S.P,Prospects for Young People,12/01/2018,3160.20,Social Services Oth Local Auth,Social Services Oth Local Auth,http://opendatacommunities.org/id/county-council/staffordshire  ,
Staffordshire County Council,Carematch External,RADIS COMMUNITY CARE,12/01/2018,6300.00,OTHER HIRED SERVICES,OTHER HIRED SERVICES,http://opendatacommunities.org/id/county-council/staffordshire  ,
Staffordshire County Council,Moorlands Invoice Led Older Pe,Rapid Response Medical Ltd,12/01/2018,724.50,Practical Care,Practical Care,http://opendatacommunities.org/id/county-council/staffordshire  ,
Staffordshire County Council,Moorlands Invoice Led Older Pe,Rapid Response Medical Ltd,12/01/2018,860.40,Practical Care,Practical Care,http://opendatacommunities.org/id/county-council/staffordshire  ,
Staffordshire County Council,Newcastle Invoice Led Older Pe,Rapid Response Medical Ltd,12/01/2018,896.40,Practical Care,Practical Care,http://opendatacommunities.org/id/county-council/staffordshire  ,
Staffordshire County Council,Stafford Invoice Led Older Peo,Rapid Response Medical Ltd,12/01/2018,681.30,Practical Care,Practical Care,http://opendatacommunities.org/id/county-council/staffordshire  ,
Staffordshire County Council,Stafford Invoice Led Older Peo,Rapid Response Medical Ltd,12/01/2018,693.10,Practical Care,Practical Care,http://opendatacommunities.org/id/county-council/staffordshire  ,
Staffordshire County Council,Stafford Invoice Led Phys Disa,Rapid Response Medical Ltd,12/01/2018,613.85,Practical Care,Practical Care,http://opendatacommunities.org/id/county-council/staffordshire  ,
Staffordshire County Council,East Staffs Invoice Led Older ,ST MARY'S MOUNT,12/01/2018,988.00,Practical Care,Practical Care,http://opendatacommunities.org/id/county-council/staffordshire  ,
Staffordshire County Council,Cherry Trees School,,12/01/2018,558.00,Home School Direct Payment,Home School Direct Payment,http://opendatacommunities.org/id/county-council/staffordshire  ,
Staffordshire County Council,Highways Development Control,AECOM Infrastructure & Env UK Ltd,12/01/2018,23877.66,CONSULTANT FEES,CONSULTANT FEES,http://opendatacommunities.org/id/county-council/staffordshire  ,
Staffordshire County Council,Highways Development Control,AECOM Infrastructure & Env UK Ltd,12/01/2018,10721.56,CONSULTANT FEES,CONSULTANT FEES,http://opendatacommunities.org/id/county-council/staffordshire  ,
Staffordshire County Council,Central County Wide Works,AMEY OW LTD,12/01/2018,252601.26,Gen highway Maint bud only,Gen highway Maint bud only,http://opendatacommunities.org/id/county-council/staffordshire  ,
Staffordshire County Council,Transport for Excluded Pupils,ASSOCIATED RADIO TAXIS,12/01/2018,667.20,Home School Contract Vehicles,Home School Contract Vehicles,http://opendatacommunities.org/id/county-council/staffordshire  ,
Staffordshire County Council,Case Manage Team -Central West,Atkinson Lewis,12/01/2018,926.40,Prev Supp Legal Costs,Prev Supp Legal Costs,http://opendatacommunities.org/id/county-council/staffordshire  ,
Staffordshire County Council,Case Manage Team -Central West,Atkinson Lewis,12/01/2018,1052.40,Prev Supp Legal Costs,Prev Supp Legal Costs,http://opendatacommunities.org/id/county-council/staffordshire  ,
Staffordshire County Council,Case Manage Team -Central West,Atkinson Lewis,12/01/2018,656.40,Prev Supp Legal Costs,Prev Supp Legal Costs,http://opendatacommunities.org/id/county-council/staffordshire  ,
Staffordshire County Council,Home to school transport-main,BENNETTS TRAVEL LTD,12/01/2018,1562.40,Home School Contract Vehicles,Home School Contract Vehicles,http://opendatacommunities.org/id/county-council/staffordshire  ,
Staffordshire County Council,Home to school transport-main,BENNETTS TRAVEL LTD,12/01/2018,2864.40,Home School Contract Vehicles,Home School Contract Vehicles,http://opendatacommunities.org/id/county-council/staffordshire  ,
Staffordshire County Council,2 Contraception,BIDDULPH DOCTORS,12/01/2018,2113.96,OTHER HIRED SERVICES,OTHER HIRED SERVICES,http://opendatacommunities.org/id/county-council/staffordshire  ,
Staffordshire County Council,Stat-OOC transport,Birmingham City Council,12/01/2018,11446.50,Extra District Charges Other,Extra District Charges Other,http://opendatacommunities.org/id/county-council/staffordshire  ,
Staffordshire County Council,Cannock Tipping Away,CANNOCK CHASE COUNCIL,12/01/2018,540.47,WASTE TRANSPORT,WASTE TRANSPORT,http://opendatacommunities.org/id/county-council/staffordshire  ,
Staffordshire County Council,Chasewater Innovation Centre,Coal Industry Soc Welfare Org,12/01/2018,14300.00,Buildings Rents,Buildings Rents,http://opendatacommunities.org/id/county-council/staffordshire  ,
Staffordshire County Council,SCC Balance Sheet,Comensura Ltd,12/01/2018,47304.32,AGENCY STAFF,AGENCY STAFF,http://opendatacommunities.org/id/county-council/staffordshire  ,
Staffordshire County Council,Case Manage Team -Central West,Core Assets Expert Services Ltd,12/01/2018,682.80,Prev Supp Legal Costs,Prev Supp Legal Costs,http://opendatacommunities.org/id/county-council/staffordshire  ,
Staffordshire County Council,Childcare,D Day,12/01/2018,675.00,Legal Costs and Stamp Duty,Legal Costs and Stamp Duty,http://opendatacommunities.org/id/county-council/staffordshire  ,
Staffordshire County Council,Stafford LD Team,Dimensions (UK) Ltd,12/01/2018,3345.08,Supported Group Care,Supported Group Care,http://opendatacommunities.org/id/county-council/staffordshire  ,
Staffordshire County Council,Stafford LD Team,Dimensions (UK) Ltd,12/01/2018,3287.48,Supported Group Care,Supported Group Care,http://opendatacommunities.org/id/county-council/staffordshire  ,
Staffordshire County Council,Moorlands LD Team,Dimensions (UK) Ltd,12/01/2018,8101.52,Supported Group Care,Supported Group Care,http://opendatacommunities.org/id/county-council/staffordshire  ,
Staffordshire County Council,Operational Budget,EMOS INFORMATION SYSTEMS LTD,12/01/2018,1178.50,PHOTOCOPIER RENTAL,PHOTOCOPIER RENTAL,http://opendatacommunities.org/id/county-council/staffordshire  ,
Staffordshire County Council,Telephony & Contact Centre Rev,Forfusion Ltd,12/01/2018,18720.00,CONSULTANT FEES,CONSULTANT FEES,http://opendatacommunities.org/id/county-council/staffordshire  ,
Staffordshire County Council,LEP Core,HARPER ADAMS UNIVERSITY COLLEGE,12/01/2018,7250.00,Advertising,Advertising,http://opendatacommunities.org/id/county-council/staffordshire  ,
Staffordshire County Council,SStaffs Invoice Led Older Peop,HaywardLiving,12/01/2018,4224.00,Supported Group Care,Supported Group Care,http://opendatacommunities.org/id/county-council/staffordshire  ,
Staffordshire County Council,Independent Fees -Hospital Edu,Huntercombe Hospital Cotswold Spa,12/01/2018,1200.00,Fees to Independent Schools,Fees to Independent Schools,http://opendatacommunities.org/id/county-council/staffordshire  ,
Staffordshire County Council,Independent Fees -Hospital Edu,Huntercombe Hospital Stafford,12/01/2018,2400.00,Fees to Independent Schools,Fees to Independent Schools,http://opendatacommunities.org/id/county-council/staffordshire  ,
Staffordshire County Council,Stock Suspense Account,JONES SPRINGS (ENG.) LTD,12/01/2018,1962.00,CFC Purchase of Stock,CFC Purchase of Stock,http://opendatacommunities.org/id/county-council/staffordshire  ,
Staffordshire County Council,Saxon Hill School,,12/01/2018,505.00,Home School Direct Payment,Home School Direct Payment,http://opendatacommunities.org/id/county-council/staffordshire  ,
Staffordshire County Council,KCOM - PSN Staffs Fire Rescue,KCom Group PLC,12/01/2018,4377.18,Purchase of Hardware,Purchase of Hardware,http://opendatacommunities.org/id/county-council/staffordshire  ,
Staffordshire County Council,KCOM - MAN & Tipping St,KCom Group PLC,12/01/2018,112913.17,HARDWARE MAINTENANCE,HARDWARE MAINTENANCE,http://opendatacommunities.org/id/county-council/staffordshire  ,
Staffordshire County Council,KCOM - Core Network,KCom Group PLC,12/01/2018,57221.27,OTHER HIRED SERVICES,OTHER HIRED SERVICES,http://opendatacommunities.org/id/county-council/staffordshire  ,
Staffordshire County Council,KCOM - PSN Staffs Fire Rescue,KCom Group PLC,12/01/2018,22194.37,HARDWARE MAINTENANCE,HARDWARE MAINTENANCE,http://opendatacommunities.org/id/county-council/staffordshire  ,
Staffordshire County Council,KCOM - Contact Centre,KCom Group PLC,12/01/2018,19040.17,HARDWARE MAINTENANCE,HARDWARE MAINTENANCE,http://opendatacommunities.org/id/county-council/staffordshire  ,
Staffordshire County Council,KCOM - PSN - SSHIS,KCom Group PLC,12/01/2018,15194.57,INSTALLATION CHARGES,INSTALLATION CHARGES,http://opendatacommunities.org/id/county-council/staffordshire  ,
Staffordshire County Council,Case Manage Team -Central West,LEXTOX,12/01/2018,553.20,Prev Supp Legal Costs,Prev Supp Legal Costs,http://opendatacommunities.org/id/county-council/staffordshire  ,
Staffordshire County Council,Independent Sch Fees Mainstr'm,LITTLE LEARNERS NURSERY LTD,12/01/2018,1071.00,Fees to Independent Schools,Fees to Independent Schools,http://opendatacommunities.org/id/county-council/staffordshire  ,
Staffordshire County Council,Third Car Leasing Scheme,LOOKERS LEASING LTD,12/01/2018,1011.98,Car Leasing - Charges Misc,Car Leasing - Charges Misc,http://opendatacommunities.org/id/county-council/staffordshire  ,
Staffordshire County Council,7290 Beaconside Hway Leons Way,Lordswood Architectural Ltd,12/01/2018,966.53,Electricity,Electricity,http://opendatacommunities.org/id/county-council/staffordshire  ,
Staffordshire County Council,0742 Kidsgrove Town Hall ST7 4,NEWCASTLE U LYME BOROUGH COUNCIL,12/01/2018,1770.00,Rent / Lease Of Premises,Rent / Lease Of Premises,http://opendatacommunities.org/id/county-council/staffordshire  ,
Staffordshire County Council,6797 Newcastle Civic Office ST,NEWCASTLE U LYME BOROUGH COUNCIL,12/01/2018,48360.00,Rent / Lease Of Premises,Rent / Lease Of Premises,http://opendatacommunities.org/id/county-council/staffordshire  ,
Staffordshire County Council,Independent Sch Fees Mainstr'm,NEWCASTLE UNDER LYME SCHOOL,12/01/2018,2077.00,Fees to Independent Schools,Fees to Independent Schools,http://opendatacommunities.org/id/county-council/staffordshire  ,
Staffordshire County Council,County,POST OFFICE LTD,12/01/2018,1210.00,Excise Licence,Excise Licence,http://opendatacommunities.org/id/county-council/staffordshire  ,
Staffordshire County Council,South Staffs Children's Centre,PRE SCHOOL LEARNING ALLIANCE,12/01/2018,10479.00,Grants to third parties,Grants to third parties,http://opendatacommunities.org/id/county-council/staffordshire  ,
Staffordshire County Council,Cannock Children's Centres,PRE SCHOOL LEARNING ALLIANCE,12/01/2018,8773.06,Grants to third parties,Grants to third parties,http://opendatacommunities.org/id/county-council/staffordshire  ,
Staffordshire County Council,Burton Children's Centres,PRE SCHOOL LEARNING ALLIANCE,12/01/2018,5942.98,Grants to third parties,Grants to third parties,http://opendatacommunities.org/id/county-council/staffordshire  ,
Staffordshire County Council,Tamworth Children's Centres,PRE SCHOOL LEARNING ALLIANCE,12/01/2018,1783.20,Grants to third parties,Grants to third parties,http://opendatacommunities.org/id/county-council/staffordshire  ,
Staffordshire County Council,Independent Fees -Hospital Edu,Priory Hospital School Priory,12/01/2018,1225.00,Fees to Independent Schools,Fees to Independent Schools,http://opendatacommunities.org/id/county-council/staffordshire  ,
Staffordshire County Council,"St Mary's Primary, Wheaton Ast",R A EDWARDS & PARTNERS LTD,12/01/2018,5496.00,Construction Works,Construction Works,http://opendatacommunities.org/id/county-council/staffordshire  ,
Staffordshire County Council,DIPS,Remedy Education,12/01/2018,2160.00, Alternative Education Schemes, Alternative Education Schemes,http://opendatacommunities.org/id/county-council/staffordshire  ,
Staffordshire County Council,Client Device Rollout,Specialist Computer Services Ltd,12/01/2018,705.00,WASTE COLLECTION,WASTE COLLECTION,http://opendatacommunities.org/id/county-council/staffordshire  ,
Staffordshire County Council,Client Device Rollout,Specialist Computer Services Ltd,12/01/2018,2705.40,WASTE COLLECTION,WASTE COLLECTION,http://opendatacommunities.org/id/county-council/staffordshire  ,
Staffordshire County Council,5438 Staffs Place 1&2Tipping S,Stafford Borough Council,12/01/2018,1656.00,Day to Day External Areas,Day to Day External Areas,http://opendatacommunities.org/id/county-council/staffordshire  ,
Staffordshire County Council,Staffs Safer Roads Partnership,STAFFORDSHIRE FIRE & RESCUE SERV,12/01/2018,9455.78,Speed Camera Reimbursements,Speed Camera Reimbursements,http://opendatacommunities.org/id/county-council/staffordshire  ,
Staffordshire County Council,Family and Friends Team,Tamworth Atherstone Txis Pvte Hre Ltd,12/01/2018,600.00,Fostering Discretionary Paymts,Fostering Discretionary Paymts,http://opendatacommunities.org/id/county-council/staffordshire  ,
Staffordshire County Council,Can/Lich Disability Team,THORNBURY NURSING SERVICES,12/01/2018,2138.89,S17 FAMILY SUPPORT,S17 FAMILY SUPPORT,http://opendatacommunities.org/id/county-council/staffordshire  ,
Staffordshire County Council,Cicely Haughton School,Total Travel Transport UK Ltd,12/01/2018,1012.00,Home School Contract Vehicles,Home School Contract Vehicles,http://opendatacommunities.org/id/county-council/staffordshire  ,
Staffordshire County Council,Speech and Language/O Therapy,V RAY,12/01/2018,693.00,OTHER HIRED SERVICES,OTHER HIRED SERVICES,http://opendatacommunities.org/id/county-council/staffordshire  ,
Staffordshire County Council,Bus Lane Enforcement,W S P UK LTD,12/01/2018,2766.19,General Equipment Purchase,General Equipment Purchase,http://opendatacommunities.org/id/county-council/staffordshire  ,
Staffordshire County Council,Case Manage Team -Central West,Westbury Health Ltd,12/01/2018,552.06,Prev Supp Legal Costs,Prev Supp Legal Costs,http://opendatacommunities.org/id/county-council/staffordshire  ,
Staffordshire County Council,6476 Occ Health Winton Hse Sto,WINTON PROPERTY LTD,12/01/2018,1797.50,Rent / Lease Of Premises,Rent / Lease Of Premises,http://opendatacommunities.org/id/county-council/staffordshire  ,
Staffordshire County Council,Cannock Chase LD Team,Age UK South Staffordshire,15/01/2018,620.00,Practical Care,Practical Care,http://opendatacommunities.org/id/county-council/staffordshire  ,
Staffordshire County Council,Cannock Chase LD Team,Age UK South Staffordshire,15/01/2018,744.00,Practical Care,Practical Care,http://opendatacommunities.org/id/county-council/staffordshire  ,
Staffordshire County Council,Cannock Chase LD Team,Age UK South Staffordshire,15/01/2018,806.00,Practical Care,Practical Care,http://opendatacommunities.org/id/county-council/staffordshire  ,
Staffordshire County Council,Cannock Chase LD Team,Age UK South Staffordshire,15/01/2018,806.00,Practical Care,Practical Care,http://opendatacommunities.org/id/county-council/staffordshire  ,
Staffordshire County Council,Cannock Chase LD Team,Age UK South Staffordshire,15/01/2018,620.00,Practical Care,Practical Care,http://opendatacommunities.org/id/county-council/staffordshire  ,
Staffordshire County Council,Cannock Chase LD Team,Age UK South Staffordshire,15/01/2018,775.00,Practical Care,Practical Care,http://opendatacommunities.org/id/county-council/staffordshire  ,
Staffordshire County Council,Cannock Chase LD Team,Age UK South Staffordshire,15/01/2018,682.00,Practical Care,Practical Care,http://opendatacommunities.org/id/county-council/staffordshire  ,
Staffordshire County Council,Stafford LD Team,CC Support,15/01/2018,901.75,Practical Care,Practical Care,http://opendatacommunities.org/id/county-council/staffordshire  ,
Staffordshire County Council,E Staffs LD Team,D E Healthcare,15/01/2018,3048.20,Supported Group Care,Supported Group Care,http://opendatacommunities.org/id/county-council/staffordshire  ,
Staffordshire County Council,E Staffs LD Team,D E Healthcare,15/01/2018,2462.92,Supported Group Care,Supported Group Care,http://opendatacommunities.org/id/county-council/staffordshire  ,
Staffordshire County Council,Lichfield LD Team,D E Healthcare,15/01/2018,3868.22,Supported Group Care,Supported Group Care,http://opendatacommunities.org/id/county-council/staffordshire  ,
Staffordshire County Council,E Staffs LD Team,D E Healthcare,15/01/2018,2418.07,Supported Group Care,Supported Group Care,http://opendatacommunities.org/id/county-council/staffordshire  ,
Staffordshire County Council,SStaffs Invoice Led Older Peop,Hands on Care Wombourne Ltd,15/01/2018,656.60,Practical Care,Practical Care,http://opendatacommunities.org/id/county-council/staffordshire  ,
Staffordshire County Council,SStaffs Invoice Led Older Peop,Hands on Care Wombourne Ltd,15/01/2018,647.22,Practical Care,Practical Care,http://opendatacommunities.org/id/county-council/staffordshire  ,
Staffordshire County Council,SStaffs Invoice Led Older Peop,Hands on Care Wombourne Ltd,15/01/2018,656.60,Practical Care,Practical Care,http://opendatacommunities.org/id/county-council/staffordshire  ,
Staffordshire County Council,SStaffs Invoice Led Older Peop,Hands on Care Wombourne Ltd,15/01/2018,603.75,Practical Care,Practical Care,http://opendatacommunities.org/id/county-council/staffordshire  ,
Staffordshire County Council,S Staffs Invoice Led Physic Di,Hands on Care Wombourne Ltd,15/01/2018,763.39,Practical Care,Practical Care,http://opendatacommunities.org/id/county-council/staffordshire  ,
Staffordshire County Council,SStaffs Invoice Led Older Peop,Kensington Community Care,15/01/2018,630.00,Practical Care,Practical Care,http://opendatacommunities.org/id/county-council/staffordshire  ,
Staffordshire County Council,SStaffs Invoice Led Older Peop,Kensington Community Care,15/01/2018,630.00,Practical Care,Practical Care,http://opendatacommunities.org/id/county-council/staffordshire  ,
Staffordshire County Council,SStaffs Invoice Led Older Peop,Kensington Community Care,15/01/2018,676.20,Practical Care,Practical Care,http://opendatacommunities.org/id/county-council/staffordshire  ,
Staffordshire County Council,Stafford LD Team,LINFIELD CARE LIMITED,15/01/2018,5496.48,Supported Group Care,Supported Group Care,http://opendatacommunities.org/id/county-council/staffordshire  ,
Staffordshire County Council,Stafford LD Team,Orchard House,15/01/2018,2462.92,Supported Group Care,Supported Group Care,http://opendatacommunities.org/id/county-council/staffordshire  ,
Staffordshire County Council,Stafford LD Team,Orchard House,15/01/2018,6755.32,Supported Group Care,Supported Group Care,http://opendatacommunities.org/id/county-council/staffordshire  ,
Staffordshire County Council,Adult Placement Respite,PSS,15/01/2018,31568.00,OTHER HIRED SERVICES,OTHER HIRED SERVICES,http://opendatacommunities.org/id/county-council/staffordshire  ,
Staffordshire County Council,E Staffs LD Team,Sanctuary Housing Association,15/01/2018,1040.00,Supported Group Care,Supported Group Care,http://opendatacommunities.org/id/county-council/staffordshire  ,
Staffordshire County Council,Cannock Chase LD Team,Selborne Care Ltd,15/01/2018,7197.70,Supported Group Care,Supported Group Care,http://opendatacommunities.org/id/county-council/staffordshire  ,
Staffordshire County Council,Home to school transport-main,A & K TRAVEL,15/01/2018,7932.92,Home School Contract Vehicles,Home School Contract Vehicles,http://opendatacommunities.org/id/county-council/staffordshire  ,
Staffordshire County Council,Nursery Education Grant,A Anderton,15/01/2018,847.04,Grants Nursery Education Pymnt,Grants Nursery Education Pymnt,http://opendatacommunities.org/id/county-council/staffordshire  ,
Staffordshire County Council,Think 2 Project,A B C NURSERY,15/01/2018,2750.15,Awards Funded Childcare Places,Awards Funded Childcare Places,http://opendatacommunities.org/id/county-council/staffordshire  ,
Staffordshire County Council,Nursery Education Grant,A B C NURSERY,15/01/2018,10692.48,Grants Nursery Education Pymnt,Grants Nursery Education Pymnt,http://opendatacommunities.org/id/county-council/staffordshire  ,
Staffordshire County Council,Nursery Education Grant,A BAILEY,15/01/2018,847.04,Grants Nursery Education Pymnt,Grants Nursery Education Pymnt,http://opendatacommunities.org/id/county-council/staffordshire  ,
Staffordshire County Council,Nursery Education Grant,A Compton,15/01/2018,847.04,Grants Nursery Education Pymnt,Grants Nursery Education Pymnt,http://opendatacommunities.org/id/county-council/staffordshire  ,
Staffordshire County Council,Home to school transport-main,A D RUTTER,15/01/2018,1566.63,Home School Contract Vehicles,Home School Contract Vehicles,http://opendatacommunities.org/id/county-council/staffordshire  ,
Staffordshire County Council,Nursery Education Grant,A DAVIES-HILL,15/01/2018,762.34,Grants Nursery Education Pymnt,Grants Nursery Education Pymnt,http://opendatacommunities.org/id/county-council/staffordshire  ,
Staffordshire County Council,Nursery Education Grant,A E Gittins,15/01/2018,818.81,Grants Nursery Education Pymnt,Grants Nursery Education Pymnt,http://opendatacommunities.org/id/county-council/staffordshire  ,
Staffordshire County Council,Nursery Education Grant,A Evans,15/01/2018,536.46,Grants Nursery Education Pymnt,Grants Nursery Education Pymnt,http://opendatacommunities.org/id/county-council/staffordshire  ,
Staffordshire County Council,Nursery Education Grant,A Hadley,15/01/2018,1782.08,Grants Nursery Education Pymnt,Grants Nursery Education Pymnt,http://opendatacommunities.org/id/county-council/staffordshire  ,
Staffordshire County Council,Nursery Education Grant,A Hooker,15/01/2018,1101.15,Grants Nursery Education Pymnt,Grants Nursery Education Pymnt,http://opendatacommunities.org/id/county-council/staffordshire  ,
Staffordshire County Council,Think 2 Project,A Ratcliffe,15/01/2018,770.04,Awards Funded Childcare Places,Awards Funded Childcare Places,http://opendatacommunities.org/id/county-council/staffordshire  ,
Staffordshire County Council,Nursery Education Grant,A Ratcliffe,15/01/2018,677.63,Grants Nursery Education Pymnt,Grants Nursery Education Pymnt,http://opendatacommunities.org/id/county-council/staffordshire  ,
Staffordshire County Council,Nursery Education Grant,A SCOTT,15/01/2018,4009.68,Grants Nursery Education Pymnt,Grants Nursery Education Pymnt,http://opendatacommunities.org/id/county-council/staffordshire  ,
Staffordshire County Council,Nursery Education Grant,A SHAW-MATTHEWS,15/01/2018,2258.77,Grants Nursery Education Pymnt,Grants Nursery Education Pymnt,http://opendatacommunities.org/id/county-council/staffordshire  ,
Staffordshire County Council,Think 2 Project,A WHEELER T/A LITTLE WHEELERS,15/01/2018,1650.09,Awards Funded Childcare Places,Awards Funded Childcare Places,http://opendatacommunities.org/id/county-council/staffordshire  ,
Staffordshire County Council,Think 2 Project,ABACUS NURSERY,15/01/2018,1650.09,Awards Funded Childcare Places,Awards Funded Childcare Places,http://opendatacommunities.org/id/county-council/staffordshire  ,
Staffordshire County Council,Nursery Education Grant,ABACUS NURSERY,15/01/2018,10646.30,Grants Nursery Education Pymnt,Grants Nursery Education Pymnt,http://opendatacommunities.org/id/county-council/staffordshire  ,
Staffordshire County Council,Think 2 Project,ABACUS PRE SCHOOL PLAYGROUP,15/01/2018,2200.12,Awards Funded Childcare Places,Awards Funded Childcare Places,http://opendatacommunities.org/id/county-council/staffordshire  ,
Staffordshire County Council,Nursery Education Grant,ABACUS PRE SCHOOL PLAYGROUP,15/01/2018,4932.43,Grants Nursery Education Pymnt,Grants Nursery Education Pymnt,http://opendatacommunities.org/id/county-council/staffordshire  ,
Staffordshire County Council,Nursery Education Grant,ABC DAY NURSERY,15/01/2018,2992.88,Grants Nursery Education Pymnt,Grants Nursery Education Pymnt,http://opendatacommunities.org/id/county-council/staffordshire  ,
Staffordshire County Council,Think 2 Project,ABC Early Learning & Childcare Cent,15/01/2018,4800.20,Awards Funded Childcare Places,Awards Funded Childcare Places,http://opendatacommunities.org/id/county-council/staffordshire  ,
Staffordshire County Council,Nursery Education Grant,ABC Early Learning & Childcare Cent,15/01/2018,38722.39,Grants Nursery Education Pymnt,Grants Nursery Education Pymnt,http://opendatacommunities.org/id/county-council/staffordshire  ,
Staffordshire County Council,Case Manage Team -Central West,ADVANCED CHILD CARE ASSESSMENTS LTD,15/01/2018,770.55,Prev Supp Legal Costs,Prev Supp Legal Costs,http://opendatacommunities.org/id/county-council/staffordshire  ,
Staffordshire County Council,Adoption Support Fund,AFTER ADOPTION,15/01/2018,2400.00,PROFESSIONAL FEES,PROFESSIONAL FEES,http://opendatacommunities.org/id/county-council/staffordshire  ,
Staffordshire County Council,Think 2 Project,ALBERT BEAR PLAYGROUP,15/01/2018,6050.33,Awards Funded Childcare Places,Awards Funded Childcare Places,http://opendatacommunities.org/id/county-council/staffordshire  ,
Staffordshire County Council,Nursery Education Grant,ALBERT BEAR PLAYGROUP,15/01/2018,16543.67,Grants Nursery Education Pymnt,Grants Nursery Education Pymnt,http://opendatacommunities.org/id/county-council/staffordshire  ,
Staffordshire County Council,Think 2 Project,ALDERGATE PRE SCHOOL,15/01/2018,3850.21,Awards Funded Childcare Places,Awards Funded Childcare Places,http://opendatacommunities.org/id/county-council/staffordshire  ,
Staffordshire County Council,Nursery Education Grant,ALDERGATE PRE SCHOOL,15/01/2018,9415.32,Grants Nursery Education Pymnt,Grants Nursery Education Pymnt,http://opendatacommunities.org/id/county-council/staffordshire  ,
Staffordshire County Council,Nursery Education Grant,ALL SAINTS KIDS CLUB,15/01/2018,11068.01,Grants Nursery Education Pymnt,Grants Nursery Education Pymnt,http://opendatacommunities.org/id/county-council/staffordshire  ,
Staffordshire County Council,Think 2 Project,AMINGTON & DISTRICT PRE SCHOOL,15/01/2018,1320.07,Awards Funded Childcare Places,Awards Funded Childcare Places,http://opendatacommunities.org/id/county-council/staffordshire  ,
Staffordshire County Council,Nursery Education Grant,AMINGTON & DISTRICT PRE SCHOOL,15/01/2018,7931.21,Grants Nursery Education Pymnt,Grants Nursery Education Pymnt,http://opendatacommunities.org/id/county-council/staffordshire  ,
Staffordshire County Council,Nursery Education Grant,Anglesey Nursery,15/01/2018,25395.78,Grants Nursery Education Pymnt,Grants Nursery Education Pymnt,http://opendatacommunities.org/id/county-council/staffordshire  ,
Staffordshire County Council,Think 2 Project,ANIMAL CRACKERS CHILD'S NURSERY,15/01/2018,3300.18,Awards Funded Childcare Places,Awards Funded Childcare Places,http://opendatacommunities.org/id/county-council/staffordshire  ,
Staffordshire County Council,Nursery Education Grant,ANIMAL CRACKERS CHILD'S NURSERY,15/01/2018,28195.97,Grants Nursery Education Pymnt,Grants Nursery Education Pymnt,http://opendatacommunities.org/id/county-council/staffordshire  ,
Staffordshire County Council,Nursery Education Grant,Ankermoor Primary Academy,15/01/2018,8645.30,Grants Nursery Education Pymnt,Grants Nursery Education Pymnt,http://opendatacommunities.org/id/county-council/staffordshire  ,
Staffordshire County Council,Think 2 Project,ARGYLE PRE SCHOOL NURSERY,15/01/2018,2200.12,Awards Funded Childcare Places,Awards Funded Childcare Places,http://opendatacommunities.org/id/county-council/staffordshire  ,
Staffordshire County Council,Nursery Education Grant,ARGYLE PRE SCHOOL NURSERY,15/01/2018,22054.87,Grants Nursery Education Pymnt,Grants Nursery Education Pymnt,http://opendatacommunities.org/id/county-council/staffordshire  ,
Staffordshire County Council,Think 2 Project,ARMITAGE PRE SCHOOL,15/01/2018,1650.09,Awards Funded Childcare Places,Awards Funded Childcare Places,http://opendatacommunities.org/id/county-council/staffordshire  ,
Staffordshire County Council,Nursery Education Grant,ARMITAGE PRE SCHOOL,15/01/2018,5225.25,Grants Nursery Education Pymnt,Grants Nursery Education Pymnt,http://opendatacommunities.org/id/county-council/staffordshire  ,
Staffordshire County Council,Nursery Education Grant,ASQUITH NURSERIES LTD,15/01/2018,13129.12,Grants Nursery Education Pymnt,Grants Nursery Education Pymnt,http://opendatacommunities.org/id/county-council/staffordshire  ,
Staffordshire County Council,Case Manage Team -Central West,Atkinson Lewis,15/01/2018,4840.80,Prev Supp Legal Costs,Prev Supp Legal Costs,http://opendatacommunities.org/id/county-council/staffordshire  ,
Staffordshire County Council,Think 2 Project,B MILLARD,15/01/2018,550.03,Awards Funded Childcare Places,Awards Funded Childcare Places,http://opendatacommunities.org/id/county-council/staffordshire  ,
Staffordshire County Council,Nursery Education Grant,B MILLARD,15/01/2018,3029.58,Grants Nursery Education Pymnt,Grants Nursery Education Pymnt,http://opendatacommunities.org/id/county-council/staffordshire  ,
Staffordshire County Council,Nursery Education Grant,B Stone,15/01/2018,847.04,Grants Nursery Education Pymnt,Grants Nursery Education Pymnt,http://opendatacommunities.org/id/county-council/staffordshire  ,
Staffordshire County Council,Think 2 Project,BAMBINO'S PRIVATE DAY NURSERY LTD,15/01/2018,2200.12,Awards Funded Childcare Places,Awards Funded Childcare Places,http://opendatacommunities.org/id/county-council/staffordshire  ,
Staffordshire County Council,Nursery Education Grant,BAMBINO'S PRIVATE DAY NURSERY LTD,15/01/2018,14927.72,Grants Nursery Education Pymnt,Grants Nursery Education Pymnt,http://opendatacommunities.org/id/county-council/staffordshire  ,
Staffordshire County Council,Nursery Education Grant,Barney Bears Nursery,15/01/2018,27500.54,Grants Nursery Education Pymnt,Grants Nursery Education Pymnt,http://opendatacommunities.org/id/county-council/staffordshire  ,
Staffordshire County Council,Nursery Education Grant,Barnfields Primary School,15/01/2018,5505.76,Grants Nursery Education Pymnt,Grants Nursery Education Pymnt,http://opendatacommunities.org/id/county-council/staffordshire  ,
Staffordshire County Council,Think 2 Project,BEANYS DAY NURSERY,15/01/2018,2200.12,Awards Funded Childcare Places,Awards Funded Childcare Places,http://opendatacommunities.org/id/county-council/staffordshire  ,
Staffordshire County Council,Nursery Education Grant,BEANYS DAY NURSERY,15/01/2018,8732.19,Grants Nursery Education Pymnt,Grants Nursery Education Pymnt,http://opendatacommunities.org/id/county-council/staffordshire  ,
Staffordshire County Council,Home to school transport-main,BENNETTS TRAVEL LTD,15/01/2018,1692.60,Home School Contract Vehicles,Home School Contract Vehicles,http://opendatacommunities.org/id/county-council/staffordshire  ,
Staffordshire County Council,Think 2 Project,Big Robin's Nursery,15/01/2018,1650.09,Awards Funded Childcare Places,Awards Funded Childcare Places,http://opendatacommunities.org/id/county-council/staffordshire  ,
Staffordshire County Council,Nursery Education Grant,Big Robin's Nursery,15/01/2018,16517.28,Grants Nursery Education Pymnt,Grants Nursery Education Pymnt,http://opendatacommunities.org/id/county-council/staffordshire  ,
Staffordshire County Council,Think 2 Project,BILBROOK PLAYGROUP,15/01/2018,1430.08,Awards Funded Childcare Places,Awards Funded Childcare Places,http://opendatacommunities.org/id/county-council/staffordshire  ,
Staffordshire County Council,Nursery Education Grant,BILBROOK PLAYGROUP,15/01/2018,2064.79,Grants Nursery Education Pymnt,Grants Nursery Education Pymnt,http://opendatacommunities.org/id/county-council/staffordshire  ,
Staffordshire County Council,Think 2 Project,Birchwood Private Day Nursery,15/01/2018,2200.12,Awards Funded Childcare Places,Awards Funded Childcare Places,http://opendatacommunities.org/id/county-council/staffordshire  ,
Staffordshire County Council,Nursery Education Grant,Birchwood Private Day Nursery,15/01/2018,5791.76,Grants Nursery Education Pymnt,Grants Nursery Education Pymnt,http://opendatacommunities.org/id/county-council/staffordshire  ,
Staffordshire County Council,Nursery Education Grant,Bishops Lonsdale Nursery,15/01/2018,11449.16,Grants Nursery Education Pymnt,Grants Nursery Education Pymnt,http://opendatacommunities.org/id/county-council/staffordshire  ,
